Department Family,Entity,Date,Expense Type,Expense Area,Supplier,Transaction Number,Amount,Description
Department for Education,DEPARTMENT FOR EDUCATION,16/10/2017,Professional Services Other,Digital and Technology Group,6 POINT 6 LIMITED,1041012805,22050,Research and evaluation activities
Department for Education,DEPARTMENT FOR EDUCATION,19/10/2017,Professional Services Consultancy and Contingent Labour,Digital and Technology Group,6 POINT 6 LIMITED,1041013339,21350,"Advisory services including fees, travel and expenses"
Department for Education,DEPARTMENT FOR EDUCATION,19/10/2017,Professional Services Consultancy and Contingent Labour,Digital and Technology Group,6 POINT 6 LIMITED,1041013339,31050,"Advisory services including fees, travel and expenses"
Department for Education,DEPARTMENT FOR EDUCATION,16/10/2017,Grants,STRATEGIC IMPROVEMENT - PROTECTED,ABBEY MULTI ACADEMY TRUST,1041012799,58538,Grants to educational establishments or not for profit organisations including other businesses
Department for Education,STANDARDS AND TESTING AGENCY,17/10/2017,Professional Services Consultancy and Contingent Labour,Test Development Division,ACER INTERNATIONAL UNITED KINGDOM LTD,1041012905,31241,"Fees / expenses of professionals such as auditors, accountants, lawyers, etc. engaged to provide advice or opinion on how to affect something"
Department for Education,STANDARDS AND TESTING AGENCY,17/10/2017,Professional Services Consultancy and Contingent Labour,Test Development Division,ACER INTERNATIONAL UNITED KINGDOM LTD,1041012905,43572,"Fees / expenses of professionals such as auditors, accountants, lawyers, etc. engaged to provide advice or opinion on how to affect something"
Department for Education,STANDARDS AND TESTING AGENCY,17/10/2017,Professional Services Consultancy and Contingent Labour,Test Development Division,ACER INTERNATIONAL UNITED KINGDOM LTD,1041012905,35416,"Fees / expenses of professionals such as auditors, accountants, lawyers, etc. engaged to provide advice or opinion on how to affect something"
Department for Education,STANDARDS AND TESTING AGENCY,17/10/2017,Professional Services Consultancy and Contingent Labour,Test Development Division,ACER INTERNATIONAL UNITED KINGDOM LTD,1041012905,7083.2,"Fees / expenses of professionals such as auditors, accountants, lawyers, etc. engaged to provide advice or opinion on how to affect something"
Department for Education,DEPARTMENT FOR EDUCATION,16/10/2017,Grants,Academies Regional Delivery Group,ACORN EDUCATION TRUST,1041012752,70000,Grants to educational establishments or not for profit organisations including other businesses
Department for Education,DEPARTMENT FOR EDUCATION,16/10/2017,Grants,Adoption and Children in Care Division,ADOPTERS FOR ADOPTION LTD,1041012767,52282,Grants to educational establishments or not for profit organisations including other businesses
Department for Education,DEPARTMENT FOR EDUCATION,16/10/2017,Grants,Adoption and Children in Care Division,ADOPTIONPLUS,1041012701,25046.78,Grants to educational establishments or not for profit organisations including other businesses
Department for Education,DEPARTMENT FOR EDUCATION,02/10/2017,Grants,Academies Regional Delivery Group,ADVANCE LEARNING PARTNERSHIP,1041011104,115000,Grants to educational establishments or not for profit organisations including other businesses
Department for Education,NATIONAL COLLEGE FOR TEACHING & LEADERSHIP,03/10/2017,Grants,Operations Directorate,ALBAN FEDERATION,1041011349,33131.97,Grants to educational establishments or not for profit organisations including other businesses
Department for Education,NATIONAL COLLEGE FOR TEACHING & LEADERSHIP,24/10/2017,Grants,Delivery Directorate,ALFRETON NURSERY SCHOOL,1041013828,40000,Grants to educational establishments or not for profit organisations including other businesses
Department for Education,NATIONAL COLLEGE FOR TEACHING & LEADERSHIP,11/10/2017,Grants,Delivery Directorate,ALL HALLOWS CATHOLIC COLLEGE,1041012446,50000,Grants to educational establishments or not for profit organisations including other businesses
Department for Education,NATIONAL COLLEGE FOR TEACHING & LEADERSHIP,17/10/2017,Grants,Delivery Directorate,ALL SAINTS CATHOLIC SCHOOL TS ACCOUNT,1041012925,40000,Grants to educational establishments or not for profit organisations including other businesses
Department for Education,NATIONAL COLLEGE FOR TEACHING & LEADERSHIP,11/10/2017,Grants,Delivery Directorate,ALL SAINTS RC SCHOOL,1041012394,50000,Grants to educational establishments or not for profit organisations including other businesses
Department for Education,NATIONAL COLLEGE FOR TEACHING & LEADERSHIP,17/10/2017,Grants,Delivery Directorate,ALL SOULS CE SCHOOL,1041013001,50000,Grants to educational establishments or not for profit organisations including other businesses
Department for Education,DEPARTMENT FOR EDUCATION,06/10/2017,Professional Services Consultancy and Contingent Labour,Higher Education Strategy and Policy Group,ALLEN LANE LTD,10000348,68150.45,Costs related to temporary workers
Department for Education,NATIONAL COLLEGE FOR TEACHING & LEADERSHIP,03/10/2017,Grants,Delivery Directorate,ALTRINCHAM GRAMMAR SCHOOL FOR GIRLS,1041011453,40000,Grants to educational establishments or not for profit organisations including other businesses
Department for Education,DEPARTMENT FOR EDUCATION,20/10/2017,Grants,"Accountability, Curriculum and Qualifications Group",ALTRINCHAM GRAMMAR SCHOOL FOR GIRLS,1041013383,240000,Grants to educational establishments or not for profit organisations including other businesses
Department for Education,DEPARTMENT FOR EDUCATION,30/10/2017,Facilities,Property Asset Management Group,AMEY,1041014410,30802.75,Property management
Department for Education,DEPARTMENT FOR EDUCATION,03/10/2017,Professional Services Consultancy and Contingent Labour,Property Asset Management Group,ARCADIS LLP,1041011379,27266.25,"Fees / expenses of professionals such as auditors, accountants, lawyers, etc. engaged to provide advice or opinion on how to affect something"
Department for Education,NATIONAL COLLEGE FOR TEACHING & LEADERSHIP,03/10/2017,Grants,Operations Directorate,ARK SCHOOLS,1041011522,28932.3,Grants to educational establishments or not for profit organisations including other businesses
Department for Education,NATIONAL COLLEGE FOR TEACHING & LEADERSHIP,11/10/2017,Grants,Delivery Directorate,AROW VALE RSA ACADEMY,1041012387,40000,Grants to educational establishments or not for profit organisations including other businesses
Department for Education,NATIONAL COLLEGE FOR TEACHING & LEADERSHIP,17/10/2017,Grants,Delivery Directorate,ARTHUR TERRY LEARNING PARTNERSHIP,1041012950,59620,Grants to educational establishments or not for profit organisations including other businesses
Department for Education,NATIONAL COLLEGE FOR TEACHING & LEADERSHIP,03/10/2017,Grants,Delivery Directorate,ASHFIELD ACADEMY,1041011504,40000,Grants to educational establishments or not for profit organisations including other businesses
Department for Education,NATIONAL COLLEGE FOR TEACHING & LEADERSHIP,11/10/2017,Grants,Delivery Directorate,ASHLEY DOWN PRIMARY SCHOOL,1041012454,40000,Grants to educational establishments or not for profit organisations including other businesses
Department for Education,NATIONAL COLLEGE FOR TEACHING & LEADERSHIP,11/10/2017,Grants,Delivery Directorate,ASHTON ON MERSEY SCHOOL,1041012456,40000,Grants to educational establishments or not for profit organisations including other businesses
Department for Education,DEPARTMENT FOR EDUCATION,20/10/2017,Grants,"Accountability, Curriculum and Qualifications Group",ASHTON ON MERSEY SCHOOL,1041013495,240000,Grants to educational establishments or not for profit organisations including other businesses
Department for Education,NATIONAL COLLEGE FOR TEACHING & LEADERSHIP,20/10/2017,Grants,Delivery Directorate,ASHTON ON MERSEY SCHOOL,1041013495,35000,Grants to educational establishments or not for profit organisations including other businesses
Department for Education,NATIONAL COLLEGE FOR TEACHING & LEADERSHIP,03/10/2017,Grants,Operations Directorate,ASTRA SCITT,1041011228,50620.41,Grants to educational establishments or not for profit organisations including other businesses
Department for Education,DEPARTMENT FOR EDUCATION,25/10/2017,Programme costs,Early Years Group,ATKINS LTD,1041013914,86533.82,Funding to deliver policies (excluding consultancy) paid to third parties via a service delivery contract
Department for Education,DEPARTMENT FOR EDUCATION,25/10/2017,Programme costs,Early Years Group,ATKINS LTD,1041013914,17306.76,Funding to deliver policies (excluding consultancy) paid to third parties via a service delivery contract
Department for Education,NATIONAL COLLEGE FOR TEACHING & LEADERSHIP,11/10/2017,Grants,Delivery Directorate,AYLESBURY HIGH SCHOOL,1041012257,50000,Grants to educational establishments or not for profit organisations including other businesses
Department for Education,NATIONAL COLLEGE FOR TEACHING & LEADERSHIP,17/10/2017,Grants,Delivery Directorate,BACKWELL SCHOOL,1041013026,33000,Grants to educational establishments or not for profit organisations including other businesses
Department for Education,DEPARTMENT FOR EDUCATION,20/10/2017,Grants,"Accountability, Curriculum and Qualifications Group",BALCARRAS SCHOOL,1041013427,240000,Grants to educational establishments or not for profit organisations including other businesses
Department for Education,DEPARTMENT FOR EDUCATION,27/10/2017,Grants,Academies Regional Delivery Group,BALDERSBY ST JAMES CE PRIMARY SCHOOL,1041014216,25000,Grants to educational establishments or not for profit organisations including other businesses
Department for Education,DEPARTMENT FOR EDUCATION,17/10/2017,Professional Services Consultancy and Contingent Labour,Student Finance and Analysis Group,BARCLAYS BANK PLC,1041012859,142940.64,"Fees / expenses of professionals such as auditors, accountants, lawyers, etc. engaged to provide advice or opinion on how to affect something"
Department for Education,DEPARTMENT FOR EDUCATION,03/10/2017,Grants,Strategy and Social Mobility and Opportunity Areas Group,BARNARDOS,1041011461,154116.14,Grants to educational establishments or not for profit organisations including other businesses
Department for Education,DEPARTMENT FOR EDUCATION,30/10/2017,Grants,Government Equalities Office,BARNARDOS,1041014382,43929,Grants to educational establishments or not for profit organisations including other businesses
Department for Education,DEPARTMENT FOR EDUCATION,02/10/2017,Programme costs,Adoption and Children in Care Division,BARNARDO'S,1041011127,32948.97,Funding to deliver policies (excluding consultancy) paid to third parties via a service delivery contract
Department for Education,NATIONAL COLLEGE FOR TEACHING & LEADERSHIP,20/10/2017,Grants,Delivery Directorate,BARR BEACON SCHOOL,1041013379,52500,Grants to educational establishments or not for profit organisations including other businesses
Department for Education,NATIONAL COLLEGE FOR TEACHING & LEADERSHIP,03/10/2017,Grants,Operations Directorate,BARR BEACON SCITT,1041011207,73625.13,Grants to educational establishments or not for profit organisations including other businesses
Department for Education,DEPARTMENT FOR EDUCATION,11/10/2017,Grants,Academies Regional Delivery Group,BASSENTHWAITE PRIMARY SCHOOL,1041012423,25000,Grants to educational establishments or not for profit organisations including other businesses
Department for Education,NATIONAL COLLEGE FOR TEACHING & LEADERSHIP,03/10/2017,Grants,Operations Directorate,BATH SPA UNIVERSITY,1041011348,163494.36,Grants to educational establishments or not for profit organisations including other businesses
Department for Education,DEPARTMENT FOR EDUCATION,20/10/2017,Grants,"Accountability, Curriculum and Qualifications Group",BEAUCHAMP COLLEGE,1041013530,240000,Grants to educational establishments or not for profit organisations including other businesses
Department for Education,NATIONAL COLLEGE FOR TEACHING & LEADERSHIP,24/10/2017,Grants,Delivery Directorate,BEDENWELL INFANT & NURSERY SCHOOL,1041013739,40000,Grants to educational establishments or not for profit organisations including other businesses
Department for Education,DEPARTMENT FOR EDUCATION,09/10/2017,Grants,Academies Regional Delivery Group,BEECH HILL SCHOOL,1041011986,70000,Grants to educational establishments or not for profit organisations including other businesses
Department for Education,NATIONAL COLLEGE FOR TEACHING & LEADERSHIP,30/10/2017,Grants,Delivery Directorate,BELGRAVE ST BARTHOLOMEWS ACADEMY TS ACCOUNT,1041014388,30550,Grants to educational establishments or not for profit organisations including other businesses
Department for Education,DEPARTMENT FOR EDUCATION,20/10/2017,Grants,"Accountability, Curriculum and Qualifications Group",BELLEVILLE PRIMARY SCHOOL,1041013381,240000,Grants to educational establishments or not for profit organisations including other businesses
Department for Education,NATIONAL COLLEGE FOR TEACHING & LEADERSHIP,11/10/2017,Grants,Delivery Directorate,BELLEVILLE PRIMARY SCHOOL TS ACCOUNT,1041012374,40000,Grants to educational establishments or not for profit organisations including other businesses
Department for Education,DEPARTMENT FOR EDUCATION,05/10/2017,Grants,Academies Regional Delivery Group,BENGEWORTH MULTI ACADEMY TRUST,1041011705,70000,Grants to educational establishments or not for profit organisations including other businesses
Department for Education,NATIONAL COLLEGE FOR TEACHING & LEADERSHIP,03/10/2017,Grants,Operations Directorate,BILLERICAY EDUCATIONAL CONSORTIUM,1041011223,35964.18,Grants to educational establishments or not for profit organisations including other businesses
Department for Education,NATIONAL COLLEGE FOR TEACHING & LEADERSHIP,03/10/2017,Grants,Operations Directorate,BIRMINGHAM CITY UNIVERSITY,1041011331,234772.74,Grants to educational establishments or not for profit organisations including other businesses
Department for Education,DEPARTMENT FOR EDUCATION,20/10/2017,Grants,"Accountability, Curriculum and Qualifications Group",BISHOP CHALLONER CATHOLIC COLLEGE,1041013414,240000,Grants to educational establishments or not for profit organisations including other businesses
Department for Education,NATIONAL COLLEGE FOR TEACHING & LEADERSHIP,20/10/2017,Grants,Delivery Directorate,BISHOP CHALLONER CATHOLIC COLLEGE,1041013414,247250,Grants to educational establishments or not for profit organisations including other businesses
Department for Education,NATIONAL COLLEGE FOR TEACHING & LEADERSHIP,03/10/2017,Grants,Operations Directorate,BISHOP GROSSETESTE COLLEGE,1041011329,148115.88,Grants to educational establishments or not for profit organisations including other businesses
Department for Education,NATIONAL COLLEGE FOR TEACHING & LEADERSHIP,20/10/2017,Grants,Delivery Directorate,BITTERNE PARK SCHOOL TS ACC,1041013517,67500,Grants to educational establishments or not for profit organisations including other businesses
Department for Education,DEPARTMENT FOR EDUCATION,11/10/2017,Grants,Strategy and Social Mobility and Opportunity Areas Group,BLACKPOOL BOROUGH COUNCIL,1041012319,500000,Grants to local authorities / other establishments within aggregate external funding or aggregate exchequer grant
Department for Education,NATIONAL COLLEGE FOR TEACHING & LEADERSHIP,11/10/2017,Grants,Delivery Directorate,BOURNE WESTFIELD PRIMARY ACADEMY,1041012298,40000,Grants to educational establishments or not for profit organisations including other businesses
Department for Education,DEPARTMENT FOR EDUCATION,27/10/2017,Grants,Strategy and Social Mobility and Opportunity Areas Group,BOURNEMOUTH BOROUGH COUNCIL,1041014278,260353,Grants to local authorities / other establishments within aggregate external funding or aggregate exchequer grant
Department for Education,NATIONAL COLLEGE FOR TEACHING & LEADERSHIP,03/10/2017,Grants,Operations Directorate,BOURNEMOUTH POOLE & DORSET EAST SECONDARY,1041011328,44595,Grants to educational establishments or not for profit organisations including other businesses
Department for Education,DEPARTMENT FOR EDUCATION,16/10/2017,Grants,STRATEGIC IMPROVEMENT - PROTECTED,BOURNVILLE COMMUNITY PRIMARY SCHOOL,1041012742,97000,Grants to educational establishments or not for profit organisations including other businesses
Department for Education,DEPARTMENT FOR EDUCATION,26/10/2017,Grants,Strategy and Social Mobility and Opportunity Areas Group,BRACKNELL FOREST BOROUGH COUNCIL,1041014153,246128.5,Grants to local authorities / other establishments within aggregate external funding or aggregate exchequer grant
Department for Education,NATIONAL COLLEGE FOR TEACHING & LEADERSHIP,03/10/2017,Grants,Operations Directorate,BRADFORD COLLEGE,1041011327,92121.21,Grants to educational establishments or not for profit organisations including other businesses
Department for Education,DEPARTMENT FOR EDUCATION,18/10/2017,Grants,Academies Regional Delivery Group,BRADFORD DIOCESAN ACADEMIES TRUST,1041013187,90000,Grants to educational establishments or not for profit organisations including other businesses
Department for Education,NATIONAL COLLEGE FOR TEACHING & LEADERSHIP,17/10/2017,Grants,Delivery Directorate,BRIDGE FARM PRIMARY SCHOOL,1041012977,39310,Grants to educational establishments or not for profit organisations including other businesses
Department for Education,NATIONAL COLLEGE FOR TEACHING & LEADERSHIP,24/10/2017,Grants,Delivery Directorate,BRIDGEWATER HIGH SCHOOL,1041013891,60000,Grants to educational establishments or not for profit organisations including other businesses
Department for Education,DEPARTMENT FOR EDUCATION,26/10/2017,Grants,Strategy and Social Mobility and Opportunity Areas Group,BRISTOL CITY COUNCIL,1041014106,78750,Grants to local authorities / other establishments within aggregate external funding or aggregate exchequer grant
Department for Education,DEPARTMENT FOR EDUCATION,26/10/2017,Grants,Adoption and Children in Care Division,BRISTOL CITY COUNCIL,1041014106,37529,Grants to local authorities / other establishments within aggregate external funding or aggregate exchequer grant
Department for Education,DEPARTMENT FOR EDUCATION,16/10/2017,Grants,Free Schools Group,BRITANNIA EDUCATION TRUST,1041012753,30000,Grants to educational establishments or not for profit organisations including other businesses
Department for Education,DEPARTMENT FOR EDUCATION,23/10/2017,Learning and Development,Insight Resources and Transformation Group,BRITISH COUNCIL,1041013622,1125145,Staff training and conferences including related travel costs
Department for Education,DEPARTMENT FOR EDUCATION,23/10/2017,Learning and Development,Insight Resources and Transformation Group,BRITISH COUNCIL,1041013622,225029,Staff training and conferences including related travel costs
Department for Education,NATIONAL COLLEGE FOR TEACHING & LEADERSHIP,30/10/2017,Grants,Delivery Directorate,BROADFORD PRIMARY SCHOOL,1041014364,50000,Grants to educational establishments or not for profit organisations including other businesses
Department for Education,NATIONAL COLLEGE FOR TEACHING & LEADERSHIP,11/10/2017,Grants,Delivery Directorate,BROADMEADOW SPECIAL SCHOOL,1041012453,40000,Grants to educational establishments or not for profit organisations including other businesses
Department for Education,NATIONAL COLLEGE FOR TEACHING & LEADERSHIP,03/10/2017,Grants,Operations Directorate,BROMLEY SCHOOLS COLLEGIATE,1041011310,34529.04,Grants to educational establishments or not for profit organisations including other businesses
Department for Education,NATIONAL COLLEGE FOR TEACHING & LEADERSHIP,11/10/2017,Grants,Delivery Directorate,BROOKE WESTON CTC,1041012352,40000,Grants to educational establishments or not for profit organisations including other businesses
Department for Education,NATIONAL COLLEGE FOR TEACHING & LEADERSHIP,03/10/2017,Grants,Operations Directorate,BRUNEL UNIVERSITY,1041011309,87823.89,Grants to educational establishments or not for profit organisations including other businesses
Department for Education,DEPARTMENT FOR EDUCATION,20/10/2017,ICT,Digital and Technology Group,BT GLOBAL SERVICES,1041013409,25829.27,ICT Services
Department for Education,DEPARTMENT FOR EDUCATION,20/10/2017,ICT,Digital and Technology Group,BT GLOBAL SERVICES,1041013409,135252.1,ICT Hardware
Department for Education,NATIONAL COLLEGE FOR TEACHING & LEADERSHIP,11/10/2017,Grants,Delivery Directorate,BUCKDEN CE PRIMARY SCHOOL,1041012476,60000,Grants to educational establishments or not for profit organisations including other businesses
Department for Education,DEPARTMENT FOR EDUCATION,03/10/2017,Professional Services Consultancy and Contingent Labour,Strategy and Social Mobility and Opportunity Areas Group,BURGES SALMON COMPANY LTD,1041011503,34035,"Fees / expenses of professionals such as auditors, accountants, lawyers, etc. engaged to provide advice or opinion on how to affect something"
Department for Education,DEPARTMENT FOR EDUCATION,03/10/2017,Professional Services Consultancy and Contingent Labour,Strategy and Social Mobility and Opportunity Areas Group,BURGES SALMON COMPANY LTD,1041011503,6807,"Fees / expenses of professionals such as auditors, accountants, lawyers, etc. engaged to provide advice or opinion on how to affect something"
Department for Education,DEPARTMENT FOR EDUCATION,06/10/2017,Professional Services Consultancy and Contingent Labour,Strategy and Social Mobility and Opportunity Areas Group,BURGES SALMON COMPANY LTD,1041011866,34035,"Fees / expenses of professionals such as auditors, accountants, lawyers, etc. engaged to provide advice or opinion on how to affect something"
Department for Education,DEPARTMENT FOR EDUCATION,06/10/2017,Professional Services Consultancy and Contingent Labour,Strategy and Social Mobility and Opportunity Areas Group,BURGES SALMON COMPANY LTD,1041011866,6807,"Fees / expenses of professionals such as auditors, accountants, lawyers, etc. engaged to provide advice or opinion on how to affect something"
Department for Education,NATIONAL COLLEGE FOR TEACHING & LEADERSHIP,17/10/2017,Grants,Delivery Directorate,BYGROVE PRIMARY SCHOOL,1041012910,40000,Grants to educational establishments or not for profit organisations including other businesses
Department for Education,DEPARTMENT FOR EDUCATION,16/10/2017,Grants,STRATEGIC IMPROVEMENT - PROTECTED,BYRCHALL HIGH SCHOOL,1041012828,33557,Grants to educational establishments or not for profit organisations including other businesses
Department for Education,NATIONAL COLLEGE FOR TEACHING & LEADERSHIP,17/10/2017,Grants,Delivery Directorate,BYRON COURT PRIMARY SCHOOL,1041013038,40000,Grants to educational establishments or not for profit organisations including other businesses
Department for Education,NATIONAL COLLEGE FOR TEACHING & LEADERSHIP,03/10/2017,Grants,Operations Directorate,CABOT LEARNING FEDERATION,1041011279,45222.3,Grants to educational establishments or not for profit organisations including other businesses
Department for Education,DEPARTMENT FOR EDUCATION,23/10/2017,Grants,"Accountability, Curriculum and Qualifications Group",CABOT LEARNING FEDERATION,1041013609,240000,Grants to educational establishments or not for profit organisations including other businesses
Department for Education,DEPARTMENT FOR EDUCATION,11/10/2017,Professional Services Consultancy and Contingent Labour,Digital and Technology Group,CADENCE PARTNERSHIP,1041012296,121164.8,"Advisory services including fees, travel and expenses"
Department for Education,DEPARTMENT FOR EDUCATION,24/10/2017,Professional Services Consultancy and Contingent Labour,Digital and Technology Group,CADENCE PARTNERSHIP,1041013832,144643.05,"Advisory services including fees, travel and expenses"
Department for Education,DEPARTMENT FOR EDUCATION,19/10/2017,Professional Services Consultancy and Contingent Labour,Digital and Technology Group,CADENCE PARTNERSHIP LLP,1041013340,27710,"Advisory services including fees, travel and expenses"
Department for Education,DEPARTMENT FOR EDUCATION,16/10/2017,Grants,Adoption and Children in Care Division,CAMBRIDGE EDUCATION,1041012829,2150000,Grants to educational establishments or not for profit organisations including other businesses
Department for Education,DEPARTMENT FOR EDUCATION,11/10/2017,Grants,Free Schools Group,CAMBRIDGE MERIDIAN ACADEMIES TRUST,1041012258,30000,Grants to educational establishments or not for profit organisations including other businesses
Department for Education,DEPARTMENT FOR EDUCATION,11/10/2017,Grants,Free Schools Group,CAMBRIDGE MERIDIAN ACADEMIES TRUST,1041012258,30000,Grants to educational establishments or not for profit organisations including other businesses
Department for Education,DEPARTMENT FOR EDUCATION,10/10/2017,Grants,System Reform Group,CAMBRIDGESHIRE COUNTY COUNCIL,1041012154,39717,Grants to local authorities / other establishments within aggregate external funding or aggregate exchequer grant
Department for Education,DEPARTMENT FOR EDUCATION,11/10/2017,Grants,Strategy and Social Mobility and Opportunity Areas Group,CAMBRIDGESHIRE COUNTY COUNCIL,1041012303,100000,Grants to local authorities / other establishments within aggregate external funding or aggregate exchequer grant
Department for Education,NATIONAL COLLEGE FOR TEACHING & LEADERSHIP,03/10/2017,Grants,Operations Directorate,CANTERBURY CHRIST CHURCH UNIVERSITY,1041011308,249725.16,Grants to educational establishments or not for profit organisations including other businesses
Department for Education,DEPARTMENT FOR EDUCATION,02/10/2017,Professional Services Consultancy and Contingent Labour,Digital and Technology Group,CAPGEMINI UK PLC,1041011131,26510.64,"Advisory services including fees, travel and expenses"
Department for Education,DEPARTMENT FOR EDUCATION,04/10/2017,ICT,Data Group,CAPGEMINI UK PLC,1041011574,70700,ICT Services
Department for Education,DEPARTMENT FOR EDUCATION,09/10/2017,ICT,Digital and Technology Group,CAPGEMINI UK PLC,1041011913,74207.69,ICT Services - hardware maintenance and support
Department for Education,DEPARTMENT FOR EDUCATION,09/10/2017,ICT,Digital and Technology Group,CAPGEMINI UK PLC,1041011913,74608.83,ICT Services - hardware maintenance and support
Department for Education,DEPARTMENT FOR EDUCATION,18/10/2017,Facilities,Digital and Technology Group,CAPGEMINI UK PLC,1041013093,184952.4,"Maintenance, repair and cleaning including of equipment"
Department for Education,DEPARTMENT FOR EDUCATION,10/10/2017,Programme costs,Teachers and Teaching Group,CAPITA BUSINESS SERVICES,1041012232,52049.29,Funding to deliver policies (excluding consultancy) paid to third parties via a service delivery contract
Department for Education,DEPARTMENT FOR EDUCATION,12/10/2017,Programme costs,Teachers and Teaching Group,CAPITA BUSINESS SERVICES,1041012518,57673.8,Funding to deliver policies (excluding consultancy) paid to third parties via a service delivery contract
Department for Education,DEPARTMENT FOR EDUCATION,12/10/2017,Programme costs,Teachers and Teaching Group,CAPITA BUSINESS SERVICES,1041012518,817321.64,Funding to deliver policies (excluding consultancy) paid to third parties via a service delivery contract
Department for Education,DEPARTMENT FOR EDUCATION,18/10/2017,Programme costs,Teachers and Teaching Group,CAPITA BUSINESS SERVICES,1041013176,53843.39,Funding to deliver policies (excluding consultancy) paid to third parties via a service delivery contract
Department for Education,DEPARTMENT FOR EDUCATION,18/10/2017,Programme costs,Teachers and Teaching Group,CAPITA BUSINESS SERVICES,1041013176,141619.33,Funding to deliver policies (excluding consultancy) paid to third parties via a service delivery contract
Department for Education,NATIONAL COLLEGE FOR TEACHING & LEADERSHIP,17/10/2017,Communications,Operations Directorate,CARAT,1041013055,29645.09,"Publicity, advertising, media advertising campaigns (excluding recruitment adverts)"
Department for Education,NATIONAL COLLEGE FOR TEACHING & LEADERSHIP,17/10/2017,Communications,Operations Directorate,CARAT,1041013055,47775.88,"Publicity, advertising, media advertising campaigns (excluding recruitment adverts)"
Department for Education,NATIONAL COLLEGE FOR TEACHING & LEADERSHIP,17/10/2017,Communications,Operations Directorate,CARAT,1041013055,88935.26,"Publicity, advertising, media advertising campaigns (excluding recruitment adverts)"
Department for Education,NATIONAL COLLEGE FOR TEACHING & LEADERSHIP,18/10/2017,Communications,Operations Directorate,CARAT,1041013147,36279.94,"Publicity, advertising, media advertising campaigns (excluding recruitment adverts)"
Department for Education,NATIONAL COLLEGE FOR TEACHING & LEADERSHIP,20/10/2017,Communications,Operations Directorate,CARAT,1041013474,24070.43,"Publicity, advertising, media advertising campaigns (excluding recruitment adverts)"
Department for Education,NATIONAL COLLEGE FOR TEACHING & LEADERSHIP,20/10/2017,Communications,Operations Directorate,CARAT,1041013474,4809.55,"Publicity, advertising, media advertising campaigns (excluding recruitment adverts)"
Department for Education,NATIONAL COLLEGE FOR TEACHING & LEADERSHIP,03/10/2017,Grants,Delivery Directorate,CARDINAL HUME CATHOLIC SCHOOL,1041011396,40000,Grants to educational establishments or not for profit organisations including other businesses
Department for Education,NATIONAL COLLEGE FOR TEACHING & LEADERSHIP,24/10/2017,Grants,Delivery Directorate,CARMEL COLLEGE A CATHOLIC ACADEMY,1041013859,39600,Grants to educational establishments or not for profit organisations including other businesses
Department for Education,NATIONAL COLLEGE FOR TEACHING & LEADERSHIP,03/10/2017,Grants,Operations Directorate,CARMEL TEACHER TRAINING PARTNERSHIP,1041011307,85520.34,Grants to educational establishments or not for profit organisations including other businesses
Department for Education,DEPARTMENT FOR EDUCATION,13/10/2017,Grants,Academies Regional Delivery Group,CARNFORTH HIGH SCHOOL,1041012618,25000,Grants to educational establishments or not for profit organisations including other businesses
Department for Education,NATIONAL COLLEGE FOR TEACHING & LEADERSHIP,03/10/2017,Grants,Delivery Directorate,CASTLE HILL SCHOOL,1041011203,39000,Grants to educational establishments or not for profit organisations including other businesses
Department for Education,DEPARTMENT FOR EDUCATION,16/10/2017,Grants,STRATEGIC IMPROVEMENT - PROTECTED,CASTLETON & GLAISDALE FEDERATION,1041012781,42900,Grants to educational establishments or not for profit organisations including other businesses
Department for Education,DEPARTMENT FOR EDUCATION,02/10/2017,ICT,Digital and Technology Group,CDW LTD,1041011092,248256.3,ICT Services
Department for Education,DEPARTMENT FOR EDUCATION,02/10/2017,ICT,Digital and Technology Group,CDW LTD,1041011092,36426.3,ICT Software
Department for Education,DEPARTMENT FOR EDUCATION,16/10/2017,Grants,STRATEGIC IMPROVEMENT - PROTECTED,CFBT SCHOOLS TRUST,1041012784,79450,Grants to educational establishments or not for profit organisations including other businesses
Department for Education,NATIONAL COLLEGE FOR TEACHING & LEADERSHIP,03/10/2017,Grants,Operations Directorate,CFBT THE DEEPINGS SCITT,1041011498,26087.13,Grants to educational establishments or not for profit organisations including other businesses
Department for Education,NATIONAL COLLEGE FOR TEACHING & LEADERSHIP,11/10/2017,Grants,Delivery Directorate,CHALLNEY HIGH SCHOOL FOR BOYS,1041012427,40000,Grants to educational establishments or not for profit organisations including other businesses
Department for Education,NATIONAL COLLEGE FOR TEACHING & LEADERSHIP,27/10/2017,Grants,Delivery Directorate,CHALLNEY HIGH SCHOOL FOR BOYS,1041014196,56000,Grants to educational establishments or not for profit organisations including other businesses
Department for Education,DEPARTMENT FOR EDUCATION,16/10/2017,Grants,STRATEGIC IMPROVEMENT - PROTECTED,CHARLES DICKENS PRIMARY SCHOOL,1041012723,109250,Grants to educational establishments or not for profit organisations including other businesses
Department for Education,NATIONAL COLLEGE FOR TEACHING & LEADERSHIP,03/10/2017,Grants,Operations Directorate,CHEADLE HULME HIGH SCHOOL,1041011426,33750,Grants to educational establishments or not for profit organisations including other businesses
Department for Education,DEPARTMENT FOR EDUCATION,27/10/2017,Grants,STRATEGIC IMPROVEMENT - PROTECTED,CHEADLE HULME HIGH SCHOOL,1041014257,136602,Grants to educational establishments or not for profit organisations including other businesses
Department for Education,NATIONAL COLLEGE FOR TEACHING & LEADERSHIP,11/10/2017,Grants,Delivery Directorate,CHESTERTON PRIMARY SCHOOL TS ACCOUNT,1041012386,39412,Grants to educational establishments or not for profit organisations including other businesses
Department for Education,NATIONAL COLLEGE FOR TEACHING & LEADERSHIP,03/10/2017,Grants,Delivery Directorate,CHICHESTER HIGH SCHOOL,1041011258,50000,Grants to educational establishments or not for profit organisations including other businesses
Department for Education,DEPARTMENT FOR EDUCATION,05/10/2017,Grants,Free Schools Group,CHILTERN LEARNING TRUST,1041011711,30000,Grants to educational establishments or not for profit organisations including other businesses
Department for Education,NATIONAL COLLEGE FOR TEACHING & LEADERSHIP,03/10/2017,Grants,Operations Directorate,CHILTERN TRAINING GROUP,1041011306,45865.53,Grants to educational establishments or not for profit organisations including other businesses
Department for Education,DEPARTMENT FOR EDUCATION,27/10/2017,Grants,Academies Regional Delivery Group,CHILTON PRIMARY SCHOOL,1041014227,25000,Grants to educational establishments or not for profit organisations including other businesses
Department for Education,NATIONAL COLLEGE FOR TEACHING & LEADERSHIP,20/10/2017,Grants,Delivery Directorate,CHIPPING CAMPDEN SCHOOL,1041013384,83274,Grants to educational establishments or not for profit organisations including other businesses
Department for Education,NATIONAL COLLEGE FOR TEACHING & LEADERSHIP,17/10/2017,Grants,Delivery Directorate,CHIPSTEAD VALLEY PRIMARY SCHOOL,1041013007,40000,Grants to educational establishments or not for profit organisations including other businesses
Department for Education,DEPARTMENT FOR EDUCATION,16/10/2017,Grants,STRATEGIC IMPROVEMENT - PROTECTED,CHRIST CHURCH COFE AIDED PRIMARY SCHOOL,1041012711,89000,Grants to educational establishments or not for profit organisations including other businesses
Department for Education,DEPARTMENT FOR EDUCATION,20/10/2017,Grants,"Accountability, Curriculum and Qualifications Group",CHURCHILL COMMUNITY COLLEGE,1041013432,240000,Grants to educational establishments or not for profit organisations including other businesses
Department for Education,NATIONAL COLLEGE FOR TEACHING & LEADERSHIP,20/10/2017,Grants,Delivery Directorate,CHURCHILL COMMUNITY COLLEGE,1041013432,47250,Grants to educational establishments or not for profit organisations including other businesses
Department for Education,DEPARTMENT FOR EDUCATION,11/10/2017,Grants,Strategy and Social Mobility and Opportunity Areas Group,CITY OF BRADFORD METROPOLITAN DISTRICT COUNCIL,1041012320,100000,Grants to local authorities / other establishments within aggregate external funding or aggregate exchequer grant
Department for Education,DEPARTMENT FOR EDUCATION,26/10/2017,Grants,Strategy and Social Mobility and Opportunity Areas Group,CITY OF BRADFORD METROPOLITAN DISTRICT COUNCIL,1041014107,1258900,Grants to local authorities / other establishments within aggregate external funding or aggregate exchequer grant
Department for Education,DEPARTMENT FOR EDUCATION,26/10/2017,Grants,Strategy and Social Mobility and Opportunity Areas Group,CITY OF WESTMINSTER,1041014141,217761,Grants to local authorities / other establishments within aggregate external funding or aggregate exchequer grant
Department for Education,DEPARTMENT FOR EDUCATION,04/10/2017,Personnel Related,Insight Resources and Transformation Group,CIVIL SERVICE RESOURCING,1041011552,42951.35, Recruitment costs
Department for Education,DEPARTMENT FOR EDUCATION,04/10/2017,Personnel Related,Insight Resources and Transformation Group,CIVIL SERVICE RESOURCING,1041011552,8590.27, Recruitment costs
Department for Education,DEPARTMENT FOR EDUCATION,11/10/2017,Grants,Free Schools Group,CLEVEDON SCHOOL,1041012464,25000,Grants to educational establishments or not for profit organisations including other businesses
Department for Education,DEPARTMENT FOR EDUCATION,30/10/2017,Grants,Adoption and Children in Care Division,CLIFTON CHILDRENS SOCIETY,1041014353,47182.44,Grants to educational establishments or not for profit organisations including other businesses
Department for Education,NATIONAL COLLEGE FOR TEACHING & LEADERSHIP,23/10/2017,Grants,Delivery Directorate,COLCHESTER COUNTY HIGH SCHOOL FOR GIRLS,1041013621,29730,Grants to educational establishments or not for profit organisations including other businesses
Department for Education,NATIONAL COLLEGE FOR TEACHING & LEADERSHIP,30/10/2017,Grants,Delivery Directorate,COLCHESTER COUNTY HIGH SCHOOL FOR GIRLS,1041014358,40000,Grants to educational establishments or not for profit organisations including other businesses
Department for Education,NATIONAL COLLEGE FOR TEACHING & LEADERSHIP,03/10/2017,Grants,Operations Directorate,COLCHESTER TEACHER TRAINING CONSORTIUM,1041011479,57159.63,Grants to educational establishments or not for profit organisations including other businesses
Department for Education,DEPARTMENT FOR EDUCATION,09/10/2017,Grants,Teachers and Teaching Group,COLLEGE OF TEACHING LTD,1041011988,142000,Grants to educational establishments or not for profit organisations including other businesses
Department for Education,NATIONAL COLLEGE FOR TEACHING & LEADERSHIP,24/10/2017,Grants,Delivery Directorate,COLLINGWOOD PRIMARY SCHOOL,1041013894,36700,Grants to educational establishments or not for profit organisations including other businesses
Department for Education,NATIONAL COLLEGE FOR TEACHING & LEADERSHIP,20/10/2017,Grants,Delivery Directorate,COLUMBUS SCHOOL & COLLEGE,1041013549,49500,Grants to educational establishments or not for profit organisations including other businesses
Department for Education,DEPARTMENT FOR EDUCATION,27/10/2017,Grants,STRATEGIC IMPROVEMENT - PROTECTED,COMBERTON VILLAGE COLLEGE,1041014275,26142,Grants to educational establishments or not for profit organisations including other businesses
Department for Education,DEPARTMENT FOR EDUCATION,10/10/2017,Professional Services Consultancy and Contingent Labour,Digital and Technology Group,COMPUTACENTER (UK) LTD,1041012157,65734.48,Costs related to temporary workers
Department for Education,DEPARTMENT FOR EDUCATION,10/10/2017,Professional Services Consultancy and Contingent Labour,Digital and Technology Group,COMPUTACENTER (UK) LTD,1041012157,13146.9,Costs related to temporary workers
Department for Education,DEPARTMENT FOR EDUCATION,11/10/2017,Grants,Academies Regional Delivery Group,CONNECTED LEARNING TRUST,1041012380,25000,Grants to educational establishments or not for profit organisations including other businesses
Department for Education,DEPARTMENT FOR EDUCATION,06/10/2017,ICT,Ministerial and Public Communications Group,CONTENT SUPPORT SERVICES LTD,1041011854,76494.16,Networking systems
Department for Education,NATIONAL COLLEGE FOR TEACHING & LEADERSHIP,17/10/2017,Grants,Delivery Directorate,COOMBE GIRLS SCHOOL,1041012911,25000,Grants to educational establishments or not for profit organisations including other businesses
Department for Education,DEPARTMENT FOR EDUCATION,16/10/2017,Programme costs,Adoption and Children in Care Division,CORAM,1041012803,-53778.08,Funding to deliver policies (excluding consultancy) paid to third parties via a service delivery contract
Department for Education,DEPARTMENT FOR EDUCATION,16/10/2017,Programme costs,Adoption and Children in Care Division,CORAM,1041012803,53778.08,Funding to deliver policies (excluding consultancy) paid to third parties via a service delivery contract
Department for Education,DEPARTMENT FOR EDUCATION,16/10/2017,Professional Services Other,Adoption and Children in Care Division,CORAM,1041012803,53778.08,Funding to deliver policies (excluding consultancy) paid to third parties via a service delivery contract
Department for Education,DEPARTMENT FOR EDUCATION,24/10/2017,Professional Services Other,Adoption and Children in Care Division,CORAM,1041013829,53778.08,Funding to deliver policies (excluding consultancy) paid to third parties via a service delivery contract
Department for Education,DEPARTMENT FOR EDUCATION,10/10/2017,Grants,System Reform Group,CORNWALL COUNCIL,1041012030,47300,Grants to local authorities / other establishments within aggregate external funding or aggregate exchequer grant
Department for Education,DEPARTMENT FOR EDUCATION,26/10/2017,Grants,Strategy and Social Mobility and Opportunity Areas Group,CORNWALL COUNCIL,1041014115,360071,Grants to local authorities / other establishments within aggregate external funding or aggregate exchequer grant
Department for Education,NATIONAL COLLEGE FOR TEACHING & LEADERSHIP,03/10/2017,Grants,Operations Directorate,CORNWALL SCITT,1041011303,91735.56,Grants to educational establishments or not for profit organisations including other businesses
Department for Education,DEPARTMENT FOR EDUCATION,26/10/2017,Grants,Strategy and Social Mobility and Opportunity Areas Group,COVENTRY CITY COUNCIL,1041014157,64894,Grants to local authorities / other establishments within aggregate external funding or aggregate exchequer grant
Department for Education,NATIONAL COLLEGE FOR TEACHING & LEADERSHIP,20/10/2017,Grants,Delivery Directorate,CRANFORD COMMUNITY COLLEGE,1041013413,62400,Grants to educational establishments or not for profit organisations including other businesses
Department for Education,NATIONAL COLLEGE FOR TEACHING & LEADERSHIP,23/10/2017,Grants,Delivery Directorate,CROWN HILLS COMMUNITY COLLEGE,1041013634,26500,Grants to educational establishments or not for profit organisations including other businesses
Department for Education,DEPARTMENT FOR EDUCATION,13/10/2017,Grants,Academies Regional Delivery Group,CUSGARNE COMMUNITY PRIMARY SCHOOL,1041012619,25000,Grants to educational establishments or not for profit organisations including other businesses
Department for Education,NATIONAL COLLEGE FOR TEACHING & LEADERSHIP,20/10/2017,Grants,Delivery Directorate,DARTFORD GRAMMAR SCHOOL,1041013431,30984.2,Grants to educational establishments or not for profit organisations including other businesses
Department for Education,NATIONAL COLLEGE FOR TEACHING & LEADERSHIP,11/10/2017,Grants,Delivery Directorate,DAVIES LANE PRIMARY SCHOOL,1041012401,50000,Grants to educational establishments or not for profit organisations including other businesses
Department for Education,NATIONAL COLLEGE FOR TEACHING & LEADERSHIP,11/10/2017,Grants,Delivery Directorate,DEBDEN PARK HIGH SCHOOL,1041012286,40000,Grants to educational establishments or not for profit organisations including other businesses
Department for Education,DEPARTMENT FOR EDUCATION,09/10/2017,Grants,Academies Regional Delivery Group,DELIUS SPECIAL SCHOOL,1041011981,25000,Grants to educational establishments or not for profit organisations including other businesses
Department for Education,DEPARTMENT FOR EDUCATION,20/10/2017,Professional Services Consultancy and Contingent Labour,Adoption and Children in Care Division,DELOITTE,1041013494,73328.57,"Fees / expenses of professionals such as auditors, accountants, lawyers, etc. engaged to provide advice or opinion on how to affect something"
Department for Education,DEPARTMENT FOR EDUCATION,18/10/2017,Travel,Finance and Commercial Group,DELOITTE LLP,1041013149,51750,Governors' expenses
Department for Education,DEPARTMENT FOR EDUCATION,18/10/2017,Travel,Finance and Commercial Group,DELOITTE LLP,1041013149,125546,Governors' expenses
Department for Education,NATIONAL COLLEGE FOR TEACHING & LEADERSHIP,03/10/2017,Grants,Operations Directorate,DENBIGH SCHOOL,1041011472,30120.03,Grants to educational establishments or not for profit organisations including other businesses
Department for Education,DEPARTMENT FOR EDUCATION,20/10/2017,Grants,"Accountability, Curriculum and Qualifications Group",DENBIGH SCHOOL,1041013394,240000,Grants to educational establishments or not for profit organisations including other businesses
Department for Education,DEPARTMENT FOR EDUCATION,23/10/2017,Grants,Student Finance and Analysis Group,DEPARTMENT FOR THE ECONOMY,10000404,6619781,Current grant funding to other government departments for DfE's contribution to jointly funded programmes 
Department for Education,DEPARTMENT FOR EDUCATION,11/10/2017,Grants,Strategy and Social Mobility and Opportunity Areas Group,DERBY CITY COUNCIL,1041012304,500000,Grants to local authorities / other establishments within aggregate external funding or aggregate exchequer grant
Department for Education,DEPARTMENT FOR EDUCATION,26/10/2017,Grants,Strategy and Social Mobility and Opportunity Areas Group,DERBY CITY COUNCIL,1041014126,327233,Grants to local authorities / other establishments within aggregate external funding or aggregate exchequer grant
Department for Education,DEPARTMENT FOR EDUCATION,10/10/2017,Grants,System Reform Group,DERBYSHIRE COUNTY COUNCIL,1041012012,56225,Grants to local authorities / other establishments within aggregate external funding or aggregate exchequer grant
Department for Education,NATIONAL COLLEGE FOR TEACHING & LEADERSHIP,30/10/2017,Grants,Delivery Directorate,DERBYSHIRE COUNTY COUNCIL,1041014339,40000,Grants to educational establishments or not for profit organisations including other businesses
Department for Education,DEPARTMENT FOR EDUCATION,10/10/2017,Grants,System Reform Group,DEVON COUNTY COUNCIL,1041012125,43642,Grants to local authorities / other establishments within aggregate external funding or aggregate exchequer grant
Department for Education,DEPARTMENT FOR EDUCATION,27/10/2017,Grants,Strategy and Social Mobility and Opportunity Areas Group,DEVON COUNTY COUNCIL,1041014170,54611,Grants to local authorities / other establishments within aggregate external funding or aggregate exchequer grant
Department for Education,NATIONAL COLLEGE FOR TEACHING & LEADERSHIP,03/10/2017,Grants,Operations Directorate,DEYES HIGH SCHOOL,1041011452,47421.36,Grants to educational establishments or not for profit organisations including other businesses
Department for Education,DEPARTMENT FOR EDUCATION,18/10/2017,Grants,Special Educational Needs and Disadvantage Group,DIANA AWARD,1041013146,70000,Grants to educational establishments or not for profit organisations including other businesses
Department for Education,DEPARTMENT FOR EDUCATION,18/10/2017,Grants,Academies Regional Delivery Group,DIOCESE OF SOUTHWELL & NOTTINGHAM MULTI ACADEMY TRUST,1041013175,70000,Grants to educational establishments or not for profit organisations including other businesses
Department for Education,DEPARTMENT FOR EDUCATION,30/10/2017,Grants,Further Education Group,DISABILITY RIGHTS UK,1041014346,40000,Grants to educational establishments or not for profit organisations including other businesses
Department for Education,NATIONAL COLLEGE FOR TEACHING & LEADERSHIP,24/10/2017,Grants,Delivery Directorate,DIVERSE ACADEMIES TRUST,1041013688,40000,Grants to educational establishments or not for profit organisations including other businesses
Department for Education,DEPARTMENT FOR EDUCATION,18/10/2017,Grants,Strategy and Social Mobility and Opportunity Areas Group,DONCASTER CHILDRENS SERVICES TRUST,1041013145,59934,Grants to educational establishments or not for profit organisations including other businesses
Department for Education,NATIONAL COLLEGE FOR TEACHING & LEADERSHIP,03/10/2017,Grants,Operations Directorate,DONCASTER MBC,1041011376,27386.46,Grants to educational establishments or not for profit organisations including other businesses
Department for Education,DEPARTMENT FOR EDUCATION,11/10/2017,Grants,Strategy and Social Mobility and Opportunity Areas Group,DONCASTER MBC,1041012318,100000,Grants to local authorities / other establishments within aggregate external funding or aggregate exchequer grant
Department for Education,DEPARTMENT FOR EDUCATION,10/10/2017,Grants,System Reform Group,DORSET COUNTY COUNCIL,1041012221,39092,Grants to local authorities / other establishments within aggregate external funding or aggregate exchequer grant
Department for Education,DEPARTMENT FOR EDUCATION,16/10/2017,Grants,Strategy and Social Mobility and Opportunity Areas Group,DORSET COUNTY COUNCIL,1041012765,48000,Grants to local authorities / other establishments within aggregate external funding or aggregate exchequer grant
Department for Education,DEPARTMENT FOR EDUCATION,24/10/2017,Grants,Academies Regional Delivery Group,DUDLEY ACADEMIES TRUST,1041013761,91250,Grants to educational establishments or not for profit organisations including other businesses
Department for Education,DEPARTMENT FOR EDUCATION,10/10/2017,Grants,System Reform Group,DURHAM COUNTY COUNCIL,1041012209,80950,Grants to local authorities / other establishments within aggregate external funding or aggregate exchequer grant
Department for Education,DEPARTMENT FOR EDUCATION,02/10/2017,Grants,Academies Regional Delivery Group,DURHAM DIOCESAN MAT,1041011145,75000,Grants to educational establishments or not for profit organisations including other businesses
Department for Education,NATIONAL COLLEGE FOR TEACHING & LEADERSHIP,03/10/2017,Grants,Operations Directorate,DURHAM SECONDARY APPLIED SCITT,1041011524,72774,Grants to educational establishments or not for profit organisations including other businesses
Department for Education,DEPARTMENT FOR EDUCATION,12/10/2017,Student Payments,Student Finance and Analysis Group,DWP,1041012544,12688,Student support payments
Department for Education,DEPARTMENT FOR EDUCATION,12/10/2017,Student Payments,Student Finance and Analysis Group,DWP,1041012544,63440,Student support payments
Department for Education,NATIONAL COLLEGE FOR TEACHING & LEADERSHIP,03/10/2017,Grants,Delivery Directorate,E QUALITAS PROFESSIONAL SERVICES LTD,1041011288,42255,Grants to educational establishments or not for profit organisations including other businesses
Department for Education,NATIONAL COLLEGE FOR TEACHING & LEADERSHIP,03/10/2017,Grants,Operations Directorate,E QUALITAS PROFESSIONAL SERVICES LTD,1041011288,30637.53,Grants to educational establishments or not for profit organisations including other businesses
Department for Education,DEPARTMENT FOR EDUCATION,25/10/2017,Professional Services Other,Strategy and Social Mobility and Opportunity Areas Group,EARLY INTERVENTION FOUNDATION,1041013997,166666,Research and evaluation activities
Department for Education,DEPARTMENT FOR EDUCATION,10/10/2017,Grants,System Reform Group,EAST SUSSEX COUNTY COUNCIL,1041012006,46942,Grants to local authorities / other establishments within aggregate external funding or aggregate exchequer grant
Department for Education,DEPARTMENT FOR EDUCATION,11/10/2017,Grants,Strategy and Social Mobility and Opportunity Areas Group,EAST SUSSEX COUNTY COUNCIL,1041012359,100000,Grants to local authorities / other establishments within aggregate external funding or aggregate exchequer grant
Department for Education,DEPARTMENT FOR EDUCATION,19/10/2017,Grants,Early Years Group,ECORYS UK LTD CHILDCARE BUSINESS GRANT PAYMENTS,1041013327,245434,Grants to educational establishments or not for profit organisations including other businesses
Department for Education,DEPARTMENT FOR EDUCATION,30/10/2017,Energy and Fuels,Property Asset Management Group,EDF ENERGY,1041014372,194800,Electricity supply
Department for Education,DEPARTMENT FOR EDUCATION,27/10/2017,Grants,Academies Regional Delivery Group,EDGBARROW SCHOOL,1041014237,25000,Grants to educational establishments or not for profit organisations including other businesses
Department for Education,NATIONAL COLLEGE FOR TEACHING & LEADERSHIP,03/10/2017,Grants,Delivery Directorate,EDGE HILL UNIVERSITY,1041011356,30555,Grants to educational establishments or not for profit organisations including other businesses
Department for Education,NATIONAL COLLEGE FOR TEACHING & LEADERSHIP,03/10/2017,Grants,Operations Directorate,EDGE HILL UNIVERSITY,1041011356,380081.61,Grants to educational establishments or not for profit organisations including other businesses
Department for Education,DEPARTMENT FOR EDUCATION,26/10/2017,Programme costs,System Reform Group,EDUCATION & EMPLOYERS TASKFORCE,1041014045,65972.5,Funding to deliver policies (excluding consultancy) paid to third parties via a service delivery contract
Department for Education,DEPARTMENT FOR EDUCATION,26/10/2017,Programme costs,System Reform Group,EDUCATION & EMPLOYERS TASKFORCE,1041014045,13194.5,Funding to deliver policies (excluding consultancy) paid to third parties via a service delivery contract
Department for Education,DEPARTMENT FOR EDUCATION,27/10/2017,Professional Services Other,Strategic Analysis and Research Group,EDUCATION DEVELOPMENT TRUST,1041014204,122485,Research and evaluation activities
Department for Education,NATIONAL COLLEGE FOR TEACHING & LEADERSHIP,30/10/2017,Programme costs,Delivery Directorate,EDUCATION DEVELOPMENT TRUST,1041014369,86666.14,Funding to deliver policies (excluding consultancy) paid to third parties via a service delivery contract
Department for Education,NATIONAL COLLEGE FOR TEACHING & LEADERSHIP,30/10/2017,Programme costs,Delivery Directorate,EDUCATION DEVELOPMENT TRUST,1041014369,17333.23,Funding to deliver policies (excluding consultancy) paid to third parties via a service delivery contract
Department for Education,DEPARTMENT FOR EDUCATION,05/10/2017,Grants,Academies Regional Delivery Group,EDUCATION FOR THE 21ST CENTURY,1041011748,25000,Grants to educational establishments or not for profit organisations including other businesses
Department for Education,DEPARTMENT FOR EDUCATION,04/10/2017,Professional Services Other,Digital and Technology Group,EDUSERV,1041011573,187558,Shared corporate accounting services
Department for Education,DEPARTMENT FOR EDUCATION,09/10/2017,Professional Services Consultancy and Contingent Labour,Digital and Technology Group,EDUSERV,1041011912,112500,"Advisory services including fees, travel and expenses"
Department for Education,DEPARTMENT FOR EDUCATION,09/10/2017,Professional Services Consultancy and Contingent Labour,Digital and Technology Group,EDUSERV,1041011912,161767.45,"Advisory services including fees, travel and expenses"
Department for Education,DEPARTMENT FOR EDUCATION,10/10/2017,Professional Services Consultancy and Contingent Labour,Digital and Technology Group,EDUSERV,1041012059,112500,"Advisory services including fees, travel and expenses"
Department for Education,DEPARTMENT FOR EDUCATION,24/10/2017,Professional Services Consultancy and Contingent Labour,Digital and Technology Group,EDUSERV,1041013805,22500,"Advisory services including fees, travel and expenses"
Department for Education,DEPARTMENT FOR EDUCATION,24/10/2017,Professional Services Consultancy and Contingent Labour,Digital and Technology Group,EDUSERV,1041013805,148182.8,"Advisory services including fees, travel and expenses"
Department for Education,NATIONAL COLLEGE FOR TEACHING & LEADERSHIP,27/10/2017,Grants,Delivery Directorate,EGGLESCLIFFE SCHOOL,1041014206,30000,Grants to educational establishments or not for profit organisations including other businesses
Department for Education,DEPARTMENT FOR EDUCATION,16/10/2017,Grants,STRATEGIC IMPROVEMENT - PROTECTED,ELEVATE MULTI ACADEMY TRUST,1041012779,27505,Grants to educational establishments or not for profit organisations including other businesses
Department for Education,DEPARTMENT FOR EDUCATION,16/10/2017,Grants,STRATEGIC IMPROVEMENT - PROTECTED,ELEVATE MULTI ACADEMY TRUST,1041012779,30400,Grants to educational establishments or not for profit organisations including other businesses
Department for Education,DEPARTMENT FOR EDUCATION,20/10/2017,Grants,"Accountability, Curriculum and Qualifications Group",ELMHURST PRIMARY SCHOOL,1041013364,240000,Grants to educational establishments or not for profit organisations including other businesses
Department for Education,NATIONAL COLLEGE FOR TEACHING & LEADERSHIP,27/10/2017,Programme costs,Delivery Directorate,EMLC,1041014246,74836.28,Funding to external organisations to deliver policies (excluding consultancy)
Department for Education,DEPARTMENT FOR EDUCATION,18/10/2017,Grants,"Accountability, Curriculum and Qualifications Group",ENTHUSE CHARITABLE TRUST,1041013249,382628.03,Grants to educational establishments or not for profit organisations including other businesses
Department for Education,NATIONAL COLLEGE FOR TEACHING & LEADERSHIP,17/10/2017,Grants,Delivery Directorate,EPINAY BUSINESS AND ENTERPRISE SCHOOL,1041013054,40000,Grants to educational establishments or not for profit organisations including other businesses
Department for Education,DEPARTMENT FOR EDUCATION,02/10/2017,Grants,Government Equalities Office,EQUALITY & HUMAN RIGHTS COMMISSION,30000094,854457,Current grants paid to organisations including arms length bodies and educational establishments
Department for Education,DEPARTMENT FOR EDUCATION,17/10/2017,Professional Services Consultancy and Contingent Labour,Student Finance and Analysis Group,ERNST & YOUNG LLP,1041012952,9810,"Fees / expenses of professionals such as auditors, accountants, lawyers, etc. engaged to provide advice or opinion on how to affect something"
Department for Education,DEPARTMENT FOR EDUCATION,17/10/2017,Professional Services Consultancy and Contingent Labour,Student Finance and Analysis Group,ERNST & YOUNG LLP,1041012952,17036,"Fees / expenses of professionals such as auditors, accountants, lawyers, etc. engaged to provide advice or opinion on how to affect something"
Department for Education,DEPARTMENT FOR EDUCATION,17/10/2017,Professional Services Consultancy and Contingent Labour,Student Finance and Analysis Group,ERNST & YOUNG LLP,1041012952,32014,"Fees / expenses of professionals such as auditors, accountants, lawyers, etc. engaged to provide advice or opinion on how to affect something"
Department for Education,DEPARTMENT FOR EDUCATION,10/10/2017,Grants,System Reform Group,ESSEX COUNTY COUNCIL,1041012138,53550,Grants to local authorities / other establishments within aggregate external funding or aggregate exchequer grant
Department for Education,DEPARTMENT FOR EDUCATION,26/10/2017,Grants,Strategy and Social Mobility and Opportunity Areas Group,ESSEX COUNTY COUNCIL,1041014144,336023,Grants to local authorities / other establishments within aggregate external funding or aggregate exchequer grant
Department for Education,DEPARTMENT FOR EDUCATION,27/10/2017,Grants,Strategy and Social Mobility and Opportunity Areas Group,ESSEX COUNTY COUNCIL,1041014277,162884.4,Grants to local authorities / other establishments within aggregate external funding or aggregate exchequer grant
Department for Education,NATIONAL COLLEGE FOR TEACHING & LEADERSHIP,03/10/2017,Grants,Delivery Directorate,ESSEX PRY SCHOOLS TRAINING GROUP,1041011256,25200,Grants to educational establishments or not for profit organisations including other businesses
Department for Education,DEPARTMENT FOR EDUCATION,19/10/2017,Facilities,Digital and Technology Group,ESYNERGY SOLUTIONS LTD,1041013326,24786,"Maintenance, repair and cleaning including of equipment"
Department for Education,DEPARTMENT FOR EDUCATION,23/10/2017,Communications,HE STUDENT FINANCE COMMS,EVENT MARKETING SOLUTIONS LTD,10000408,223651.2,Marketing services
Department for Education,NATIONAL COLLEGE FOR TEACHING & LEADERSHIP,11/10/2017,Grants,Delivery Directorate,EVERTON NURSERY SCHOOL & FAMILY CENTRE TS ACCOUNT,1041012383,40000,Grants to educational establishments or not for profit organisations including other businesses
Department for Education,DEPARTMENT FOR EDUCATION,16/10/2017,Grants,STRATEGIC IMPROVEMENT - PROTECTED,EXCALIBUR ACADEMIES TRUST,1041012707,83452,Grants to educational establishments or not for profit organisations including other businesses
Department for Education,DEPARTMENT FOR EDUCATION,24/10/2017,Grants,Adoption and Children in Care Division,FAMILY CARE,1041013767,28656,Grants to educational establishments or not for profit organisations including other businesses
Department for Education,DEPARTMENT FOR EDUCATION,24/10/2017,Grants,Strategy and Social Mobility and Opportunity Areas Group,FAMILY LIVES,1041013831,39293.2,Grants to educational establishments or not for profit organisations including other businesses
Department for Education,DEPARTMENT FOR EDUCATION,09/10/2017,Grants,Strategy and Social Mobility and Opportunity Areas Group,FAMILY MATTERS INSTITUTE,1041011914,43000,Grants to educational establishments or not for profit organisations including other businesses
Department for Education,DEPARTMENT FOR EDUCATION,30/10/2017,Grants,Adoption and Children in Care Division,FAMILY RIGHTS GROUP LTD,1041014348,80000,Grants to educational establishments or not for profit organisations including other businesses
Department for Education,NATIONAL COLLEGE FOR TEACHING & LEADERSHIP,20/10/2017,Grants,Delivery Directorate,FARLINGAYE HIGH SCHOOL,1041013528,30000,Grants to educational establishments or not for profit organisations including other businesses
Department for Education,DEPARTMENT FOR EDUCATION,11/10/2017,Grants,Academies Regional Delivery Group,FARNHAM GREEN PRIMARY SCHOOL,1041012421,70000,Grants to educational establishments or not for profit organisations including other businesses
Department for Education,DEPARTMENT FOR EDUCATION,12/10/2017,Professional Services Other,Digital and Technology Group,FARSIGHT CONSULTING LTD,1041012568,41625,Financial Services
Department for Education,DEPARTMENT FOR EDUCATION,12/10/2017,Professional Services Other,Digital and Technology Group,FARSIGHT CONSULTING LTD,1041012568,8325,Financial Services
Department for Education,NATIONAL COLLEGE FOR TEACHING & LEADERSHIP,20/10/2017,Grants,Delivery Directorate,FASNA,1041013380,29750,Grants to educational establishments or not for profit organisations including other businesses
Department for Education,DEPARTMENT FOR EDUCATION,10/10/2017,Loans and Funding,Student Finance and Analysis Group,FINANCE FOR HIGHER EDUCATION,10000352,327713.58,Debt sale subsidy payments for mortgage style loans sold in the late 1990s
Department for Education,DEPARTMENT FOR EDUCATION,02/10/2017,Grants,Academies Regional Delivery Group,FLYING HIGH TRUST,1041011107,25000,Grants to educational establishments or not for profit organisations including other businesses
Department for Education,DEPARTMENT FOR EDUCATION,02/10/2017,Grants,Academies Regional Delivery Group,FLYING HIGH TRUST,1041011107,25000,Grants to educational establishments or not for profit organisations including other businesses
Department for Education,DEPARTMENT FOR EDUCATION,11/10/2017,Programme costs,Government Equalities Office,G4S GOVERNMENT AND OUTSOURCING SERVICES UK LTD,1041012426,75853.03,Funding to deliver policies (excluding consultancy) paid to third parties via a service delivery contract
Department for Education,DEPARTMENT FOR EDUCATION,11/10/2017,Programme costs,Government Equalities Office,G4S GOVERNMENT AND OUTSOURCING SERVICES UK LTD,1041012426,15170.61,Funding to deliver policies (excluding consultancy) paid to third parties via a service delivery contract
Department for Education,DEPARTMENT FOR EDUCATION,13/10/2017,Miscellaneous Expenditure,Finance and Commercial Group,GALLAGHER BASSETT INTERNL LTD - DFE RPA FUNDING,10000388,2751506.54,"Payment to fund the department's client's deposit account controlled by Gallagher Bassett International Limited, on the department's behalf. The funds are provided and owned by the Department for Education to meet claims in respect of academy trusts that have joined the department's Risk Protection Arrangement (RPA). Payments for claims over 25,000 are included in this dataset. At no point are the funds owned by Gallagher Bassett International Limited."
Department for Education,DEPARTMENT FOR EDUCATION,16/10/2017,ICT,Digital and Technology Group,GARTNER UK LTD,1041012813,68700,ICT Services
Department for Education,NATIONAL COLLEGE FOR TEACHING & LEADERSHIP,24/10/2017,Grants,Delivery Directorate,GEARIES PRIMARY SCHOOL,1041013869,40000,Grants to educational establishments or not for profit organisations including other businesses
Department for Education,NATIONAL COLLEGE FOR TEACHING & LEADERSHIP,03/10/2017,Grants,Operations Directorate,GEORGE ABBOT ACADEMY,1041011287,26658,Grants to educational establishments or not for profit organisations including other businesses
Department for Education,NATIONAL COLLEGE FOR TEACHING & LEADERSHIP,20/10/2017,Grants,Delivery Directorate,GEORGE ABBOT ACADEMY,1041013371,74000,Grants to educational establishments or not for profit organisations including other businesses
Department for Education,DEPARTMENT FOR EDUCATION,20/10/2017,Grants,"Accountability, Curriculum and Qualifications Group",GEORGE SPENCER ACADEMY,1041013428,240000,Grants to educational establishments or not for profit organisations including other businesses
Department for Education,NATIONAL COLLEGE FOR TEACHING & LEADERSHIP,03/10/2017,Grants,Operations Directorate,GEORGE SPENCER TRAINING SCHOOL,1041011286,38349.09,Grants to educational establishments or not for profit organisations including other businesses
Department for Education,DEPARTMENT FOR EDUCATION,13/10/2017,Grants,Academies Regional Delivery Group,GILTHILL PRIMARY SCHOOL,1041012604,25000,Grants to educational establishments or not for profit organisations including other businesses
Department for Education,DEPARTMENT FOR EDUCATION,24/10/2017,Grants,Strategy and Social Mobility and Opportunity Areas Group,GINGERBREAD,1041013862,57459,Grants to educational establishments or not for profit organisations including other businesses
Department for Education,DEPARTMENT FOR EDUCATION,10/10/2017,Grants,System Reform Group,GLOUCESTERSHIRE COUNTY COUNCIL,1041012068,33200,Grants to local authorities / other establishments within aggregate external funding or aggregate exchequer grant
Department for Education,NATIONAL COLLEGE FOR TEACHING & LEADERSHIP,03/10/2017,Grants,Operations Directorate,GLOUCESTERSHIRE ITE PARTNERSHIP,1041011352,74448.72,Grants to educational establishments or not for profit organisations including other businesses
Department for Education,NATIONAL COLLEGE FOR TEACHING & LEADERSHIP,03/10/2017,Grants,Operations Directorate,GLYN SURREY SCITT,1041011280,29400.03,Grants to educational establishments or not for profit organisations including other businesses
Department for Education,NATIONAL COLLEGE FOR TEACHING & LEADERSHIP,03/10/2017,Grants,Operations Directorate,GOLDSMITH COLLEGE,1041011267,180086.22,Grants to educational establishments or not for profit organisations including other businesses
Department for Education,DEPARTMENT FOR EDUCATION,16/10/2017,Professional Services IT Related,Further Education Group,GOOD THINGS FOUNDATION,1041012762,164253.23,Professional Services - IT related
Department for Education,DEPARTMENT FOR EDUCATION,17/10/2017,Programme costs,Teachers and Teaching Group,GOVERNMENT ACTUARYS DEPARTMENT,1041013043,4769.42,Funding to deliver policies (excluding consultancy) paid to third parties via a service delivery contract
Department for Education,DEPARTMENT FOR EDUCATION,17/10/2017,Programme costs,Teachers and Teaching Group,GOVERNMENT ACTUARYS DEPARTMENT,1041013043,23847.12,Funding to deliver policies (excluding consultancy) paid to third parties via a service delivery contract
Department for Education,DEPARTMENT FOR EDUCATION,24/10/2017,Professional Services Consultancy and Contingent Labour,Education Funding Group,GOVERNMENT ACTUARYS DEPARTMENT,1041013849,6075.39,Costs related to temporary workers
Department for Education,DEPARTMENT FOR EDUCATION,24/10/2017,Professional Services Consultancy and Contingent Labour,Education Funding Group,GOVERNMENT ACTUARYS DEPARTMENT,1041013849,30376.97,Costs related to temporary workers
Department for Education,DEPARTMENT FOR EDUCATION,06/10/2017,Professional Services Consultancy and Contingent Labour,Finance and Commercial Group,GOVERNMENT ACTUARYS DEPARTMENT GAD,1041011888,37758.94,"Fees / expenses of professionals such as auditors, accountants, lawyers, etc. engaged to provide advice or opinion on how to affect something"
Department for Education,DEPARTMENT FOR EDUCATION,06/10/2017,Professional Services Consultancy and Contingent Labour,Finance and Commercial Group,GOVERNMENT ACTUARYS DEPARTMENT GAD,1041011888,7551.79,"Fees / expenses of professionals such as auditors, accountants, lawyers, etc. engaged to provide advice or opinion on how to affect something"
Department for Education,DEPARTMENT FOR EDUCATION,23/10/2017,Professional Services Consultancy and Contingent Labour,Finance and Commercial Group,GOVERNMENT ACTUARYS DEPARTMENT GAD,1041013583,67043.68,"Fees / expenses of professionals such as auditors, accountants, lawyers, etc. engaged to provide advice or opinion on how to affect something"
Department for Education,DEPARTMENT FOR EDUCATION,23/10/2017,Professional Services Consultancy and Contingent Labour,Finance and Commercial Group,GOVERNMENT ACTUARYS DEPARTMENT GAD,1041013583,13408.74,"Fees / expenses of professionals such as auditors, accountants, lawyers, etc. engaged to provide advice or opinion on how to affect something"
Department for Education,DEPARTMENT FOR EDUCATION,12/10/2017,Professional Services Consultancy and Contingent Labour,"Independent Education, Safeguarding in Schools and Counter Extremism Group",GOVERNMENT LEGAL DEPARTMENT,1041012489,27758.04,"Fees / expenses of professionals such as auditors, accountants, lawyers, etc. engaged to provide advice or opinion on how to affect something"
Department for Education,DEPARTMENT FOR EDUCATION,12/10/2017,Professional Services Consultancy and Contingent Labour,"Independent Education, Safeguarding in Schools and Counter Extremism Group",GOVERNMENT LEGAL DEPARTMENT,1041012489,5551.61,"Fees / expenses of professionals such as auditors, accountants, lawyers, etc. engaged to provide advice or opinion on how to affect something"
Department for Education,DEPARTMENT FOR EDUCATION,16/10/2017,Professional Services Other,Legal Advisers Office,GOVERNMENT LEGAL DEPARTMENT,1041012746,116750,Financial Services
Department for Education,DEPARTMENT FOR EDUCATION,16/10/2017,Professional Services Other,Legal Advisers Office,GOVERNMENT LEGAL DEPARTMENT,1041012746,1321000,Financial Services
Department for Education,DEPARTMENT FOR EDUCATION,16/10/2017,Professional Services Other,Legal Advisers Office,GOVERNMENT LEGAL DEPARTMENT,1041012746,23350,Financial Services
Department for Education,DEPARTMENT FOR EDUCATION,16/10/2017,Professional Services Other,Legal Advisers Office,GOVERNMENT LEGAL DEPARTMENT,1041012746,264200,Financial Services
Department for Education,DEPARTMENT FOR EDUCATION,05/10/2017,Grants,GRADUATE OPPORTUNITY DEVELOPMENT FUND,GRADUATE PROSPECTS,10000347,112975,Grants to educational establishments or not for profit organisations including other businesses
Department for Education,NATIONAL COLLEGE FOR TEACHING & LEADERSHIP,03/10/2017,Grants,Operations Directorate,GRAND UNION TRAINING PARTNERSHIP,1041011266,54150.03,Grants to educational establishments or not for profit organisations including other businesses
Department for Education,DEPARTMENT FOR EDUCATION,24/10/2017,Grants,Academies Regional Delivery Group,GRAVEL HILL PRIMARY SCHOOL,1041013764,25000,Grants to educational establishments or not for profit organisations including other businesses
Department for Education,NATIONAL COLLEGE FOR TEACHING & LEADERSHIP,30/10/2017,Grants,Delivery Directorate,GRAZEBROOK PRIMARY SCHOOL,1041014407,40000,Grants to educational establishments or not for profit organisations including other businesses
Department for Education,DEPARTMENT FOR EDUCATION,24/10/2017,Grants,Academies Regional Delivery Group,GREAT LEARNERS TRUST,1041013794,110000,Grants to educational establishments or not for profit organisations including other businesses
Department for Education,DEPARTMENT FOR EDUCATION,13/10/2017,Grants,Academies Regional Delivery Group,GREENSHAW LEARNING TRUST,1041012665,335000,Grants to educational establishments or not for profit organisations including other businesses
Department for Education,NATIONAL COLLEGE FOR TEACHING & LEADERSHIP,17/10/2017,Grants,Delivery Directorate,GREY COURT SCHOOL,1041012944,40000,Grants to educational establishments or not for profit organisations including other businesses
Department for Education,DEPARTMENT FOR EDUCATION,31/10/2017,Facilities,Property Asset Management Group,GVA GRIMLEY LTD,1041014492,485326,"Business rates  from 2016/17 financial year DCLG and the Department of BEIS will use the DfE's finance system, reflecting the shared services arrangement that already exists across the three departments.  DfE will recharge DCLG and BEIS on a quarterly basis."
Department for Education,DEPARTMENT FOR EDUCATION,26/10/2017,Facilities,Property Asset Management Group,GVA GRIMLEY LTD DCLG,1041014065,365440,"Business rates  from 2016/17 financial year DCLG and the Department of BEIS will use the DfE's finance system, reflecting the shared services arrangement that already exists across the three departments.  DfE will recharge DCLG and BEIS on a quarterly basis."
Department for Education,DEPARTMENT FOR EDUCATION,31/10/2017,Facilities,Property Asset Management Group,GVA GRIMLEY LTD DCLG,1041014480,164086.4,"Business rates  from 2016/17 financial year DCLG and the Department of BEIS will use the DfE's finance system, reflecting the shared services arrangement that already exists across the three departments.  DfE will recharge DCLG and BEIS on a quarterly basis."
Department for Education,NATIONAL COLLEGE FOR TEACHING & LEADERSHIP,11/10/2017,Grants,Delivery Directorate,H TYNDALE,1041012415,34000,Grants to educational establishments or not for profit organisations including other businesses
Department for Education,DEPARTMENT FOR EDUCATION,27/10/2017,Grants,STRATEGIC IMPROVEMENT - PROTECTED,HALES VALLEY TRUST,1041014175,129601,Grants to educational establishments or not for profit organisations including other businesses
Department for Education,DEPARTMENT FOR EDUCATION,10/10/2017,Grants,System Reform Group,HAMPSHIRE COUNTY COUNCIL,1041012197,35167,Grants to local authorities / other establishments within aggregate external funding or aggregate exchequer grant
Department for Education,DEPARTMENT FOR EDUCATION,26/10/2017,Grants,Strategy and Social Mobility and Opportunity Areas Group,HAMPSHIRE COUNTY COUNCIL,1041014125,1053149,Grants to local authorities / other establishments within aggregate external funding or aggregate exchequer grant
Department for Education,DEPARTMENT FOR EDUCATION,18/10/2017,Grants,Academies Regional Delivery Group,HAMPTON HARGATE PRIMARY SCHOOL,1041013115,25000,Grants to educational establishments or not for profit organisations including other businesses
Department for Education,NATIONAL COLLEGE FOR TEACHING & LEADERSHIP,11/10/2017,Grants,Delivery Directorate,HAMPTON HILL JUNIOR SCHOOL,1041012460,34000,Grants to educational establishments or not for profit organisations including other businesses
Department for Education,NATIONAL COLLEGE FOR TEACHING & LEADERSHIP,30/10/2017,Grants,Delivery Directorate,HARRIS ACADEMY CHAFFORD HUNDRED TS ACCOUNT,1041014393,40000,Grants to educational establishments or not for profit organisations including other businesses
Department for Education,NATIONAL COLLEGE FOR TEACHING & LEADERSHIP,03/10/2017,Grants,Operations Directorate,HARRIS CITY ACADEMY,1041011395,107772.75,Grants to educational establishments or not for profit organisations including other businesses
Department for Education,DEPARTMENT FOR EDUCATION,20/10/2017,Grants,"Accountability, Curriculum and Qualifications Group",HARRIS CITY ACADEMY CRYSTAL PALACE,1041013498,240000,Grants to educational establishments or not for profit organisations including other businesses
Department for Education,DEPARTMENT FOR EDUCATION,02/10/2017,Grants,Free Schools Group,HARRIS FEDERATION,1041011111,75000,Grants to educational establishments or not for profit organisations including other businesses
Department for Education,NATIONAL COLLEGE FOR TEACHING & LEADERSHIP,20/10/2017,Grants,Delivery Directorate,HARTISMERE SCHOOL,1041013430,36430,Grants to educational establishments or not for profit organisations including other businesses
Department for Education,DEPARTMENT FOR EDUCATION,27/10/2017,Grants,Strategy and Social Mobility and Opportunity Areas Group,HARTLEPOOL BOROUGH COUNCIL,1041014282,36754,Grants to local authorities / other establishments within aggregate external funding or aggregate exchequer grant
Department for Education,DEPARTMENT FOR EDUCATION,27/10/2017,Grants,Academies Regional Delivery Group,HATCH RIDE PRIMARY SCHOOL,1041014236,25000,Grants to educational establishments or not for profit organisations including other businesses
Department for Education,NATIONAL COLLEGE FOR TEACHING & LEADERSHIP,03/10/2017,Grants,Operations Directorate,HAVERING BEACON PARTNERSHIP,1041011265,36783,Grants to educational establishments or not for profit organisations including other businesses
Department for Education,NATIONAL COLLEGE FOR TEACHING & LEADERSHIP,03/10/2017,Grants,Operations Directorate,HAYBRIDGE ALLIANCE SCITT,1041011204,40321.89,Grants to educational establishments or not for profit organisations including other businesses
Department for Education,NATIONAL COLLEGE FOR TEACHING & LEADERSHIP,11/10/2017,Grants,Delivery Directorate,HAYES SCHOOL,1041012269,40000,Grants to educational establishments or not for profit organisations including other businesses
Department for Education,NATIONAL COLLEGE FOR TEACHING & LEADERSHIP,20/10/2017,Grants,Delivery Directorate,HAYESFIELD GIRLS SCHOOL,1041013541,51150,Grants to educational establishments or not for profit organisations including other businesses
Department for Education,NATIONAL COLLEGE FOR TEACHING & LEADERSHIP,20/10/2017,Grants,Delivery Directorate,HEARTLANDS ACADEMY,1041013492,29271,Grants to educational establishments or not for profit organisations including other businesses
Department for Education,NATIONAL COLLEGE FOR TEACHING & LEADERSHIP,20/10/2017,Grants,Delivery Directorate,HEATHFIELD COMMUNITY SCHOOL,1041013561,35700,Grants to educational establishments or not for profit organisations including other businesses
Department for Education,NATIONAL COLLEGE FOR TEACHING & LEADERSHIP,11/10/2017,Grants,Delivery Directorate,HEBDEN GREEN,1041012455,50000,Grants to educational establishments or not for profit organisations including other businesses
Department for Education,DEPARTMENT FOR EDUCATION,30/10/2017,Grants,Strategy and Social Mobility and Opportunity Areas Group,HEREFORDSHIRE COUNCIL,1041014349,81000,Grants to local authorities / other establishments within aggregate external funding or aggregate exchequer grant
Department for Education,DEPARTMENT FOR EDUCATION,30/10/2017,Grants,Strategy and Social Mobility and Opportunity Areas Group,HEREFORDSHIRE COUNCIL,1041014349,27000,Grants to local authorities / other establishments within aggregate external funding or aggregate exchequer grant
Department for Education,DEPARTMENT FOR EDUCATION,26/10/2017,Grants,Strategy and Social Mobility and Opportunity Areas Group,HERTFORDSHIRE COUNTY COUNCIL,1041014088,276191,Grants to local authorities / other establishments within aggregate external funding or aggregate exchequer grant
Department for Education,DEPARTMENT FOR EDUCATION,16/10/2017,Grants,STRATEGIC IMPROVEMENT - PROTECTED,HETHERSETT ACADEMY,1041012687,31350,Grants to educational establishments or not for profit organisations including other businesses
Department for Education,NATIONAL COLLEGE FOR TEACHING & LEADERSHIP,02/10/2017,Grants,Operations Directorate,HIBERNIA COLLEGE UK,1041011163,62172.4,Grants to educational establishments or not for profit organisations including other businesses
Department for Education,NATIONAL COLLEGE FOR TEACHING & LEADERSHIP,03/10/2017,Grants,Operations Directorate,HIBERNIA COLLEGE UK,1041011341,98246.34,Grants to educational establishments or not for profit organisations including other businesses
Department for Education,NATIONAL COLLEGE FOR TEACHING & LEADERSHIP,11/10/2017,Grants,Operations Directorate,HIGH FLIERS RESEARCH LTD,1041012313,25250,Provision of boarding activities - other costs
Department for Education,NATIONAL COLLEGE FOR TEACHING & LEADERSHIP,20/10/2017,Grants,Delivery Directorate,HIGHDOWN SCHOOL & SIXTH FORM CENTRE,1041013429,33250,Grants to educational establishments or not for profit organisations including other businesses
Department for Education,DEPARTMENT FOR EDUCATION,19/10/2017,Grants,Higher Education Strategy and Policy Group,HIGHER EDUCATION FUNDING COUNCIL,30000106,28000000,Current grants paid to organisations including arms length bodies and educational establishments
Department for Education,NATIONAL COLLEGE FOR TEACHING & LEADERSHIP,24/10/2017,Grants,Delivery Directorate,HIGHFIELD NURSERY SCHOOL,1041013796,50000,Grants to educational establishments or not for profit organisations including other businesses
Department for Education,NATIONAL COLLEGE FOR TEACHING & LEADERSHIP,30/10/2017,Grants,Delivery Directorate,HIGHLANDS SCHOOL TS ACCOUNT,1041014384,40000,Grants to educational establishments or not for profit organisations including other businesses
Department for Education,NATIONAL COLLEGE FOR TEACHING & LEADERSHIP,03/10/2017,Grants,Delivery Directorate,HISTON & IMPRINGTON JUNIOR SCHOOL,1041011347,39000,Grants to educational establishments or not for profit organisations including other businesses
Department for Education,NATIONAL COLLEGE FOR TEACHING & LEADERSHIP,24/10/2017,Grants,Delivery Directorate,HITCHIN GIRLS SCHOOL,1041013760,40000,Grants to educational establishments or not for profit organisations including other businesses
Department for Education,NATIONAL COLLEGE FOR TEACHING & LEADERSHIP,27/10/2017,Grants,Delivery Directorate,HITCHIN GIRLS SCHOOL,1041014258,28160,Grants to educational establishments or not for profit organisations including other businesses
Department for Education,DEPARTMENT FOR EDUCATION,06/10/2017,Personnel Related,Human Resources Group,HM REVENUE & CUSTOMS,1041011862,152690,Recruitment costs
Department for Education,DEPARTMENT FOR EDUCATION,24/10/2017,Personnel Related,Human Resources Group,HM REVENUE & CUSTOMS,1041013848,28581.81,Recruitment costs
Department for Education,DEPARTMENT FOR EDUCATION,24/10/2017,Personnel Related,Human Resources Group,HM REVENUE & CUSTOMS,1041013848,5716.36,Recruitment costs
Department for Education,DEPARTMENT FOR EDUCATION,25/10/2017,Professional Services Other,Finance and Commercial Group,HM TREASURY,1041013947,1160752.5,Part fee for internal audit services 2017/18
Department for Education,DEPARTMENT FOR EDUCATION,16/10/2017,Miscellaneous Expenditure,Finance and Commercial Group,HM TREASURY - CFER PAYOVER,30000105,528442.67,Other balances surrendered to the Consolidated Fund
Department for Education,DEPARTMENT FOR EDUCATION,06/10/2017,Professional Service Other,Early Years Group,HMCTS HM COURTS & TRIBUNALS SERVICE,1041011859,43142,Delivery by HM Courts and Tribunal Service of system for childcare providers
Department for Education,DEPARTMENT FOR EDUCATION,06/10/2017,Personnel Related,Strategic Analysis and Research Group,HMRC,1041011881,39600,Staff subscriptions including publications and organisation subscription charges
Department for Education,DEPARTMENT FOR EDUCATION,06/10/2017,Personnel Related,Strategic Analysis and Research Group,HMRC,1041011881,7920,Staff subscriptions including publications and organisation subscription charges
Department for Education,DEPARTMENT FOR EDUCATION,09/10/2017,Personnel Related,Strategic Analysis and Research Group,HMRC,1041011907,83922.31,Staff subscriptions including publications and organisation subscription charges
Department for Education,DEPARTMENT FOR EDUCATION,10/10/2017,Personnel Related,Finance and Commercial Group,HMRC,1041012042,23413.86,Recruitment costs / Secondment costs
Department for Education,DEPARTMENT FOR EDUCATION,10/10/2017,Personnel Related,Finance and Commercial Group,HMRC,1041012042,4682.77,Recruitment costs / Secondment costs
Department for Education,DEPARTMENT FOR EDUCATION,16/10/2017,Grants,STRATEGIC IMPROVEMENT - PROTECTED,HODGSON ACADEMY TS ACCOUNT,1041012699,127302,Grants to educational establishments or not for profit organisations including other businesses
Department for Education,NATIONAL COLLEGE FOR TEACHING & LEADERSHIP,30/10/2017,Grants,Delivery Directorate,HOLY ROSARY CATHOLIC PRIMARY SCHOOL TS ACCOUNT,1041014390,39570,Grants to educational establishments or not for profit organisations including other businesses
Department for Education,DEPARTMENT FOR EDUCATION,30/10/2017,Grants,Strategy and Social Mobility and Opportunity Areas Group,HOME START UK,1041014351,41377.04,Grants to educational establishments or not for profit organisations including other businesses
Department for Education,DEPARTMENT FOR EDUCATION,10/10/2017,Loans and Funding,Student Finance and Analysis Group,HONOURS TRUSTEES LTD,10000351,563852.34,Debt sale subsidy payments for mortgage style loans sold in the late 1990s
Department for Education,DEPARTMENT FOR EDUCATION,11/10/2017,ICT,Communications Group,HOOTESUITE MEDIA INC.,1041012328,35000,Networking systems
Department for Education,NATIONAL COLLEGE FOR TEACHING & LEADERSHIP,17/10/2017,Grants,Delivery Directorate,HORNDEAN INFANT SCHOOL,1041013075,40000,Grants to educational establishments or not for profit organisations including other businesses
Department for Education,NATIONAL COLLEGE FOR TEACHING & LEADERSHIP,24/10/2017,Grants,Delivery Directorate,HOVE PARK SCHOOL & SIXTH FORM CENTRE,1041013871,50000,Grants to educational establishments or not for profit organisations including other businesses
Department for Education,NATIONAL COLLEGE FOR TEACHING & LEADERSHIP,30/10/2017,Grants,Delivery Directorate,HUISH PRIMARY SCHOOL,1041014409,40000,Grants to educational establishments or not for profit organisations including other businesses
Department for Education,DEPARTMENT FOR EDUCATION,12/10/2017,Professional Services Other,Strategic Analysis and Research Group,IEA,20000027,211573.31,Research and evaluation activities
Department for Education,DEPARTMENT FOR EDUCATION,12/10/2017,Professional Services Other,Strategic Analysis and Research Group,IEA,20000028,248761.74,Research and evaluation activities
Department for Education,DEPARTMENT FOR EDUCATION,11/10/2017,Professional Services Other,Further Education Group,IFF RESEARCH LTD,1041012279,54549,Research and evaluation activities
Department for Education,DEPARTMENT FOR EDUCATION,11/10/2017,Professional Services Other,Further Education Group,IFF RESEARCH LTD,1041012279,90000,Research and evaluation activities
Department for Education,DEPARTMENT FOR EDUCATION,31/10/2017,Professional Services Other,Strategic Analysis and Research Group,IFF RESEARCH LTD,1041014484,33150,Research and evaluation activities
Department for Education,DEPARTMENT FOR EDUCATION,16/10/2017,Grants,STRATEGIC IMPROVEMENT - PROTECTED,ILSHAM CHURCH OF ENGLAND ACADEMY,1041012812,121162,Grants to educational establishments or not for profit organisations including other businesses
Department for Education,NATIONAL COLLEGE FOR TEACHING & LEADERSHIP,30/10/2017,Grants,Delivery Directorate,INCLUSIVE SCHOOLS TRUST,1041014345,60000,Grants to educational establishments or not for profit organisations including other businesses
Department for Education,NATIONAL COLLEGE FOR TEACHING & LEADERSHIP,31/10/2017,Communications,Operations Directorate,INFERNO LTD,1041014475,109801.38,"Publicity, advertising, media advertising campaigns (excluding recruitment adverts)"
Department for Education,DEPARTMENT FOR EDUCATION,03/10/2017,Professional Services Consultancy and Contingent Labour,Digital and Technology Group,INFO ASSURE LTD,1041011464,29036,"Advisory services including fees, travel and expenses"
Department for Education,DEPARTMENT FOR EDUCATION,19/10/2017,Personnel Related,Human Resources Group,INLAND REVENUE,10000399,99931,Apprenticeship Levy
Department for Education,DEPARTMENT FOR EDUCATION,24/10/2017,Grants,Early Years Group,INSTITUTE OF WELLBEING LTD,1041013817,29277.13,Grants to educational establishments or not for profit organisations including other businesses
Department for Education,DEPARTMENT FOR EDUCATION,24/10/2017,Grants,Special Educational Needs and Disadvantage Group,INTERNET MATTERS,1041013738,27203,Grants to educational establishments or not for profit organisations including other businesses
Department for Education,DEPARTMENT FOR EDUCATION,31/10/2017,Facilities,Property Asset Management Group,INTERSERVE FACILITIES MANAGEMENT LTD,1041014489,99155.16,Property management
Department for Education,DEPARTMENT FOR EDUCATION,31/10/2017,Facilities,Property Asset Management Group,INTERSERVE FACILITIES MANAGEMENT LTD,1041014489,132603.23,Property management
Department for Education,DEPARTMENT FOR EDUCATION,31/10/2017,Facilities,Property Asset Management Group,INTERSERVE FACILITIES MANAGEMENT LTD,1041014489,19831.03,Property management
Department for Education,DEPARTMENT FOR EDUCATION,31/10/2017,Facilities,Property Asset Management Group,INTERSERVE FACILITIES MANAGEMENT LTD,1041014489,26520.65,Property management
Department for Education,NATIONAL COLLEGE FOR TEACHING & LEADERSHIP,05/10/2017,Grants,Operations Directorate,IOP INSTITUTE OF PHYSICS,1041011791,25038.46,Grants to educational establishments or not for profit organisations including other businesses
Department for Education,DEPARTMENT FOR EDUCATION,27/10/2017,Programme costs,"Accountability, Curriculum and Qualifications Group",IOP INSTITUTE OF PHYSICS,1041014223,194159.08,Funding to deliver policies (excluding consultancy) paid to third parties via a service delivery contract
Department for Education,DEPARTMENT FOR EDUCATION,26/10/2017,Professional Services Other,Early Years Group,IPSOS MORI,1041014064,34746,Research and evaluation activities
Department for Education,DEPARTMENT FOR EDUCATION,13/10/2017,Grants,Further Education Group,JISC LTD,1041012631,1270834,Grants to educational establishments or not for profit organisations including other businesses
Department for Education,DEPARTMENT FOR EDUCATION,24/10/2017,Grants,Academies Regional Delivery Group,JOHN JAMIESON SCHOOL FRIENDS GROUP,1041013699,90000,Grants to educational establishments or not for profit organisations including other businesses
Department for Education,NATIONAL COLLEGE FOR TEACHING & LEADERSHIP,17/10/2017,Grants,Delivery Directorate,KELVIN HALL SCHOOL,1041012956,60000,Grants to educational establishments or not for profit organisations including other businesses
Department for Education,NATIONAL COLLEGE FOR TEACHING & LEADERSHIP,03/10/2017,Grants,Operations Directorate,KENT & MEDWAY TRAINING,1041011346,107640.99,Grants to educational establishments or not for profit organisations including other businesses
Department for Education,DEPARTMENT FOR EDUCATION,10/10/2017,Grants,System Reform Group,KENT COUNTY COUNCIL,1041012123,102100,Grants to local authorities / other establishments within aggregate external funding or aggregate exchequer grant
Department for Education,NATIONAL COLLEGE FOR TEACHING & LEADERSHIP,20/10/2017,Grants,Delivery Directorate,KING ALFREDS SCHOOL,1041013395,27700,Grants to educational establishments or not for profit organisations including other businesses
Department for Education,NATIONAL COLLEGE FOR TEACHING & LEADERSHIP,17/10/2017,Grants,Delivery Directorate,KING ECGBERT SCHOOL,1041012994,40000,Grants to educational establishments or not for profit organisations including other businesses
Department for Education,NATIONAL COLLEGE FOR TEACHING & LEADERSHIP,27/10/2017,Grants,Delivery Directorate,KING EDWARD VI FIVE WAYS SCHOOL,1041014235,60000,Grants to educational establishments or not for profit organisations including other businesses
Department for Education,NATIONAL COLLEGE FOR TEACHING & LEADERSHIP,17/10/2017,Grants,Delivery Directorate,KING EDWARD VI HIGH SCHOOL FOR GIRLS,1041012975,40000,Grants to educational establishments or not for profit organisations including other businesses
Department for Education,NATIONAL COLLEGE FOR TEACHING & LEADERSHIP,24/10/2017,Grants,Delivery Directorate,KING EDWARD VI SCHOOL,1041013816,40000,Grants to educational establishments or not for profit organisations including other businesses
Department for Education,NATIONAL COLLEGE FOR TEACHING & LEADERSHIP,03/10/2017,Grants,Operations Directorate,KING EDWARDS CONSORTIUM,1041011263,50474.97,Grants to educational establishments or not for profit organisations including other businesses
Department for Education,NATIONAL COLLEGE FOR TEACHING & LEADERSHIP,03/10/2017,Grants,Operations Directorate,KINGS COLLEGE GUILDFORD,1041011242,291556.62,Grants to educational establishments or not for profit organisations including other businesses
Department for Education,NATIONAL COLLEGE FOR TEACHING & LEADERSHIP,03/10/2017,Grants,Operations Directorate,KINGSBRIDGE EIP SCITT,1041011299,27870.93,Grants to educational establishments or not for profit organisations including other businesses
Department for Education,NATIONAL COLLEGE FOR TEACHING & LEADERSHIP,03/10/2017,Grants,Operations Directorate,KINGSTON UNIVERSITY,1041011302,63920.43,Grants to educational establishments or not for profit organisations including other businesses
Department for Education,NATIONAL COLLEGE FOR TEACHING & LEADERSHIP,17/10/2017,Grants,Delivery Directorate,KINGSWOOD PRIMARY SCHOOL,1041013062,40000,Grants to educational establishments or not for profit organisations including other businesses
Department for Education,NATIONAL COLLEGE FOR TEACHING & LEADERSHIP,24/10/2017,Grants,Delivery Directorate,KNOWSLEY CENTRAL SCHOOL,1041013795,50000,Grants to educational establishments or not for profit organisations including other businesses
Department for Education,DEPARTMENT FOR EDUCATION,24/10/2017,ICT,Digital and Technology Group,KYKLOUD,1041013768,63182.5,ICT Software
Department for Education,DEPARTMENT FOR EDUCATION,24/10/2017,ICT,Digital and Technology Group,KYKLOUD,1041013768,12636.5,ICT Software
Department for Education,DEPARTMENT FOR EDUCATION,11/10/2017,Grants,Free Schools Group,LAIDLAW SCHOOLS TRUST,1041012249,30000,Grants to educational establishments or not for profit organisations including other businesses
Department for Education,DEPARTMENT FOR EDUCATION,23/10/2017,Grants,Academies Regional Delivery Group,LAIDLAW SCHOOLS TRUST,1041013572,110000,Grants to educational establishments or not for profit organisations including other businesses
Department for Education,DEPARTMENT FOR EDUCATION,10/10/2017,Grants,System Reform Group,LANCASHIRE COUNTY COUNCIL,1041012121,54350,Grants to local authorities / other establishments within aggregate external funding or aggregate exchequer grant
Department for Education,DEPARTMENT FOR EDUCATION,16/10/2017,Grants,STRATEGIC IMPROVEMENT - PROTECTED,LANDAU FORTE COLLEGE DERBY SCITT,1041012806,77017,Grants to educational establishments or not for profit organisations including other businesses
Department for Education,NATIONAL COLLEGE FOR TEACHING & LEADERSHIP,11/10/2017,Grants,Delivery Directorate,LARK RISE ACADEMY,1041012444,40000,Grants to educational establishments or not for profit organisations including other businesses
Department for Education,NATIONAL COLLEGE FOR TEACHING & LEADERSHIP,30/10/2017,Grants,Delivery Directorate,LAUNDE PRIMARY SCHOOL,1041014320,40000,Grants to educational establishments or not for profit organisations including other businesses
Department for Education,DEPARTMENT FOR EDUCATION,16/10/2017,Grants,STRATEGIC IMPROVEMENT - PROTECTED,LAUNDE PRIMARY SCHOOL TS ACC,1041012696,40246,Grants to educational establishments or not for profit organisations including other businesses
Department for Education,NATIONAL COLLEGE FOR TEACHING & LEADERSHIP,24/10/2017,Grants,Delivery Directorate,LAWRENCE SHERIFF SCHOOL,1041013712,37500,Grants to educational establishments or not for profit organisations including other businesses
Department for Education,DEPARTMENT FOR EDUCATION,18/10/2017,Grants,Academies Regional Delivery Group,LEAD MULTI ACADEMY TRUST,1041013186,25000,Grants to educational establishments or not for profit organisations including other businesses
Department for Education,NATIONAL COLLEGE FOR TEACHING & LEADERSHIP,17/10/2017,Grants,Delivery Directorate,LEADING LEARNERS ACADEMY TRUST,1041012984,40000,Grants to educational establishments or not for profit organisations including other businesses
Department for Education,STANDARDS AND TESTING AGENCY,27/10/2017,Professional Services Consultancy and Contingent Labour,Test Development Division,LEARN DIRECT,1041014215,244520.75,"Fees / expenses of professionals such as auditors, accountants, lawyers, etc. engaged to provide advice or opinion on how to affect something"
Department for Education,STANDARDS AND TESTING AGENCY,27/10/2017,Professional Services Consultancy and Contingent Labour,Test Development Division,LEARN DIRECT,1041014215,48560.1,"Fees / expenses of professionals such as auditors, accountants, lawyers, etc. engaged to provide advice or opinion on how to affect something"
Department for Education,STANDARDS AND TESTING AGENCY,30/10/2017,Professional Services Consultancy and Contingent Labour,Test Development Division,LEARN DIRECT,1041014378,97550,"Fees / expenses of professionals such as auditors, accountants, lawyers, etc. engaged to provide advice or opinion on how to affect something"
Department for Education,STANDARDS AND TESTING AGENCY,30/10/2017,Professional Services Consultancy and Contingent Labour,Test Development Division,LEARN DIRECT,1041014378,19510,"Fees / expenses of professionals such as auditors, accountants, lawyers, etc. engaged to provide advice or opinion on how to affect something"
Department for Education,DEPARTMENT FOR EDUCATION,16/10/2017,Grants,STRATEGIC IMPROVEMENT - PROTECTED,LEARNING ACADEMY PARTNERSHIP,1041012807,121366,Grants to educational establishments or not for profit organisations including other businesses
Department for Education,DEPARTMENT FOR EDUCATION,16/10/2017,Grants,STRATEGIC IMPROVEMENT - PROTECTED,LEARNING UNLIMITED TEACHING SCHOOL ALLIANCE,1041012787,58460,Grants to educational establishments or not for profit organisations including other businesses
Department for Education,DEPARTMENT FOR EDUCATION,16/10/2017,Grants,STRATEGIC IMPROVEMENT - PROTECTED,LEARNING UNLIMITED TEACHING SCHOOL ALLIANCE,1041012787,100480,Grants to educational establishments or not for profit organisations including other businesses
Department for Education,NATIONAL COLLEGE FOR TEACHING & LEADERSHIP,24/10/2017,Grants,Delivery Directorate,LEE CHAPEL ACADEMY TRUST - TS ACCOUNT,1041013700,40000,Grants to educational establishments or not for profit organisations including other businesses
Department for Education,NATIONAL COLLEGE FOR TEACHING & LEADERSHIP,03/10/2017,Grants,Operations Directorate,LEEDS BECKETT UNIVERSITY,1041011473,62484.84,Grants to educational establishments or not for profit organisations including other businesses
Department for Education,NATIONAL COLLEGE FOR TEACHING & LEADERSHIP,03/10/2017,Grants,Operations Directorate,LEEDS CITY COUNCIL,1041011351,39429,Grants to educational establishments or not for profit organisations including other businesses
Department for Education,DEPARTMENT FOR EDUCATION,16/10/2017,Grants,STRATEGIC IMPROVEMENT - PROTECTED,LEEDS CITY COUNCIL,1041012834,49833,Grants to educational establishments or not for profit organisations including other businesses
Department for Education,DEPARTMENT FOR EDUCATION,26/10/2017,Grants,Strategy and Social Mobility and Opportunity Areas Group,LEEDS CITY COUNCIL,1041014103,118430,Grants to local authorities / other establishments within aggregate external funding or aggregate exchequer grant
Department for Education,NATIONAL COLLEGE FOR TEACHING & LEADERSHIP,03/10/2017,Grants,Operations Directorate,LEEDS TRINITY UNIVERSITY COLLEGE,1041011350,233096.94,Grants to educational establishments or not for profit organisations including other businesses
Department for Education,DEPARTMENT FOR EDUCATION,10/10/2017,Grants,System Reform Group,LEICESTERSHIRE COUNTY COUNCIL,1041012022,30700,Grants to local authorities / other establishments within aggregate external funding or aggregate exchequer grant
Department for Education,DEPARTMENT FOR EDUCATION,24/10/2017,Grants,Early Years Group,LEICESTERSHIRE COUNTY COUNCIL,1041013743,2233944,Grants to local authorities / other establishments within aggregate external funding or aggregate exchequer grant
Department for Education,DEPARTMENT FOR EDUCATION,26/10/2017,Grants,Strategy and Social Mobility and Opportunity Areas Group,LEICESTERSHIRE COUNTY COUNCIL,1041014099,78750,Grants to local authorities / other establishments within aggregate external funding or aggregate exchequer grant
Department for Education,NATIONAL COLLEGE FOR TEACHING & LEADERSHIP,03/10/2017,Grants,Operations Directorate,LEICESTERSHIRE SECONDARY SCITT,1041011184,46609.47,Grants to educational establishments or not for profit organisations including other businesses
Department for Education,DEPARTMENT FOR EDUCATION,24/10/2017,Facilities,Digital and Technology Group,LEIDOS INNOVATIONS UK LTD,1041013750,26916,"Maintenance, repair and cleaning including of equipment"
Department for Education,DEPARTMENT FOR EDUCATION,24/10/2017,Grants,Academies Regional Delivery Group,LEO ACADEMY TRUST,1041013801,25000,Grants to educational establishments or not for profit organisations including other businesses
Department for Education,DEPARTMENT FOR EDUCATION,24/10/2017,Grants,Academies Regional Delivery Group,LEO ACADEMY TRUST,1041013801,25000,Grants to educational establishments or not for profit organisations including other businesses
Department for Education,DEPARTMENT FOR EDUCATION,16/10/2017,Grants,Government Equalities Office,LGBT CONSORTIUM,1041012804,40325,Grants to educational establishments or not for profit organisations including other businesses
Department for Education,NATIONAL COLLEGE FOR TEACHING & LEADERSHIP,11/10/2017,Grants,Delivery Directorate,LIGHTWOODS PRIMARY SCHOOL,1041012414,40000,Grants to educational establishments or not for profit organisations including other businesses
Department for Education,DEPARTMENT FOR EDUCATION,10/10/2017,Grants,System Reform Group,LINCOLNSHIRE COUNTY COUNCIL,1041012085,53367,Grants to local authorities / other establishments within aggregate external funding or aggregate exchequer grant
Department for Education,DEPARTMENT FOR EDUCATION,26/10/2017,Grants,Strategy and Social Mobility and Opportunity Areas Group,LINCOLNSHIRE COUNTY COUNCIL,1041014129,78750,Grants to local authorities / other establishments within aggregate external funding or aggregate exchequer grant
Department for Education,DEPARTMENT FOR EDUCATION,27/10/2017,Grants,Strategy and Social Mobility and Opportunity Areas Group,LINCOLNSHIRE COUNTY COUNCIL,1041014283,109773.42,Grants to local authorities / other establishments within aggregate external funding or aggregate exchequer grant
Department for Education,NATIONAL COLLEGE FOR TEACHING & LEADERSHIP,03/10/2017,Grants,Operations Directorate,LINCOLNSHIRE TEACHING SCHOOL ALLIANCE,1041011417,34394.49,Grants to educational establishments or not for profit organisations including other businesses
Department for Education,NATIONAL COLLEGE FOR TEACHING & LEADERSHIP,20/10/2017,Grants,Delivery Directorate,LINCOLNSHIRE TEACHING SCHOOL ALLIANCE,1041013460,54560,Grants to educational establishments or not for profit organisations including other businesses
Department for Education,NATIONAL COLLEGE FOR TEACHING & LEADERSHIP,30/10/2017,Grants,Delivery Directorate,LINTON VILLAGE COLLEGE TS ACCOUNT,1041014394,40000,Grants to educational establishments or not for profit organisations including other businesses
Department for Education,NATIONAL COLLEGE FOR TEACHING & LEADERSHIP,11/10/2017,Grants,Delivery Directorate,LINWOOD SCHOOL,1041012445,40000,Grants to educational establishments or not for profit organisations including other businesses
Department for Education,DEPARTMENT FOR EDUCATION,27/10/2017,Grants,Strategy and Social Mobility and Opportunity Areas Group,LIVERPOOL CITY COUNCIL,1041014172,92261.9,Grants to local authorities / other establishments within aggregate external funding or aggregate exchequer grant
Department for Education,NATIONAL COLLEGE FOR TEACHING & LEADERSHIP,03/10/2017,Grants,Operations Directorate,LIVERPOOL HOPE UNIVERSITY,1041011240,263793.51,Grants to educational establishments or not for profit organisations including other businesses
Department for Education,NATIONAL COLLEGE FOR TEACHING & LEADERSHIP,03/10/2017,Grants,Operations Directorate,LIVERPOOL JOHN MOORES UNIVERSITY,1041011492,311651.46,Grants to educational establishments or not for profit organisations including other businesses
Department for Education,DEPARTMENT FOR EDUCATION,26/10/2017,Grants,Strategy and Social Mobility and Opportunity Areas Group,LONDON BOROUGH OF BARKING & DAGENHAM COUNCIL,1041014136,39300,Grants to local authorities / other establishments within aggregate external funding or aggregate exchequer grant
Department for Education,DEPARTMENT FOR EDUCATION,26/10/2017,Grants,Strategy and Social Mobility and Opportunity Areas Group,LONDON BOROUGH OF BEXLEY COUNCIL,1041014135,78750,Grants to local authorities / other establishments within aggregate external funding or aggregate exchequer grant
Department for Education,DEPARTMENT FOR EDUCATION,26/10/2017,Grants,Strategy and Social Mobility and Opportunity Areas Group,LONDON BOROUGH OF BRENT,1041014134,78750,Grants to local authorities / other establishments within aggregate external funding or aggregate exchequer grant
Department for Education,DEPARTMENT FOR EDUCATION,26/10/2017,Grants,Strategy and Social Mobility and Opportunity Areas Group,LONDON BOROUGH OF CAMDEN,1041014131,272874,Grants to local authorities / other establishments within aggregate external funding or aggregate exchequer grant
Department for Education,DEPARTMENT FOR EDUCATION,26/10/2017,Grants,Strategy and Social Mobility and Opportunity Areas Group,LONDON BOROUGH OF CROYDON COUNCIL,1041014133,340079,Grants to local authorities / other establishments within aggregate external funding or aggregate exchequer grant
Department for Education,DEPARTMENT FOR EDUCATION,26/10/2017,Grants,Strategy and Social Mobility and Opportunity Areas Group,LONDON BOROUGH OF EALING COUNCIL,1041014123,630934,Grants to local authorities / other establishments within aggregate external funding or aggregate exchequer grant
Department for Education,DEPARTMENT FOR EDUCATION,26/10/2017,Grants,Strategy and Social Mobility and Opportunity Areas Group,LONDON BOROUGH OF GREENWICH,1041014151,273682.34,Grants to local authorities / other establishments within aggregate external funding or aggregate exchequer grant
Department for Education,DEPARTMENT FOR EDUCATION,26/10/2017,Grants,Strategy and Social Mobility and Opportunity Areas Group,LONDON BOROUGH OF HAMMERSMITH & FULHAM COUNCIL,1041014152,217761,Grants to local authorities / other establishments within aggregate external funding or aggregate exchequer grant
Department for Education,DEPARTMENT FOR EDUCATION,26/10/2017,Grants,Strategy and Social Mobility and Opportunity Areas Group,LONDON BOROUGH OF HAVERING COUNCIL,1041014139,180000,Grants to local authorities / other establishments within aggregate external funding or aggregate exchequer grant
Department for Education,DEPARTMENT FOR EDUCATION,09/10/2017,Grants,Strategy and Social Mobility and Opportunity Areas Group,LONDON BOROUGH OF ISLINGTON COUNCIL,1041011916,48000,Grants to local authorities / other establishments within aggregate external funding or aggregate exchequer grant
Department for Education,DEPARTMENT FOR EDUCATION,26/10/2017,Grants,Strategy and Social Mobility and Opportunity Areas Group,LONDON BOROUGH OF ISLINGTON COUNCIL,1041014132,499278,Grants to local authorities / other establishments within aggregate external funding or aggregate exchequer grant
Department for Education,DEPARTMENT FOR EDUCATION,26/10/2017,Grants,Strategy and Social Mobility and Opportunity Areas Group,LONDON BOROUGH OF NEWHAM,1041014158,545478,Grants to local authorities / other establishments within aggregate external funding or aggregate exchequer grant
Department for Education,DEPARTMENT FOR EDUCATION,24/10/2017,Grants,Early Years Group,LONDON BOROUGH OF TOWER HAMLETS COUNCIL,1041013820,566817.06,Grants to local authorities / other establishments within aggregate external funding or aggregate exchequer grant
Department for Education,DEPARTMENT FOR EDUCATION,26/10/2017,Grants,Strategy and Social Mobility and Opportunity Areas Group,LONDON BOROUGH OF TOWER HAMLETS COUNCIL,1041014140,99866,Grants to local authorities / other establishments within aggregate external funding or aggregate exchequer grant
Department for Education,DEPARTMENT FOR EDUCATION,27/10/2017,Grants,Strategy and Social Mobility and Opportunity Areas Group,LONDON COUNCILS,1041014280,147827.58,Grants to local authorities / other establishments within aggregate external funding or aggregate exchequer grant
Department for Education,NATIONAL COLLEGE FOR TEACHING & LEADERSHIP,03/10/2017,Grants,Operations Directorate,LONDON METROPOLITAN UNIVERSITY,1041011382,131826.96,Grants to educational establishments or not for profit organisations including other businesses
Department for Education,DEPARTMENT FOR EDUCATION,26/10/2017,Professional Services Other,Further Education Group,LONDON SCHOOL OF ECONOMICS & POLITICAL SCIENCE LSE,1041014160,500000,Research and evaluation activities
Department for Education,NATIONAL COLLEGE FOR TEACHING & LEADERSHIP,03/10/2017,Grants,Operations Directorate,LOUGHBOROUGH UNIVERSITY ENTERPRISE LTD,1041011431,37800,Grants to educational establishments or not for profit organisations including other businesses
Department for Education,DEPARTMENT FOR EDUCATION,26/10/2017,Grants,Strategy and Social Mobility and Opportunity Areas Group,LUTON BOROUGH COUNCIL,1041014122,411066.25,Grants to local authorities / other establishments within aggregate external funding or aggregate exchequer grant
Department for Education,DEPARTMENT FOR EDUCATION,26/10/2017,Facilities,Property Asset Management Group,MACE LTD,1041014079,204663,purchase of capital expense e.g. furniture
Department for Education,DEPARTMENT FOR EDUCATION,23/10/2017,Grants,Academies Regional Delivery Group,MAGNA LEARNING PARTNERSHIP,1041013615,150000,Grants to educational establishments or not for profit organisations including other businesses
Department for Education,NATIONAL COLLEGE FOR TEACHING & LEADERSHIP,20/10/2017,Grants,Delivery Directorate,MALMESBURY SCHOOL,1041013393,63301,Grants to educational establishments or not for profit organisations including other businesses
Department for Education,NATIONAL COLLEGE FOR TEACHING & LEADERSHIP,30/10/2017,Grants,Delivery Directorate,MALMESBURY SCHOOL,1041014305,36666,Grants to educational establishments or not for profit organisations including other businesses
Department for Education,DEPARTMENT FOR EDUCATION,30/10/2017,Grants,Strategy and Social Mobility and Opportunity Areas Group,MANCHESTER CITY COUNCIL,1041014362,97000,Grants to local authorities / other establishments within aggregate external funding or aggregate exchequer grant
Department for Education,NATIONAL COLLEGE FOR TEACHING & LEADERSHIP,03/10/2017,Grants,Operations Directorate,MANCHESTER METROPOLITAN UNIVERSITY,1041011217,604517.58,Grants to educational establishments or not for profit organisations including other businesses
Department for Education,NATIONAL COLLEGE FOR TEACHING & LEADERSHIP,03/10/2017,Grants,Operations Directorate,MANCHESTER NEXUS SCITT,1041011249,40934.97,Grants to educational establishments or not for profit organisations including other businesses
Department for Education,NATIONAL COLLEGE FOR TEACHING & LEADERSHIP,03/10/2017,Grants,Delivery Directorate,MANOR MULTI ACADEMY TRUST,1041011277,58500,Grants to educational establishments or not for profit organisations including other businesses
Department for Education,DEPARTMENT FOR EDUCATION,16/10/2017,Grants,STRATEGIC IMPROVEMENT - PROTECTED,MANOR MULTI ACADEMY TRUST,1041012743,140700,Grants to educational establishments or not for profit organisations including other businesses
Department for Education,DEPARTMENT FOR EDUCATION,20/10/2017,Grants,"Accountability, Curriculum and Qualifications Group",MARY ROSE ACADEMY,1041013493,240000,Grants to educational establishments or not for profit organisations including other businesses
Department for Education,DEPARTMENT FOR EDUCATION,02/10/2017,Professional Services Consultancy and Contingent Labour,Digital and Technology Group,METHODS PROFESSIONAL SERVICES LTD,1041011096,48075,"Advisory services including fees, travel and expenses"
Department for Education,DEPARTMENT FOR EDUCATION,02/10/2017,Professional Services Consultancy and Contingent Labour,Digital and Technology Group,METHODS PROFESSIONAL SERVICES LTD,1041011096,55550,"Advisory services including fees, travel and expenses"
Department for Education,DEPARTMENT FOR EDUCATION,26/10/2017,Professional Services Consultancy and Contingent Labour,Property Asset Management Group,METHODS PROFESSIONAL SERVICES LTD,1041014057,26702.74,"Fees / expenses of professionals such as auditors, accountants, lawyers, etc. engaged to provide advice or opinion on how to affect something"
Department for Education,DEPARTMENT FOR EDUCATION,26/10/2017,Professional Services Consultancy and Contingent Labour,Property Asset Management Group,METHODS PROFESSIONAL SERVICES LTD,1041014057,5340.55,"Fees / expenses of professionals such as auditors, accountants, lawyers, etc. engaged to provide advice or opinion on how to affect something"
Department for Education,DEPARTMENT FOR EDUCATION,31/10/2017,Professional Services Consultancy and Contingent Labour,Digital and Technology Group,METHODS PROFESSIONAL SERVICES LTD,1041014479,32605,"Advisory services including fees, travel and expenses"
Department for Education,DEPARTMENT FOR EDUCATION,18/10/2017,Grants,Government Equalities Office,METRO CHARITY,1041013144,33884.75,Grants to educational establishments or not for profit organisations including other businesses
Department for Education,DEPARTMENT FOR EDUCATION,02/10/2017,Professional Services Other,Digital and Technology Group,M-HANCE,1041011087,60454.86,Shared corporate accounting services
Department for Education,DEPARTMENT FOR EDUCATION,13/10/2017,Personnel Related,Finance and Commercial Group,MICHAEL PAGE INTERNATIONAL RECRUITMENT LTD,1041012675,4763.17,Recruitment costs / Secondment costs
Department for Education,DEPARTMENT FOR EDUCATION,13/10/2017,Personnel Related,Finance and Commercial Group,MICHAEL PAGE INTERNATIONAL RECRUITMENT LTD,1041012675,23680.82,Recruitment costs / Secondment costs
Department for Education,DEPARTMENT FOR EDUCATION,12/10/2017,Professional Services Consultancy and Contingent Labour,Digital and Technology Group,MICROSOFT LTD,1041012560,38619.14,"Advisory services including fees, travel and expenses"
Department for Education,NATIONAL COLLEGE FOR TEACHING & LEADERSHIP,03/10/2017,Grants,Operations Directorate,MID ESSEX INITIAL TEACHER TRAINING,1041011320,35475.03,Grants to educational establishments or not for profit organisations including other businesses
Department for Education,NATIONAL COLLEGE FOR TEACHING & LEADERSHIP,03/10/2017,Grants,Operations Directorate,MID SOMERSET CONSORTIUM FOR TEACHER TRAINING,1041011368,53479.53,Grants to educational establishments or not for profit organisations including other businesses
Department for Education,NATIONAL COLLEGE FOR TEACHING & LEADERSHIP,11/10/2017,Grants,Delivery Directorate,MIDDLEFIELD COMMUNITY PRIMARY SCHOOL,1041012466,40000,Grants to educational establishments or not for profit organisations including other businesses
Department for Education,NATIONAL COLLEGE FOR TEACHING & LEADERSHIP,03/10/2017,Grants,Operations Directorate,MIDDLESEX UNIVERSITY,1041011535,114888.78,Grants to educational establishments or not for profit organisations including other businesses
Department for Education,NATIONAL COLLEGE FOR TEACHING & LEADERSHIP,11/10/2017,Grants,Delivery Directorate,MIDDLETON TECHNOLOGY SCHOOL,1041012440,40000,Grants to educational establishments or not for profit organisations including other businesses
Department for Education,NATIONAL COLLEGE FOR TEACHING & LEADERSHIP,11/10/2017,Grants,Delivery Directorate,MILLAIS SCHOOL,1041012448,40000,Grants to educational establishments or not for profit organisations including other businesses
Department for Education,DEPARTMENT FOR EDUCATION,19/10/2017,Grants,Student Finance and Analysis Group,MINISTRY OF DEFENCE,30000108,263360,Current grant funding to other government departments for DfE's contribution to jointly funded programmes 
Department for Education,DEPARTMENT FOR EDUCATION,12/10/2017,Professional Services Consultancy and Contingent Labour,Human Resources Group,MINISTRY OF JUSTICE,1041012530,69498,"Fees / expenses of professionals such as auditors, accountants, lawyers, etc. engaged to provide advice or opinion on how to affect something"
Department for Education,DEPARTMENT FOR EDUCATION,30/10/2017,Facilities,Property Asset Management Group,MONTAGU EVANS LLP,10000411,128054.23,Rent
Department for Education,DEPARTMENT FOR EDUCATION,30/10/2017,Facilities,Property Asset Management Group,MONTAGU EVANS LLP,10000412,404213.84,Rent
Department for Education,DEPARTMENT FOR EDUCATION,30/10/2017,Facilities,Property Asset Management Group,MONTAGU EVANS LLP,10000413,209765.58,Rent
Department for Education,DEPARTMENT FOR EDUCATION,23/10/2017,Grants,Academies Regional Delivery Group,MONTENEY PRIMARY SCHOOL,1041013612,25000,Grants to educational establishments or not for profit organisations including other businesses
Department for Education,DEPARTMENT FOR EDUCATION,23/10/2017,Grants,Academies Regional Delivery Group,MONTENEY PRIMARY SCHOOL,1041013612,25000,Grants to educational establishments or not for profit organisations including other businesses
Department for Education,NATIONAL COLLEGE FOR TEACHING & LEADERSHIP,11/10/2017,Grants,Delivery Directorate,MORRIS EDUCATION TRUST,1041012259,60000,Grants to educational establishments or not for profit organisations including other businesses
Department for Education,NATIONAL COLLEGE FOR TEACHING & LEADERSHIP,24/10/2017,Grants,Delivery Directorate,MOSSLEY HOLLINS HIGH SCHOOL,1041013756,50000,Grants to educational establishments or not for profit organisations including other businesses
Department for Education,DEPARTMENT FOR EDUCATION,05/10/2017,Programme costs,Early Years Group,MOTT MACDONALD LTD,1041011781,48078.3,Funding to deliver policies (excluding consultancy) paid to third parties via a service delivery contract
Department for Education,DEPARTMENT FOR EDUCATION,05/10/2017,Programme costs,Early Years Group,MOTT MACDONALD LTD,1041011781,9615.66,Funding to deliver policies (excluding consultancy) paid to third parties via a service delivery contract
Department for Education,DEPARTMENT FOR EDUCATION,06/10/2017,Programme costs,Adoption and Children in Care Division,MOTT MACDONALD LTD,1041011882,106379.8,Funding to deliver policies (excluding consultancy) paid to third parties via a service delivery contract
Department for Education,DEPARTMENT FOR EDUCATION,06/10/2017,Programme costs,Adoption and Children in Care Division,MOTT MACDONALD LTD,1041011882,21275.96,Funding to deliver policies (excluding consultancy) paid to third parties via a service delivery contract
Department for Education,DEPARTMENT FOR EDUCATION,06/10/2017,Programme costs,Early Years Group,MOTT MACDONALD LTD,1041011882,142303.71,Funding to deliver policies (excluding consultancy) paid to third parties via a service delivery contract
Department for Education,DEPARTMENT FOR EDUCATION,06/10/2017,Programme costs,Early Years Group,MOTT MACDONALD LTD,1041011882,28460.74,Funding to deliver policies (excluding consultancy) paid to third parties via a service delivery contract
Department for Education,NATIONAL COLLEGE FOR TEACHING & LEADERSHIP,11/10/2017,Grants,Delivery Directorate,MOUNT HAWKE ACADEMY,1041012271,60000,Grants to educational establishments or not for profit organisations including other businesses
Department for Education,NATIONAL COLLEGE FOR TEACHING & LEADERSHIP,11/10/2017,Grants,Delivery Directorate,MOUNT STREET INFANT & NURSERY SCHOOL,1041012411,40000,Grants to educational establishments or not for profit organisations including other businesses
Department for Education,NATIONAL COLLEGE FOR TEACHING & LEADERSHIP,18/10/2017,Grants,Delivery Directorate,MULBERRY BUSH DAY NURSERY,1041013236,40000,Grants to educational establishments or not for profit organisations including other businesses
Department for Education,NATIONAL COLLEGE FOR TEACHING & LEADERSHIP,03/10/2017,Grants,Delivery Directorate,MULBERRY SCHOOLS TRUST,1041011411,40000,Grants to educational establishments or not for profit organisations including other businesses
Department for Education,DEPARTMENT FOR EDUCATION,23/10/2017,Grants,Student Finance and Analysis Group,NATIONAL ASSEMBLY FOR WALES,10000406,8688463,Current grant funding to other government departments for DfE's contribution to jointly funded programmes 
Department for Education,DEPARTMENT FOR EDUCATION,16/10/2017,Programme costs,Special Educational Needs and Disadvantage Group,NATIONAL AUTISTIC SOCIETY,1041012747,62500,Funding to deliver policies (excluding consultancy) paid to third parties via a service delivery contract
Department for Education,DEPARTMENT FOR EDUCATION,30/10/2017,Professional Services Other,Strategic Analysis and Research Group,NATIONAL CENTRE FOR SOCIAL RESEARCH,1041014341,61865,Research and evaluation activities
Department for Education,DEPARTMENT FOR EDUCATION,24/10/2017,Grants,Early Years Group,NATIONAL CHILDMINDING ASSOC,1041013821,85227.59,Grants to educational establishments or not for profit organisations including other businesses
Department for Education,DEPARTMENT FOR EDUCATION,16/10/2017,Grants,Government Equalities Office,NATIONAL CHILDRENS BUREAU,1041012769,53351,Grants to educational establishments or not for profit organisations including other businesses
Department for Education,DEPARTMENT FOR EDUCATION,18/10/2017,Grants,Special Educational Needs and Disadvantage Group,NATIONAL CHILDRENS BUREAU,1041013269,56204.81,Grants to educational establishments or not for profit organisations including other businesses
Department for Education,DEPARTMENT FOR EDUCATION,27/10/2017,Grants,Further Education Group,NATIONAL LEARNING & WORK INSTITUTE,1041014193,405000,Grants to educational establishments or not for profit organisations including other businesses
Department for Education,DEPARTMENT FOR EDUCATION,24/10/2017,Grants,Early Years Group,NATIONAL PORTAGE ASSOCIATION,1041013837,26133.14,Grants to educational establishments or not for profit organisations including other businesses
Department for Education,DEPARTMENT FOR EDUCATION,16/10/2017,Grants,STRATEGIC IMPROVEMENT - PROTECTED,NEW COLLEGE EDUCATIONAL TRUST,1041012682,56670,Grants to educational establishments or not for profit organisations including other businesses
Department for Education,DEPARTMENT FOR EDUCATION,05/10/2017,Grants,Free Schools Group,NEW COLLEGE SWINDON TRUST,1041011709,30000,Grants to educational establishments or not for profit organisations including other businesses
Department for Education,DEPARTMENT FOR EDUCATION,13/10/2017,Grants,Academies Regional Delivery Group,NEW PARK PRIMARY SCHOOL,1041012605,25000,Grants to educational establishments or not for profit organisations including other businesses
Department for Education,DEPARTMENT FOR EDUCATION,16/10/2017,Grants,Free Schools Group,NEW SCHOOLS NETWORK,1041012709,121088.95,Grants to educational establishments or not for profit organisations including other businesses
Department for Education,DEPARTMENT FOR EDUCATION,16/10/2017,Grants,Academies Regional Delivery Group,NEWBY & SCALBY PRIMARY SCHOOL,1041012751,25000,Grants to educational establishments or not for profit organisations including other businesses
Department for Education,DEPARTMENT FOR EDUCATION,26/10/2017,Grants,Strategy and Social Mobility and Opportunity Areas Group,NEWCASTLE CITY COUNCIL,1041014149,238000,Grants to local authorities / other establishments within aggregate external funding or aggregate exchequer grant
Department for Education,DEPARTMENT FOR EDUCATION,27/10/2017,Grants,Strategy and Social Mobility and Opportunity Areas Group,NEWCASTLE CITY COUNCIL,1041014171,91800.65,Grants to local authorities / other establishments within aggregate external funding or aggregate exchequer grant
Department for Education,NATIONAL COLLEGE FOR TEACHING & LEADERSHIP,03/10/2017,Grants,Operations Directorate,NEWMAN COLLEGE,1041011527,108659.43,Grants to educational establishments or not for profit organisations including other businesses
Department for Education,DEPARTMENT FOR EDUCATION,03/10/2017,Professional Services Other,International Education Group,NFER,1041011462,74290,Research and evaluation activities
Department for Education,DEPARTMENT FOR EDUCATION,10/10/2017,Grants,System Reform Group,NORFOLK COUNTY COUNCIL,1041012032,55692,Grants to local authorities / other establishments within aggregate external funding or aggregate exchequer grant
Department for Education,DEPARTMENT FOR EDUCATION,11/10/2017,Grants,Strategy and Social Mobility and Opportunity Areas Group,NORFOLK COUNTY COUNCIL,1041012332,500000,Grants to local authorities / other establishments within aggregate external funding or aggregate exchequer grant
Department for Education,DEPARTMENT FOR EDUCATION,26/10/2017,Grants,Strategy and Social Mobility and Opportunity Areas Group,NORFOLK COUNTY COUNCIL,1041014116,78750,Grants to local authorities / other establishments within aggregate external funding or aggregate exchequer grant
Department for Education,NATIONAL COLLEGE FOR TEACHING & LEADERSHIP,03/10/2017,Grants,Operations Directorate,NORTH BEDS SCITT CONSORTIUM,1041011509,53248.86,Grants to educational establishments or not for profit organisations including other businesses
Department for Education,DEPARTMENT FOR EDUCATION,26/10/2017,Grants,Adoption and Children in Care Division,NORTH EAST LINCOLNSHIRE COUNCIL,1041014138,50450,Grants to local authorities / other establishments within aggregate external funding or aggregate exchequer grant
Department for Education,DEPARTMENT FOR EDUCATION,27/10/2017,Grants,Strategy and Social Mobility and Opportunity Areas Group,NORTH EAST LINCOLNSHIRE COUNCIL,1041014279,309245,Grants to local authorities / other establishments within aggregate external funding or aggregate exchequer grant
Department for Education,NATIONAL COLLEGE FOR TEACHING & LEADERSHIP,03/10/2017,Grants,Operations Directorate,NORTH ESSEX TEACHER TRAINING,1041011489,30852.18,Grants to educational establishments or not for profit organisations including other businesses
Department for Education,DEPARTMENT FOR EDUCATION,26/10/2017,Grants,Adoption and Children in Care Division,NORTH TYNESIDE,1041014148,55000,Grants to local authorities / other establishments within aggregate external funding or aggregate exchequer grant
Department for Education,DEPARTMENT FOR EDUCATION,10/10/2017,Grants,System Reform Group,NORTH YORKSHIRE COUNTY COUNCIL,1041012235,26417,Grants to local authorities / other establishments within aggregate external funding or aggregate exchequer grant
Department for Education,DEPARTMENT FOR EDUCATION,11/10/2017,Grants,Strategy and Social Mobility and Opportunity Areas Group,NORTH YORKSHIRE COUNTY COUNCIL,1041012316,500000,Grants to local authorities / other establishments within aggregate external funding or aggregate exchequer grant
Department for Education,DEPARTMENT FOR EDUCATION,24/10/2017,Grants,Early Years Group,NORTH YORKSHIRE COUNTY COUNCIL,1041013806,2717642.8,Grants to local authorities / other establishments within aggregate external funding or aggregate exchequer grant
Department for Education,NATIONAL COLLEGE FOR TEACHING & LEADERSHIP,03/10/2017,Grants,Operations Directorate,NORTHAMPTON TEACHER TRAINING,1041011488,25785,Grants to educational establishments or not for profit organisations including other businesses
Department for Education,DEPARTMENT FOR EDUCATION,10/10/2017,Grants,System Reform Group,NORTHAMPTONSHIRE COUNTY COUNCIL,1041012033,28467,Grants to local authorities / other establishments within aggregate external funding or aggregate exchequer grant
Department for Education,DEPARTMENT FOR EDUCATION,03/10/2017,Grants,Early Years Group,NORTHUMBERLAND COUNTY COUNCIL,1041011381,635253.73,Grants to local authorities / other establishments within aggregate external funding or aggregate exchequer grant
Department for Education,NATIONAL COLLEGE FOR TEACHING & LEADERSHIP,03/10/2017,Grants,Operations Directorate,NORWICH CITY COLLEGE,1041011233,45060.03,Grants to educational establishments or not for profit organisations including other businesses
Department for Education,NATIONAL COLLEGE FOR TEACHING & LEADERSHIP,03/10/2017,Grants,Operations Directorate,NOTRE DAME HIGH SCHOOL,1041011371,42305.94,Grants to educational establishments or not for profit organisations including other businesses
Department for Education,DEPARTMENT FOR EDUCATION,20/10/2017,Grants,"Accountability, Curriculum and Qualifications Group",NOTRE DAME HIGH SCHOOL,1041013363,240000,Grants to educational establishments or not for profit organisations including other businesses
Department for Education,NATIONAL COLLEGE FOR TEACHING & LEADERSHIP,17/10/2017,Grants,Delivery Directorate,NOTRE DAME HIGH SCHOOL TS ACCOUNT,1041012926,39925,Grants to educational establishments or not for profit organisations including other businesses
Department for Education,NATIONAL COLLEGE FOR TEACHING & LEADERSHIP,03/10/2017,Grants,Operations Directorate,NOTTINGHAM TRENT UNIVERSITY,1041011284,128817.45,Grants to educational establishments or not for profit organisations including other businesses
Department for Education,DEPARTMENT FOR EDUCATION,10/10/2017,Grants,System Reform Group,NOTTINGHAMSHIRE COUNTY COUNCIL,1041012242,35167,Grants to local authorities / other establishments within aggregate external funding or aggregate exchequer grant
Department for Education,NATIONAL COLLEGE FOR TEACHING & LEADERSHIP,03/10/2017,Grants,Operations Directorate,NOTTINGHAMSHIRE TORCH SCITT,1041011416,46746,Grants to educational establishments or not for profit organisations including other businesses
Department for Education,NATIONAL COLLEGE FOR TEACHING & LEADERSHIP,11/10/2017,Grants,Delivery Directorate,NUNTHORPE SCHOOL,1041012441,40000,Grants to educational establishments or not for profit organisations including other businesses
Department for Education,DEPARTMENT FOR EDUCATION,13/10/2017,Professional Services Consultancy and Contingent Labour,Strategy and Social Mobility and Opportunity Areas Group,NWG NETWORK,1041012643,44769.52,"Fees / expenses of professionals such as auditors, accountants, lawyers, etc. engaged to provide advice or opinion on how to affect something"
Department for Education,DEPARTMENT FOR EDUCATION,27/10/2017,Grants,Academies Regional Delivery Group,OAKLANDS INFANT SCHOOL,1041014230,25000,Grants to educational establishments or not for profit organisations including other businesses
Department for Education,DEPARTMENT FOR EDUCATION,27/10/2017,Grants,Academies Regional Delivery Group,OAKLANDS JUNIOR SCHOOL,1041014231,25000,Grants to educational establishments or not for profit organisations including other businesses
Department for Education,NATIONAL COLLEGE FOR TEACHING & LEADERSHIP,17/10/2017,Grants,Delivery Directorate,OAKTHORPE PRIMARY SCHOOL,1041012993,40000,Grants to educational establishments or not for profit organisations including other businesses
Department for Education,DEPARTMENT FOR EDUCATION,16/10/2017,Grants,Academies Regional Delivery Group,OASIS COMMUNITY LEARNING,1041012768,25000,Grants to educational establishments or not for profit organisations including other businesses
Department for Education,DEPARTMENT FOR EDUCATION,23/10/2017,Professional Services Other,Strategic Analysis and Research Group,OECD,20000030,185000.45,Research and evaluation activities
Department for Education,DEPARTMENT FOR EDUCATION,19/10/2017,Grants,Higher Education Strategy and Policy Group,OFFICE FOR FAIR ACCESS,30000107,185000,Current grants paid to organisations including arms length bodies and educational establishments
Department for Education,DEPARTMENT FOR EDUCATION,02/10/2017,Grants,Strategy and Social Mobility and Opportunity Areas Group,OFFICE OF THE CHILDRENS COMMISSIONER,30000093,251717.8,Current grants paid to organisations including arms length bodies and educational establishments
Department for Education,DEPARTMENT FOR EDUCATION,11/10/2017,Grants,Strategy and Social Mobility and Opportunity Areas Group,OLDHAM MBC,1041012350,500000,Grants to local authorities / other establishments within aggregate external funding or aggregate exchequer grant
Department for Education,DEPARTMENT FOR EDUCATION,12/10/2017,Professional Services Consultancy and Contingent Labour,Education Funding Group,OLIVE JAR DIGITAL LTD,1041012485,36217.5,"Fees / expenses of professionals such as auditors, accountants, lawyers, etc. engaged to provide advice or opinion on how to affect something"
Department for Education,DEPARTMENT FOR EDUCATION,12/10/2017,Professional Services Consultancy and Contingent Labour,Education Funding Group,OLIVE JAR DIGITAL LTD,1041012485,7243.5,"Fees / expenses of professionals such as auditors, accountants, lawyers, etc. engaged to provide advice or opinion on how to affect something"
Department for Education,DEPARTMENT FOR EDUCATION,19/10/2017,Professional Services Other,Data Group,OLIVE JAR DIGITAL LTD,1041013323,228259.39,Shared corporate accounting services
Department for Education,DEPARTMENT FOR EDUCATION,19/10/2017,Professional Services Other,Data Group,OLIVE JAR DIGITAL LTD,1041013323,45651.88,Shared corporate accounting services
Department for Education,STANDARDS AND TESTING AGENCY,20/10/2017,Professional Services Consultancy and Contingent Labour,Test Operations Division,OLIVE JAR DIGITAL LTD,1041013359,100556.73,"Fees / expenses of professionals such as auditors, accountants, lawyers, etc. engaged to provide advice or opinion on how to affect something"
Department for Education,STANDARDS AND TESTING AGENCY,20/10/2017,Professional Services Consultancy and Contingent Labour,Test Operations Division,OLIVE JAR DIGITAL LTD,1041013359,20111.35,"Fees / expenses of professionals such as auditors, accountants, lawyers, etc. engaged to provide advice or opinion on how to affect something"
Department for Education,DEPARTMENT FOR EDUCATION,12/10/2017,Professional Services Consultancy and Contingent Labour,Strategy and Social Mobility and Opportunity Areas Group,OPCIT RESEARCH KM RESEARCH,1041012567,63613,"Fees / expenses of professionals such as auditors, accountants, lawyers, etc. engaged to provide advice or opinion on how to affect something"
Department for Education,DEPARTMENT FOR EDUCATION,27/10/2017,Grants,STRATEGIC IMPROVEMENT - PROTECTED,ORCHARD HILL COLLEGE,1041014232,149206,Grants to educational establishments or not for profit organisations including other businesses
Department for Education,NATIONAL COLLEGE FOR TEACHING & LEADERSHIP,24/10/2017,Grants,Delivery Directorate,OUR LADY OF PITY CATHOLIC PRIMARY SCHOOL,1041013895,40000,Grants to educational establishments or not for profit organisations including other businesses
Department for Education,NATIONAL COLLEGE FOR TEACHING & LEADERSHIP,20/10/2017,Grants,Delivery Directorate,OUR LADYS CATHOLIC HIGH SCHOOL,1041013506,30644,Grants to educational establishments or not for profit organisations including other businesses
Department for Education,NATIONAL COLLEGE FOR TEACHING & LEADERSHIP,20/10/2017,Grants,Delivery Directorate,OUTWOOD ACADEMY ADWICK,1041013421,28766.25,Grants to educational establishments or not for profit organisations including other businesses
Department for Education,DEPARTMENT FOR EDUCATION,18/10/2017,Grants,Academies Regional Delivery Group,OUTWOOD GRANGE ACADEMIES TRUST,1041013150,80000,Grants to educational establishments or not for profit organisations including other businesses
Department for Education,DEPARTMENT FOR EDUCATION,18/10/2017,Grants,Academies Regional Delivery Group,OUTWOOD GRANGE ACADEMIES TRUST,1041013150,70000,Grants to educational establishments or not for profit organisations including other businesses
Department for Education,DEPARTMENT FOR EDUCATION,20/10/2017,Grants,"Accountability, Curriculum and Qualifications Group",OUTWOOD GRANGE ACADEMY,1041013445,240000,Grants to educational establishments or not for profit organisations including other businesses
Department for Education,NATIONAL COLLEGE FOR TEACHING & LEADERSHIP,03/10/2017,Grants,Operations Directorate,OXFORD BROOKES UNIVERSITY,1041011511,40065.21,Grants to educational establishments or not for profit organisations including other businesses
Department for Education,DEPARTMENT FOR EDUCATION,05/10/2017,Grants,Academies Regional Delivery Group,OXFORD DIOCESAN BUCKS SCHOOLS TRUST,1041011701,25000,Grants to educational establishments or not for profit organisations including other businesses
Department for Education,DEPARTMENT FOR EDUCATION,11/10/2017,Grants,Academies Regional Delivery Group,OXFORD DIOCESAN BUCKS SCHOOLS TRUST,1041012434,25000,Grants to educational establishments or not for profit organisations including other businesses
Department for Education,DEPARTMENT FOR EDUCATION,11/10/2017,Grants,Academies Regional Delivery Group,OXFORD DIOCESAN BUCKS SCHOOLS TRUST,1041012434,25000,Grants to educational establishments or not for profit organisations including other businesses
Department for Education,DEPARTMENT FOR EDUCATION,23/10/2017,Grants,Academies Regional Delivery Group,OXFORD DIOCESAN BUCKS SCHOOLS TRUST,1041013618,25000,Grants to educational establishments or not for profit organisations including other businesses
Department for Education,DEPARTMENT FOR EDUCATION,10/10/2017,Grants,System Reform Group,OXFORDSHIRE COUNTY COUNCIL,1041012050,26775,Grants to local authorities / other establishments within aggregate external funding or aggregate exchequer grant
Department for Education,DEPARTMENT FOR EDUCATION,26/10/2017,Grants,Strategy and Social Mobility and Opportunity Areas Group,OXFORDSHIRE COUNTY COUNCIL,1041014117,117583,Grants to local authorities / other establishments within aggregate external funding or aggregate exchequer grant
Department for Education,NATIONAL COLLEGE FOR TEACHING & LEADERSHIP,27/10/2017,Grants,Delivery Directorate,OXTED SCHOOL,1041014221,29782,Grants to educational establishments or not for profit organisations including other businesses
Department for Education,DEPARTMENT FOR EDUCATION,18/10/2017,Grants,Adoption and Children in Care Division,PAC UK,1041013134,73648,Grants to educational establishments or not for profit organisations including other businesses
Department for Education,DEPARTMENT FOR EDUCATION,30/10/2017,Grants,Adoption and Children in Care Division,PACT CHARITY,1041014385,25715.96,Grants to educational establishments or not for profit organisations including other businesses
Department for Education,NATIONAL COLLEGE FOR TEACHING & LEADERSHIP,03/10/2017,Grants,Operations Directorate,PADDINGTON ACADEMY,1041011428,48977.73,Grants to educational establishments or not for profit organisations including other businesses
Department for Education,NATIONAL COLLEGE FOR TEACHING & LEADERSHIP,03/10/2017,Grants,Operations Directorate,PARTNERSHIP LONDON SCITT,1041011180,32711.67,Grants to educational establishments or not for profit organisations including other businesses
Department for Education,DEPARTMENT FOR EDUCATION,16/10/2017,Grants,STRATEGIC IMPROVEMENT - PROTECTED,PATHFINDER MULTI ACADEMY TRUST,1041012763,39200,Grants to educational establishments or not for profit organisations including other businesses
Department for Education,STANDARDS AND TESTING AGENCY,20/10/2017,Professional Services Consultancy and Contingent Labour,Test Operations Division,PEARSON EDUCATION LTD,1041013404,843189.98,"Fees / expenses of professionals such as auditors, accountants, lawyers, etc. engaged to provide advice or opinion on how to affect something"
Department for Education,NATIONAL COLLEGE FOR TEACHING & LEADERSHIP,03/10/2017,Grants,Operations Directorate,PENINSULA TEACHER TRAINING CORNWALL SCITT,1041011365,33599.97,Grants to educational establishments or not for profit organisations including other businesses
Department for Education,NATIONAL COLLEGE FOR TEACHING & LEADERSHIP,30/10/2017,Grants,Delivery Directorate,PENNYMAN PRIMARY ACADEMY,1041014381,50000,Grants to educational establishments or not for profit organisations including other businesses
Department for Education,NATIONAL COLLEGE FOR TEACHING & LEADERSHIP,11/10/2017,Grants,Delivery Directorate,PERCY HEDLEY SCHOOL,1041012327,40000,Grants to educational establishments or not for profit organisations including other businesses
Department for Education,NATIONAL COLLEGE FOR TEACHING & LEADERSHIP,11/10/2017,Grants,Delivery Directorate,PERRY HALL PRIMARY SCHOOL,1041012370,60000,Grants to educational establishments or not for profit organisations including other businesses
Department for Education,NATIONAL COLLEGE FOR TEACHING & LEADERSHIP,24/10/2017,Grants,Delivery Directorate,PETER PAN NURSERY SCHOOL,1041013870,40000,Grants to educational establishments or not for profit organisations including other businesses
Department for Education,DEPARTMENT FOR EDUCATION,26/10/2017,Grants,Strategy and Social Mobility and Opportunity Areas Group,PETERBOROUGH CITY COUNCIL,1041014145,374034.75,Grants to local authorities / other establishments within aggregate external funding or aggregate exchequer grant
Department for Education,DEPARTMENT FOR EDUCATION,03/10/2017,Facilities,Property Asset Management Group,PHUSEI LTD,1041011455,41084.28,"Low value furniture, fixtures and fittings"
Department for Education,DEPARTMENT FOR EDUCATION,03/10/2017,Facilities,Property Asset Management Group,PHUSEI LTD,1041011455,8216.86,"Low value furniture, fixtures and fittings"
Department for Education,DEPARTMENT FOR EDUCATION,18/10/2017,Facilities,Property Asset Management Group,PHUSEI LTD,1041013087,314732.6,purchase of capital expense e.g. furniture
Department for Education,DEPARTMENT FOR EDUCATION,18/10/2017,Facilities,Property Asset Management Group,PHUSEI LTD,1041013087,62946.52,purchase of capital expense e.g. furniture
Department for Education,DEPARTMENT FOR EDUCATION,27/10/2017,Grants,STRATEGIC IMPROVEMENT - PROTECTED,PLYMOUTH CAST,1041014219,62700,Grants to educational establishments or not for profit organisations including other businesses
Department for Education,NATIONAL COLLEGE FOR TEACHING & LEADERSHIP,03/10/2017,Grants,Operations Directorate,POOLE SECONDARY SCHOOLS,1041011466,31529.97,Grants to educational establishments or not for profit organisations including other businesses
Department for Education,NATIONAL COLLEGE FOR TEACHING & LEADERSHIP,17/10/2017,Grants,Delivery Directorate,POOLE TEACHING SCHOOL ALLIANCE TS ACCOUNT,1041012861,40000,Grants to educational establishments or not for profit organisations including other businesses
Department for Education,DEPARTMENT FOR EDUCATION,26/10/2017,Grants,Adoption and Children in Care Division,PORTSMOUTH CITY COUNCIL,1041014124,60000,Grants to local authorities / other establishments within aggregate external funding or aggregate exchequer grant
Department for Education,NATIONAL COLLEGE FOR TEACHING & LEADERSHIP,30/10/2017,Grants,Delivery Directorate,POUND HILL INFANT SCHOOL,1041014398,40000,Grants to educational establishments or not for profit organisations including other businesses
Department for Education,DEPARTMENT FOR EDUCATION,18/10/2017,Grants,Early Years Group,PRE SCHOOL LEARNING ALLIANCE,1041013095,114556,Grants to educational establishments or not for profit organisations including other businesses
Department for Education,DEPARTMENT FOR EDUCATION,27/10/2017,Grants,STRATEGIC IMPROVEMENT - PROTECTED,PRINCE HENRYS HIGH SCHOOL,1041014268,77696,Grants to educational establishments or not for profit organisations including other businesses
Department for Education,NATIONAL COLLEGE FOR TEACHING & LEADERSHIP,24/10/2017,Grants,Delivery Directorate,PRINCE ROCK PRIMARY SCHOOL FUND,1041013783,40000,Grants to educational establishments or not for profit organisations including other businesses
Department for Education,DEPARTMENT FOR EDUCATION,16/10/2017,Grants,STRATEGIC IMPROVEMENT - PROTECTED,PTSA ACTIVITIES,1041012798,81892,Grants to educational establishments or not for profit organisations including other businesses
Department for Education,DEPARTMENT FOR EDUCATION,11/10/2017,Grants,Free Schools Group,QUEEN ELIZABETH SCHOOL,1041012285,270000,Grants to educational establishments or not for profit organisations including other businesses
Department for Education,NATIONAL COLLEGE FOR TEACHING & LEADERSHIP,11/10/2017,Grants,Delivery Directorate,QUEENSBRIDGE PRIMARY SCHOOL,1041012399,40000,Grants to educational establishments or not for profit organisations including other businesses
Department for Education,DEPARTMENT FOR EDUCATION,09/10/2017,Grants,Academies Regional Delivery Group,RAEDWALD TRUST,1041011979,25000,Grants to educational establishments or not for profit organisations including other businesses
Department for Education,DEPARTMENT FOR EDUCATION,11/10/2017,Grants,Academies Regional Delivery Group,RAY LODGE PRIMARY SCHOOL,1041012422,25000,Grants to educational establishments or not for profit organisations including other businesses
Department for Education,DEPARTMENT FOR EDUCATION,05/10/2017,Grants,Free Schools Group,REACH 2 ESSEX ACADEMY TRUST,1041011740,47500,Grants to educational establishments or not for profit organisations including other businesses
Department for Education,NATIONAL COLLEGE FOR TEACHING & LEADERSHIP,03/10/2017,Grants,Operations Directorate,RED KITE TEACHER TRAINING,1041011179,77415.75,Grants to educational establishments or not for profit organisations including other businesses
Department for Education,DEPARTMENT FOR EDUCATION,16/10/2017,Grants,STRATEGIC IMPROVEMENT - PROTECTED,REDDEN COURT SCHOOL,1041012726,62100,Grants to educational establishments or not for profit organisations including other businesses
Department for Education,DEPARTMENT FOR EDUCATION,23/10/2017,Travel,Finance and Commercial Group,REDFERN TRAVEL LTD,10000402,94.27,"Staff business travel including air, coach, ferry, rail, taxi and car hire"
Department for Education,DEPARTMENT FOR EDUCATION,23/10/2017,Travel,Finance and Commercial Group,REDFERN TRAVEL LTD,10000402,485313.04,"Staff business travel including air, coach, ferry, rail, taxi and car hire"
Department for Education,DEPARTMENT FOR EDUCATION,05/10/2017,Grants,Academies Regional Delivery Group,REDLAND GREEN SCHOOL,1041011768,25000,Grants to educational establishments or not for profit organisations including other businesses
Department for Education,DEPARTMENT FOR EDUCATION,05/10/2017,Grants,Academies Regional Delivery Group,REDLAND GREEN SCHOOL,1041011768,25000,Grants to educational establishments or not for profit organisations including other businesses
Department for Education,DEPARTMENT FOR EDUCATION,18/10/2017,Grants,Academies Regional Delivery Group,REDLAND GREEN SCHOOL,1041013197,80000,Grants to educational establishments or not for profit organisations including other businesses
Department for Education,DEPARTMENT FOR EDUCATION,18/10/2017,Grants,Academies Regional Delivery Group,REDLAND GREEN SCHOOL,1041013197,70000,Grants to educational establishments or not for profit organisations including other businesses
Department for Education,DEPARTMENT FOR EDUCATION,20/10/2017,Grants,"Accountability, Curriculum and Qualifications Group",REDRIFF PRIMARY SCHOOL,1041013382,240000,Grants to educational establishments or not for profit organisations including other businesses
Department for Education,DEPARTMENT FOR EDUCATION,09/10/2017,Programme costs,Data Group,RESEARCH MACHINES PLC,1041011918,438319,Funding to deliver policies (excluding consultancy) paid to third parties via a service delivery contract
Department for Education,DEPARTMENT FOR EDUCATION,09/10/2017,Programme costs,Data Group,RESEARCH MACHINES PLC,1041011918,87663.8,Funding to deliver policies (excluding consultancy) paid to third parties via a service delivery contract
Department for Education,NATIONAL COLLEGE FOR TEACHING & LEADERSHIP,03/10/2017,Grants,Operations Directorate,RIPLEY ST THOMAS CE HIGH SCHOOL,1041011192,32389.11,Grants to educational establishments or not for profit organisations including other businesses
Department for Education,DEPARTMENT FOR EDUCATION,23/10/2017,Grants,Academies Regional Delivery Group,ROKEBY PARK PRIMARY SCHOOL,1041013584,25000,Grants to educational establishments or not for profit organisations including other businesses
Department for Education,DEPARTMENT FOR EDUCATION,03/10/2017,Miscellaneous Expenditure,Finance and Commercial Group,ROYAL BANK OF SCOTLAND GROUP,10000342,10118.45,Payment of electronic procurement card (ePCS) invoice from Septmber 2017.  Details of ePCS spend over 500 can be found https:/www.gov.uk/government/collections/dfe-government-procurement-card-gpc-over-500
Department for Education,DEPARTMENT FOR EDUCATION,03/10/2017,Miscellaneous Expenditure,Finance and Commercial Group,ROYAL BANK OF SCOTLAND GROUP,10000342,1656.67,Payment of electronic procurement card (ePCS) invoice from Septmber 2017.  Details of ePCS spend over 500 can be found https:/www.gov.uk/government/collections/dfe-government-procurement-card-gpc-over-500
Department for Education,DEPARTMENT FOR EDUCATION,03/10/2017,Miscellaneous Expenditure,Finance and Commercial Group,ROYAL BANK OF SCOTLAND GROUP,10000342,432,Payment of electronic procurement card (ePCS) invoice from Septmber 2017.  Details of ePCS spend over 500 can be found https:/www.gov.uk/government/collections/dfe-government-procurement-card-gpc-over-500
Department for Education,DEPARTMENT FOR EDUCATION,03/10/2017,Miscellaneous Expenditure,Finance and Commercial Group,ROYAL BANK OF SCOTLAND GROUP,10000342,19.81,Payment of electronic procurement card (ePCS) invoice from Septmber 2017.  Details of ePCS spend over 500 can be found https:/www.gov.uk/government/collections/dfe-government-procurement-card-gpc-over-500
Department for Education,DEPARTMENT FOR EDUCATION,03/10/2017,Miscellaneous Expenditure,Finance and Commercial Group,ROYAL BANK OF SCOTLAND GROUP,10000342,1009.05,Payment of electronic procurement card (ePCS) invoice from Septmber 2017.  Details of ePCS spend over 500 can be found https:/www.gov.uk/government/collections/dfe-government-procurement-card-gpc-over-500
Department for Education,DEPARTMENT FOR EDUCATION,03/10/2017,Miscellaneous Expenditure,Finance and Commercial Group,ROYAL BANK OF SCOTLAND GROUP,10000342,3667.85,Payment of electronic procurement card (ePCS) invoice from Septmber 2017.  Details of ePCS spend over 500 can be found https:/www.gov.uk/government/collections/dfe-government-procurement-card-gpc-over-500
Department for Education,DEPARTMENT FOR EDUCATION,03/10/2017,Miscellaneous Expenditure,Finance and Commercial Group,ROYAL BANK OF SCOTLAND GROUP,10000342,633.95,Payment of electronic procurement card (ePCS) invoice from Septmber 2017.  Details of ePCS spend over 500 can be found https:/www.gov.uk/government/collections/dfe-government-procurement-card-gpc-over-500
Department for Education,DEPARTMENT FOR EDUCATION,03/10/2017,Miscellaneous Expenditure,Finance and Commercial Group,ROYAL BANK OF SCOTLAND GROUP,10000342,800.28,Payment of electronic procurement card (ePCS) invoice from Septmber 2017.  Details of ePCS spend over 500 can be found https:/www.gov.uk/government/collections/dfe-government-procurement-card-gpc-over-500
Department for Education,DEPARTMENT FOR EDUCATION,03/10/2017,Miscellaneous Expenditure,Finance and Commercial Group,ROYAL BANK OF SCOTLAND GROUP,10000342,75.98,Payment of electronic procurement card (ePCS) invoice from Septmber 2017.  Details of ePCS spend over 500 can be found https:/www.gov.uk/government/collections/dfe-government-procurement-card-gpc-over-500
Department for Education,DEPARTMENT FOR EDUCATION,03/10/2017,Miscellaneous Expenditure,Finance and Commercial Group,ROYAL BANK OF SCOTLAND GROUP,10000342,76.59,Payment of electronic procurement card (ePCS) invoice from Septmber 2017.  Details of ePCS spend over 500 can be found https:/www.gov.uk/government/collections/dfe-government-procurement-card-gpc-over-500
Department for Education,DEPARTMENT FOR EDUCATION,03/10/2017,Miscellaneous Expenditure,Finance and Commercial Group,ROYAL BANK OF SCOTLAND GROUP,10000342,904.4,Payment of electronic procurement card (ePCS) invoice from Septmber 2017.  Details of ePCS spend over 500 can be found https:/www.gov.uk/government/collections/dfe-government-procurement-card-gpc-over-500
Department for Education,DEPARTMENT FOR EDUCATION,03/10/2017,Miscellaneous Expenditure,Finance and Commercial Group,ROYAL BANK OF SCOTLAND GROUP,10000342,203.4,Payment of electronic procurement card (ePCS) invoice from Septmber 2017.  Details of ePCS spend over 500 can be found https:/www.gov.uk/government/collections/dfe-government-procurement-card-gpc-over-500
Department for Education,DEPARTMENT FOR EDUCATION,03/10/2017,Miscellaneous Expenditure,Finance and Commercial Group,ROYAL BANK OF SCOTLAND GROUP,10000342,135,Payment of electronic procurement card (ePCS) invoice from Septmber 2017.  Details of ePCS spend over 500 can be found https:/www.gov.uk/government/collections/dfe-government-procurement-card-gpc-over-500
Department for Education,DEPARTMENT FOR EDUCATION,03/10/2017,Miscellaneous Expenditure,Finance and Commercial Group,ROYAL BANK OF SCOTLAND GROUP,10000342,987.16,Payment of electronic procurement card (ePCS) invoice from Septmber 2017.  Details of ePCS spend over 500 can be found https:/www.gov.uk/government/collections/dfe-government-procurement-card-gpc-over-500
Department for Education,DEPARTMENT FOR EDUCATION,03/10/2017,Miscellaneous Expenditure,Finance and Commercial Group,ROYAL BANK OF SCOTLAND GROUP,10000342,335,Payment of electronic procurement card (ePCS) invoice from Septmber 2017.  Details of ePCS spend over 500 can be found https:/www.gov.uk/government/collections/dfe-government-procurement-card-gpc-over-500
Department for Education,DEPARTMENT FOR EDUCATION,03/10/2017,Miscellaneous Expenditure,Finance and Commercial Group,ROYAL BANK OF SCOTLAND GROUP,10000342,583.62,Payment of electronic procurement card (ePCS) invoice from Septmber 2017.  Details of ePCS spend over 500 can be found https:/www.gov.uk/government/collections/dfe-government-procurement-card-gpc-over-500
Department for Education,DEPARTMENT FOR EDUCATION,03/10/2017,Miscellaneous Expenditure,Finance and Commercial Group,ROYAL BANK OF SCOTLAND GROUP,10000342,4142.89,Payment of electronic procurement card (ePCS) invoice from Septmber 2017.  Details of ePCS spend over 500 can be found https:/www.gov.uk/government/collections/dfe-government-procurement-card-gpc-over-500
Department for Education,DEPARTMENT FOR EDUCATION,03/10/2017,Miscellaneous Expenditure,Finance and Commercial Group,ROYAL BANK OF SCOTLAND GROUP,10000342,101.78,Payment of electronic procurement card (ePCS) invoice from Septmber 2017.  Details of ePCS spend over 500 can be found https:/www.gov.uk/government/collections/dfe-government-procurement-card-gpc-over-500
Department for Education,DEPARTMENT FOR EDUCATION,03/10/2017,Miscellaneous Expenditure,Finance and Commercial Group,ROYAL BANK OF SCOTLAND GROUP,10000342,612.82,Payment of electronic procurement card (ePCS) invoice from Septmber 2017.  Details of ePCS spend over 500 can be found https:/www.gov.uk/government/collections/dfe-government-procurement-card-gpc-over-500
Department for Education,DEPARTMENT FOR EDUCATION,03/10/2017,Miscellaneous Expenditure,Finance and Commercial Group,ROYAL BANK OF SCOTLAND GROUP,10000342,900,Payment of electronic procurement card (ePCS) invoice from Septmber 2017.  Details of ePCS spend over 500 can be found https:/www.gov.uk/government/collections/dfe-government-procurement-card-gpc-over-500
Department for Education,DEPARTMENT FOR EDUCATION,03/10/2017,Miscellaneous Expenditure,Finance and Commercial Group,ROYAL BANK OF SCOTLAND GROUP,10000342,663.2,Payment of electronic procurement card (ePCS) invoice from Septmber 2017.  Details of ePCS spend over 500 can be found https:/www.gov.uk/government/collections/dfe-government-procurement-card-gpc-over-500
Department for Education,DEPARTMENT FOR EDUCATION,03/10/2017,Miscellaneous Expenditure,Finance and Commercial Group,ROYAL BANK OF SCOTLAND GROUP,10000342,1817.92,Payment of electronic procurement card (ePCS) invoice from Septmber 2017.  Details of ePCS spend over 500 can be found https:/www.gov.uk/government/collections/dfe-government-procurement-card-gpc-over-500
Department for Education,DEPARTMENT FOR EDUCATION,03/10/2017,Miscellaneous Expenditure,Finance and Commercial Group,ROYAL BANK OF SCOTLAND GROUP,10000342,1294,Payment of electronic procurement card (ePCS) invoice from Septmber 2017.  Details of ePCS spend over 500 can be found https:/www.gov.uk/government/collections/dfe-government-procurement-card-gpc-over-500
Department for Education,DEPARTMENT FOR EDUCATION,03/10/2017,Miscellaneous Expenditure,Finance and Commercial Group,ROYAL BANK OF SCOTLAND GROUP,10000342,1080,Payment of electronic procurement card (ePCS) invoice from Septmber 2017.  Details of ePCS spend over 500 can be found https:/www.gov.uk/government/collections/dfe-government-procurement-card-gpc-over-500
Department for Education,DEPARTMENT FOR EDUCATION,03/10/2017,Miscellaneous Expenditure,Finance and Commercial Group,ROYAL BANK OF SCOTLAND GROUP,10000342,1678.94,Payment of electronic procurement card (ePCS) invoice from Septmber 2017.  Details of ePCS spend over 500 can be found https:/www.gov.uk/government/collections/dfe-government-procurement-card-gpc-over-500
Department for Education,DEPARTMENT FOR EDUCATION,03/10/2017,Miscellaneous Expenditure,Finance and Commercial Group,ROYAL BANK OF SCOTLAND GROUP,10000342,1292.5,Payment of electronic procurement card (ePCS) invoice from Septmber 2017.  Details of ePCS spend over 500 can be found https:/www.gov.uk/government/collections/dfe-government-procurement-card-gpc-over-500
Department for Education,DEPARTMENT FOR EDUCATION,03/10/2017,Miscellaneous Expenditure,Finance and Commercial Group,ROYAL BANK OF SCOTLAND GROUP,10000342,310.38,Payment of electronic procurement card (ePCS) invoice from Septmber 2017.  Details of ePCS spend over 500 can be found https:/www.gov.uk/government/collections/dfe-government-procurement-card-gpc-over-500
Department for Education,DEPARTMENT FOR EDUCATION,03/10/2017,Miscellaneous Expenditure,Finance and Commercial Group,ROYAL BANK OF SCOTLAND GROUP,10000342,294,Payment of electronic procurement card (ePCS) invoice from Septmber 2017.  Details of ePCS spend over 500 can be found https:/www.gov.uk/government/collections/dfe-government-procurement-card-gpc-over-500
Department for Education,DEPARTMENT FOR EDUCATION,09/10/2017,Grants,STRATEGIC IMPROVEMENT - PROTECTED,RUSHEY MEAD EDUCATIONAL TRUST,1041011983,74900,Grants to educational establishments or not for profit organisations including other businesses
Department for Education,DEPARTMENT FOR EDUCATION,16/10/2017,Grants,STRATEGIC IMPROVEMENT - PROTECTED,RUSHEY MEAD EDUCATIONAL TRUST,1041012786,31160,Grants to educational establishments or not for profit organisations including other businesses
Department for Education,DEPARTMENT FOR EDUCATION,16/10/2017,Grants,Academies Regional Delivery Group,RYKNELD PRIMARY SCHOOL,1041012770,25000,Grants to educational establishments or not for profit organisations including other businesses
Department for Education,NATIONAL COLLEGE FOR TEACHING & LEADERSHIP,03/10/2017,Grants,Operations Directorate,SACRED HEART NEWCASTLE SCITT,1041011230,39331.53,Grants to educational establishments or not for profit organisations including other businesses
Department for Education,NATIONAL COLLEGE FOR TEACHING & LEADERSHIP,30/10/2017,Grants,Delivery Directorate,SACRED HEART RC PRIMARY SCHOOL,1041014356,60000,Grants to educational establishments or not for profit organisations including other businesses
Department for Education,DEPARTMENT FOR EDUCATION,11/10/2017,Grants,Free Schools Group,SANDCROSS EDUCATION TRUST,1041012410,100000,Grants to educational establishments or not for profit organisations including other businesses
Department for Education,DEPARTMENT FOR EDUCATION,11/10/2017,Grants,Free Schools Group,SAPIENTIA EDUCATION TRUST,1041012382,30000,Grants to educational establishments or not for profit organisations including other businesses
Department for Education,NATIONAL COLLEGE FOR TEACHING & LEADERSHIP,20/10/2017,Grants,Delivery Directorate,SCHOOL PARTNERSHIP TRUST ACADEMIES GARFORTH,1041013548,59000,Grants to educational establishments or not for profit organisations including other businesses
Department for Education,DEPARTMENT FOR EDUCATION,23/10/2017,Professional Services Consultancy and Contingent Labour,Digital and Technology Group,SCRIBE SOFTWARE CORPORATION,20000031,27383.3,Costs related to temporary workers
Department for Education,NATIONAL COLLEGE FOR TEACHING & LEADERSHIP,17/10/2017,Grants,Delivery Directorate,SELE FIRST SCHOOL TS ACCOUNT,1041012927,40000,Grants to educational establishments or not for profit organisations including other businesses
Department for Education,DEPARTMENT FOR EDUCATION,23/10/2017,Grants,Academies Regional Delivery Group,SHAFTESBURY PRIMARY SCHOOL,1041013614,25000,Grants to educational establishments or not for profit organisations including other businesses
Department for Education,DEPARTMENT FOR EDUCATION,13/10/2017,Professional Services Other,Finance and Commercial Group,SHARED SERVICES CONNECTED LTD,1041012670,66075.9,Shared corporate accounting services
Department for Education,DEPARTMENT FOR EDUCATION,13/10/2017,Professional Services Other,Finance and Commercial Group,SHARED SERVICES CONNECTED LTD,1041012670,193469.93,Shared corporate accounting services
Department for Education,DEPARTMENT FOR EDUCATION,18/10/2017,ICT,Finance and Commercial Group,SHARED SERVICES CONNECTED LTD,1041013177,28112,ICT Software
Department for Education,DEPARTMENT FOR EDUCATION,18/10/2017,ICT,Finance and Commercial Group,SHARED SERVICES CONNECTED LTD,1041013177,5622.4,ICT Software
Department for Education,DEPARTMENT FOR EDUCATION,03/10/2017,Grants,Strategy and Social Mobility and Opportunity Areas Group,SHEFFIELD CITY COUNCIL,1041011399,48000,Grants to local authorities / other establishments within aggregate external funding or aggregate exchequer grant
Department for Education,NATIONAL COLLEGE FOR TEACHING & LEADERSHIP,03/10/2017,Grants,Operations Directorate,SHEFFIELD HALLAM UNIVERSITY,1041011404,316496.61,Grants to educational establishments or not for profit organisations including other businesses
Department for Education,DEPARTMENT FOR EDUCATION,16/10/2017,Grants,STRATEGIC IMPROVEMENT - PROTECTED,SHERINGHAM COMMUNITY PRIMARY SCHOOL,1041012722,104917,Grants to educational establishments or not for profit organisations including other businesses
Department for Education,NATIONAL COLLEGE FOR TEACHING & LEADERSHIP,03/10/2017,Grants,Delivery Directorate,SHERINGHAM NURSERY SCHOOL & CHILDRENS CENTRE,1041011442,40000,Grants to educational establishments or not for profit organisations including other businesses
Department for Education,NATIONAL COLLEGE FOR TEACHING & LEADERSHIP,03/10/2017,Grants,Operations Directorate,SHOTTON HALL SCITT,1041011298,88395.03,Grants to educational establishments or not for profit organisations including other businesses
Department for Education,DEPARTMENT FOR EDUCATION,16/10/2017,Grants,STRATEGIC IMPROVEMENT - PROTECTED,SIDNEY STRINGER ACADEMY,1041012712,150000,Grants to educational establishments or not for profit organisations including other businesses
Department for Education,NATIONAL COLLEGE FOR TEACHING & LEADERSHIP,11/10/2017,Grants,Delivery Directorate,SIR CHRISTOPHER HATTON ACADEMY,1041012433,39050,Grants to educational establishments or not for profit organisations including other businesses
Department for Education,NATIONAL COLLEGE FOR TEACHING & LEADERSHIP,17/10/2017,Grants,Delivery Directorate,SIR CHRISTOPHER HATTON ACADEMY,1041012960,31380,Grants to educational establishments or not for profit organisations including other businesses
Department for Education,DEPARTMENT FOR EDUCATION,20/10/2017,Grants,"Accountability, Curriculum and Qualifications Group",SIR ISAAC NEWTON FREE SCHOOL,1041013539,240000,Grants to educational establishments or not for profit organisations including other businesses
Department for Education,NATIONAL COLLEGE FOR TEACHING & LEADERSHIP,17/10/2017,Grants,Delivery Directorate,SIR ROBERT GEFFERYS CE PRIMARY SCHOOL,1041013011,40000,Grants to educational establishments or not for profit organisations including other businesses
Department for Education,NATIONAL COLLEGE FOR TEACHING & LEADERSHIP,20/10/2017,Grants,Delivery Directorate,SIRIUS ACADEMY,1041013490,41200,Grants to educational establishments or not for profit organisations including other businesses
Department for Education,NATIONAL COLLEGE FOR TEACHING & LEADERSHIP,03/10/2017,Grants,Operations Directorate,SKIPTON GIRLS HIGH SCHOOL,1041011512,29804.76,Grants to educational establishments or not for profit organisations including other businesses
Department for Education,DEPARTMENT FOR EDUCATION,16/10/2017,Grants,STRATEGIC IMPROVEMENT - PROTECTED,SKIPTON GIRLS HIGH SCHOOL TS ACCOUNT,1041012698,56500,Grants to educational establishments or not for profit organisations including other businesses
Department for Education,NATIONAL COLLEGE FOR TEACHING & LEADERSHIP,12/10/2017,Communications,Operations Directorate,SKV COMMUNICATIONS,1041012516,23380,"Publicity, advertising, media advertising campaigns (excluding recruitment adverts)"
Department for Education,DEPARTMENT FOR EDUCATION,24/10/2017,Grants,Strategy and Social Mobility and Opportunity Areas Group,SLOUGH CHILDRENS SERVICES TRUST LTD,1041013830,231341,Grants to local authorities / other establishments within aggregate external funding or aggregate exchequer grant
Department for Education,DEPARTMENT FOR EDUCATION,24/10/2017,Grants,Strategy and Social Mobility and Opportunity Areas Group,SLOUGH CHILDRENS SERVICES TRUST LTD,1041013830,198032.39,Grants to local authorities / other establishments within aggregate external funding or aggregate exchequer grant
Department for Education,DEPARTMENT FOR EDUCATION,16/10/2017,Professional Services Other,Strategic Analysis and Research Group,SMARTSURVEY LTD,1041012794,62000,Research and evaluation activities
Department for Education,DEPARTMENT FOR EDUCATION,16/10/2017,Professional Services Other,Strategic Analysis and Research Group,SMARTSURVEY LTD,1041012794,12400,Research and evaluation activities
Department for Education,DEPARTMENT FOR EDUCATION,05/10/2017,Professional Services Consultancy and Contingent Labour,Digital and Technology Group,SOL TEC LTD,1041011707,250000,Costs related to temporary workers
Department for Education,DEPARTMENT FOR EDUCATION,05/10/2017,Professional Services Consultancy and Contingent Labour,Digital and Technology Group,SOL TEC LTD,1041011707,50000,Costs related to temporary workers
Department for Education,DEPARTMENT FOR EDUCATION,26/10/2017,Grants,Strategy and Social Mobility and Opportunity Areas Group,SOLIHULL MBC,1041014155,48063,Grants to local authorities / other establishments within aggregate external funding or aggregate exchequer grant
Department for Education,DEPARTMENT FOR EDUCATION,10/10/2017,Grants,System Reform Group,SOMERSET COUNTY COUNCIL,1041012051,32308,Grants to local authorities / other establishments within aggregate external funding or aggregate exchequer grant
Department for Education,DEPARTMENT FOR EDUCATION,11/10/2017,Grants,Strategy and Social Mobility and Opportunity Areas Group,SOMERSET COUNTY COUNCIL,1041012333,500000,Grants to local authorities / other establishments within aggregate external funding or aggregate exchequer grant
Department for Education,DEPARTMENT FOR EDUCATION,02/10/2017,Grants,Strategy and Social Mobility and Opportunity Areas Group,SOUTH GLOUCEST,1041011139,97795,Grants to local authorities / other establishments within aggregate external funding or aggregate exchequer grant
Department for Education,DEPARTMENT FOR EDUCATION,09/10/2017,Grants,Free Schools Group,SOUTH WEST ESSEX COMMUNITY EDUCATION TRUST,1041011977,30000,Grants to educational establishments or not for profit organisations including other businesses
Department for Education,DEPARTMENT FOR EDUCATION,16/10/2017,Grants,STRATEGIC IMPROVEMENT - PROTECTED,SOUTHAM COLLEGE,1041012708,66158,Grants to educational establishments or not for profit organisations including other businesses
Department for Education,NATIONAL COLLEGE FOR TEACHING & LEADERSHIP,03/10/2017,Grants,Operations Directorate,SOUTHEND HIGH SCHOOL FOR GIRLS,1041011533,34486.74,Grants to educational establishments or not for profit organisations including other businesses
Department for Education,NATIONAL COLLEGE FOR TEACHING & LEADERSHIP,20/10/2017,Grants,Delivery Directorate,SOUTHFIELDS ACADEMY,1041013373,26620,Grants to educational establishments or not for profit organisations including other businesses
Department for Education,NATIONAL COLLEGE FOR TEACHING & LEADERSHIP,17/10/2017,Grants,Delivery Directorate,SOUTHGATE SCHOOL,1041012990,40000,Grants to educational establishments or not for profit organisations including other businesses
Department for Education,NATIONAL COLLEGE FOR TEACHING & LEADERSHIP,02/10/2017,Communications,Operations Directorate,SPEAKEASY PRODUCTIONS LTD,1041011098,88663.5,"Publicity, advertising, media advertising campaigns (excluding recruitment adverts)"
Department for Education,NATIONAL COLLEGE FOR TEACHING & LEADERSHIP,12/10/2017,Communications,Operations Directorate,SPEAKEASY PRODUCTIONS LTD,1041012505,334525,"Publicity, advertising, media advertising campaigns (excluding recruitment adverts)"
Department for Education,DEPARTMENT FOR EDUCATION,09/10/2017,Grants,STRATEGIC IMPROVEMENT - PROTECTED,SPONNE SCHOOL,1041011910,30000,Grants to educational establishments or not for profit organisations including other businesses
Department for Education,NATIONAL COLLEGE FOR TEACHING & LEADERSHIP,30/10/2017,Grants,Delivery Directorate,SPONNE SCHOOL,1041014316,37455,Grants to educational establishments or not for profit organisations including other businesses
Department for Education,DEPARTMENT FOR EDUCATION,09/10/2017,Grants,Academies Regional Delivery Group,ST ALBANS GIRLS SCHOOL,1041011906,25000,Grants to educational establishments or not for profit organisations including other businesses
Department for Education,DEPARTMENT FOR EDUCATION,09/10/2017,Grants,Academies Regional Delivery Group,ST ALBANS GIRLS SCHOOL,1041011906,70000,Grants to educational establishments or not for profit organisations including other businesses
Department for Education,NATIONAL COLLEGE FOR TEACHING & LEADERSHIP,17/10/2017,Grants,Delivery Directorate,ST ANDREWS CE PRIMARY SCHOOL,1041012896,40000,Grants to educational establishments or not for profit organisations including other businesses
Department for Education,NATIONAL COLLEGE FOR TEACHING & LEADERSHIP,24/10/2017,Grants,Delivery Directorate,ST ANGELAS URSULINE SCHOOL,1041013708,40000,Grants to educational establishments or not for profit organisations including other businesses
Department for Education,NATIONAL COLLEGE FOR TEACHING & LEADERSHIP,11/10/2017,Grants,Delivery Directorate,ST BEDES PRIMARY CATHOLIC VOLUNTARY ACADEMY,1041012311,40000,Grants to educational establishments or not for profit organisations including other businesses
Department for Education,DEPARTMENT FOR EDUCATION,23/10/2017,Grants,Academies Regional Delivery Group,ST CHADS ACADEMIES TRUST,1041013599,25000,Grants to educational establishments or not for profit organisations including other businesses
Department for Education,NATIONAL COLLEGE FOR TEACHING & LEADERSHIP,17/10/2017,Grants,Delivery Directorate,ST CLARE'S RC PRIMARY SCHOOL,1041013064,40000,Grants to educational establishments or not for profit organisations including other businesses
Department for Education,NATIONAL COLLEGE FOR TEACHING & LEADERSHIP,11/10/2017,Grants,Delivery Directorate,ST CUTHBERTS ROMAN CATHOLIC VOLUNTARY AIDED PRIMARY SCHOOL,1041012457,40000,Grants to educational establishments or not for profit organisations including other businesses
Department for Education,NATIONAL COLLEGE FOR TEACHING & LEADERSHIP,03/10/2017,Grants,Operations Directorate,ST GEORGES ACADEMY SCITT,1041011501,26962.47,Grants to educational establishments or not for profit organisations including other businesses
Department for Education,NATIONAL COLLEGE FOR TEACHING & LEADERSHIP,17/10/2017,Grants,Delivery Directorate,ST IVES FIRST SCHOOL,1041013065,40000,Grants to educational establishments or not for profit organisations including other businesses
Department for Education,NATIONAL COLLEGE FOR TEACHING & LEADERSHIP,24/10/2017,Grants,Delivery Directorate,ST JOHN BOSCO ARTS COLLEGE,1041013726,40000,Grants to educational establishments or not for profit organisations including other businesses
Department for Education,DEPARTMENT FOR EDUCATION,27/10/2017,Grants,STRATEGIC IMPROVEMENT - PROTECTED,ST JOHN THE BAPTIST CATHOLIC MAT,1041014220,50000,Grants to educational establishments or not for profit organisations including other businesses
Department for Education,DEPARTMENT FOR EDUCATION,20/10/2017,Grants,"Accountability, Curriculum and Qualifications Group",ST JOHN THE BAPTIST SCHOOL,1041013362,240000,Grants to educational establishments or not for profit organisations including other businesses
Department for Education,NATIONAL COLLEGE FOR TEACHING & LEADERSHIP,17/10/2017,Grants,Delivery Directorate,ST JOHN VIANNEY TEACHING SCHOOL,1041012897,40000,Grants to educational establishments or not for profit organisations including other businesses
Department for Education,NATIONAL COLLEGE FOR TEACHING & LEADERSHIP,11/10/2017,Grants,Delivery Directorate,ST JOSEPHS CATHOLIC PRIMARY SCHOOL,1041012315,31833,Grants to educational establishments or not for profit organisations including other businesses
Department for Education,NATIONAL COLLEGE FOR TEACHING & LEADERSHIP,03/10/2017,Grants,Operations Directorate,ST JOSEPH'S COLLEGE,1041011370,25483.5,Grants to educational establishments or not for profit organisations including other businesses
Department for Education,NATIONAL COLLEGE FOR TEACHING & LEADERSHIP,27/10/2017,Grants,Delivery Directorate,ST MARTINS SCHOOL,1041014234,40000,Grants to educational establishments or not for profit organisations including other businesses
Department for Education,NATIONAL COLLEGE FOR TEACHING & LEADERSHIP,02/10/2017,Grants,Operations Directorate,ST MARY & ST PAULS CE PRIMARY SCHOOL TS ACCOUNT,1041011164,48721,Grants to educational establishments or not for profit organisations including other businesses
Department for Education,DEPARTMENT FOR EDUCATION,20/10/2017,Grants,"Accountability, Curriculum and Qualifications Group",ST MARY & ST THOMAS CE PRIMARY SCHOOL,1041013527,240000,Grants to educational establishments or not for profit organisations including other businesses
Department for Education,NATIONAL COLLEGE FOR TEACHING & LEADERSHIP,20/10/2017,Grants,Delivery Directorate,ST MARY & ST THOMAS CE PRIMARY SCHOOL,1041013527,30000,Grants to educational establishments or not for profit organisations including other businesses
Department for Education,NATIONAL COLLEGE FOR TEACHING & LEADERSHIP,17/10/2017,Grants,Delivery Directorate,ST MARYLEBONE CE SCHOOL,1041013010,28000,Grants to educational establishments or not for profit organisations including other businesses
Department for Education,NATIONAL COLLEGE FOR TEACHING & LEADERSHIP,17/10/2017,Grants,Delivery Directorate,ST MARYS CATHOLIC PRIMARY SCHOOL,1041013066,40000,Grants to educational establishments or not for profit organisations including other businesses
Department for Education,NATIONAL COLLEGE FOR TEACHING & LEADERSHIP,17/10/2017,Grants,Delivery Directorate,ST MARY'S CATHOLIC SCHOOL,1041012976,60000,Grants to educational establishments or not for profit organisations including other businesses
Department for Education,NATIONAL COLLEGE FOR TEACHING & LEADERSHIP,03/10/2017,Grants,Operations Directorate,ST MARYS UNIVERSITY COLLEGE,1041011304,257368.32,Grants to educational establishments or not for profit organisations including other businesses
Department for Education,DEPARTMENT FOR EDUCATION,20/10/2017,Grants,"Accountability, Curriculum and Qualifications Group",ST PAULS CATHOLIC COLLEGE,1041013540,240000,Grants to educational establishments or not for profit organisations including other businesses
Department for Education,NATIONAL COLLEGE FOR TEACHING & LEADERSHIP,20/10/2017,Grants,Delivery Directorate,ST PAULS CATHOLIC COLLEGE,1041013540,68400,Grants to educational establishments or not for profit organisations including other businesses
Department for Education,DEPARTMENT FOR EDUCATION,16/10/2017,Grants,STRATEGIC IMPROVEMENT - PROTECTED,ST PETERS CE PRIMARY SCHOOL TS ACCOUNT,1041012703,100220,Grants to educational establishments or not for profit organisations including other businesses
Department for Education,NATIONAL COLLEGE FOR TEACHING & LEADERSHIP,20/10/2017,Grants,Delivery Directorate,ST THOMAS MORE CATHOLIC SCHOOL,1041013361,30000,Grants to educational establishments or not for profit organisations including other businesses
Department for Education,NATIONAL COLLEGE FOR TEACHING & LEADERSHIP,24/10/2017,Grants,Delivery Directorate,ST. MARY & ST. THOMAS AQUINAS CATHOLIC PRIMARY SCHOOL,1041013723,40000,Grants to educational establishments or not for profit organisations including other businesses
Department for Education,NATIONAL COLLEGE FOR TEACHING & LEADERSHIP,03/10/2017,Grants,Operations Directorate,STAFFORDSHIRE UNIVERSITY,1041011422,64654.11,Grants to educational establishments or not for profit organisations including other businesses
Department for Education,DEPARTMENT FOR EDUCATION,04/10/2017,Professional Services Consultancy and Contingent Labour,"Accountability, Curriculum and Qualifications Group",STEM LEARNING LTD,1041011544,42678.47,"Fees / expenses of professionals such as auditors, accountants, lawyers, etc. engaged to provide advice or opinion on how to affect something"
Department for Education,DEPARTMENT FOR EDUCATION,04/10/2017,Professional Services Consultancy and Contingent Labour,"Accountability, Curriculum and Qualifications Group",STEM LEARNING LTD,1041011544,175558.83,"Fees / expenses of professionals such as auditors, accountants, lawyers, etc. engaged to provide advice or opinion on how to affect something"
Department for Education,DEPARTMENT FOR EDUCATION,04/10/2017,Professional Services Consultancy and Contingent Labour,"Accountability, Curriculum and Qualifications Group",STEM LEARNING LTD,1041011544,8535.69,"Fees / expenses of professionals such as auditors, accountants, lawyers, etc. engaged to provide advice or opinion on how to affect something"
Department for Education,DEPARTMENT FOR EDUCATION,26/10/2017,Professional Services Consultancy and Contingent Labour,"Accountability, Curriculum and Qualifications Group",STEM LEARNING LTD,1041014068,44165.78,"Fees / expenses of professionals such as auditors, accountants, lawyers, etc. engaged to provide advice or opinion on how to affect something"
Department for Education,DEPARTMENT FOR EDUCATION,26/10/2017,Professional Services Consultancy and Contingent Labour,"Accountability, Curriculum and Qualifications Group",STEM LEARNING LTD,1041014068,175558.85,"Fees / expenses of professionals such as auditors, accountants, lawyers, etc. engaged to provide advice or opinion on how to affect something"
Department for Education,DEPARTMENT FOR EDUCATION,26/10/2017,Professional Services Consultancy and Contingent Labour,"Accountability, Curriculum and Qualifications Group",STEM LEARNING LTD,1041014068,8833.16,"Fees / expenses of professionals such as auditors, accountants, lawyers, etc. engaged to provide advice or opinion on how to affect something"
Department for Education,DEPARTMENT FOR EDUCATION,26/10/2017,Grants,Strategy and Social Mobility and Opportunity Areas Group,STOCKPORT MBC,1041014154,68613,Grants to local authorities / other establishments within aggregate external funding or aggregate exchequer grant
Department for Education,DEPARTMENT FOR EDUCATION,11/10/2017,Grants,Strategy and Social Mobility and Opportunity Areas Group,STOKE ON TRENT CITY COUNCIL,1041012462,100000,Grants to local authorities / other establishments within aggregate external funding or aggregate exchequer grant
Department for Education,DEPARTMENT FOR EDUCATION,06/10/2017,Facilities,Digital and Technology Group,STONE COMPUTERS LTD,1041011872,21184,"Maintenance, repair and cleaning including of equipment"
Department for Education,DEPARTMENT FOR EDUCATION,23/10/2017,Grants,Academies Regional Delivery Group,STONEFERRY PRIMARY SCHOOL,1041013578,25000,Grants to educational establishments or not for profit organisations including other businesses
Department for Education,NATIONAL COLLEGE FOR TEACHING & LEADERSHIP,03/10/2017,Grants,Operations Directorate,STOURPORT HIGH SCHOOL,1041011344,25296.93,Grants to educational establishments or not for profit organisations including other businesses
Department for Education,DEPARTMENT FOR EDUCATION,24/10/2017,Grants,Strategy and Social Mobility and Opportunity Areas Group,STREET TEAMS,1041013721,25029.31,Grants to educational establishments or not for profit organisations including other businesses
Department for Education,DEPARTMENT FOR EDUCATION,23/10/2017,Grants,Student Finance and Analysis Group,STUDENT AWARDS AGENCY FOR SCOTLAND SAAS,10000405,12274178,Current grant funding to other government departments for DfE's contribution to jointly funded programmes 
Department for Education,DEPARTMENT FOR EDUCATION,02/10/2017,Grants,Student Finance and Analysis Group,STUDENT LOANS CO LTD INVEST TO SAVE,30000095,3317376.85,Current grants paid to organisations including arms length bodies and educational establishments
Department for Education,DEPARTMENT FOR EDUCATION,02/10/2017,Grants,Student Finance and Analysis Group,STUDENT LOANS CO LTD INVEST TO SAVE,30000095,16672434.26,Current grants paid to organisations including arms length bodies and educational establishments
Department for Education,DEPARTMENT FOR EDUCATION,16/10/2017,Student Payments,Student Finance and Analysis Group,STUDENT LOANS COMPANY LTD,30000101,2583316114,Payments for new student loans
Department for Education,DEPARTMENT FOR EDUCATION,16/10/2017,Student Payments,Further Education Group,STUDENT LOANS COMPANY LTD,30000102,10201214,Payments for new student loans
Department for Education,DEPARTMENT FOR EDUCATION,09/10/2017,Grants,STRATEGIC IMPROVEMENT - PROTECTED,STUDLEY HIGH SCHOOL,1041011908,38354,Grants to educational establishments or not for profit organisations including other businesses
Department for Education,NATIONAL COLLEGE FOR TEACHING & LEADERSHIP,30/10/2017,Grants,Delivery Directorate,STUDLEY HIGH SCHOOL,1041014315,50000,Grants to educational establishments or not for profit organisations including other businesses
Department for Education,NATIONAL COLLEGE FOR TEACHING & LEADERSHIP,03/10/2017,Grants,Operations Directorate,SUFFOLK COUNTY COUNCIL,1041011375,26913.78,Grants to educational establishments or not for profit organisations including other businesses
Department for Education,DEPARTMENT FOR EDUCATION,10/10/2017,Grants,System Reform Group,SUFFOLK COUNTY COUNCIL,1041012052,45425,Grants to local authorities / other establishments within aggregate external funding or aggregate exchequer grant
Department for Education,DEPARTMENT FOR EDUCATION,11/10/2017,Grants,Strategy and Social Mobility and Opportunity Areas Group,SUFFOLK COUNTY COUNCIL,1041012334,100000,Grants to local authorities / other establishments within aggregate external funding or aggregate exchequer grant
Department for Education,DEPARTMENT FOR EDUCATION,26/10/2017,Grants,Strategy and Social Mobility and Opportunity Areas Group,SUFFOLK COUNTY COUNCIL,1041014118,112367,Grants to local authorities / other establishments within aggregate external funding or aggregate exchequer grant
Department for Education,DEPARTMENT FOR EDUCATION,26/10/2017,Grants,Adoption and Children in Care Division,SUFFOLK COUNTY COUNCIL,1041014118,42797,Grants to local authorities / other establishments within aggregate external funding or aggregate exchequer grant
Department for Education,NATIONAL COLLEGE FOR TEACHING & LEADERSHIP,03/10/2017,Grants,Operations Directorate,SUTTON PARK SCITT,1041011366,25957.44,Grants to educational establishments or not for profit organisations including other businesses
Department for Education,NATIONAL COLLEGE FOR TEACHING & LEADERSHIP,20/10/2017,Grants,Delivery Directorate,SUTTON PARK SCITT,1041013458,39900,Grants to educational establishments or not for profit organisations including other businesses
Department for Education,NATIONAL COLLEGE FOR TEACHING & LEADERSHIP,03/10/2017,Grants,Operations Directorate,SUTTON SCITT,1041011318,49825.53,Grants to educational establishments or not for profit organisations including other businesses
Department for Education,DEPARTMENT FOR EDUCATION,16/10/2017,Grants,STRATEGIC IMPROVEMENT - PROTECTED,SWAVESEY VILLAGE COLLEGE,1041012705,55600,Grants to educational establishments or not for profit organisations including other businesses
Department for Education,DEPARTMENT FOR EDUCATION,05/10/2017,Grants,Academies Regional Delivery Group,SYNERGY ACADEMY TRUST,1041011700,25000,Grants to educational establishments or not for profit organisations including other businesses
Department for Education,NATIONAL COLLEGE FOR TEACHING & LEADERSHIP,17/10/2017,Grants,Delivery Directorate,TARPORLEY HIGH SCHOOL,1041012945,40000,Grants to educational establishments or not for profit organisations including other businesses
Department for Education,DEPARTMENT FOR EDUCATION,16/10/2017,Grants,STRATEGIC IMPROVEMENT - PROTECTED,TAUHEEDUL EDUCATION TRUST,1041012791,95300,Grants to educational establishments or not for profit organisations including other businesses
Department for Education,DEPARTMENT FOR EDUCATION,16/10/2017,Grants,Adoption and Children in Care Division,TAVISTOCK CENTRE FOR COUPLE RELATIONSHIPS,1041012831,53375.92,Grants to educational establishments or not for profit organisations including other businesses
Department for Education,DEPARTMENT FOR EDUCATION,16/10/2017,Grants,STRATEGIC IMPROVEMENT - PROTECTED,TBAP TRUST,1041012700,104657,Grants to educational establishments or not for profit organisations including other businesses
Department for Education,DEPARTMENT FOR EDUCATION,24/10/2017,Grants,Academies Regional Delivery Group,TBAP TRUST,1041013892,25000,Grants to educational establishments or not for profit organisations including other businesses
Department for Education,NATIONAL COLLEGE FOR TEACHING & LEADERSHIP,03/10/2017,Grants,Operations Directorate,TEACH SOUTHEAST,1041011500,79498.62,Grants to educational establishments or not for profit organisations including other businesses
Department for Education,NATIONAL COLLEGE FOR TEACHING & LEADERSHIP,24/10/2017,Programme costs,Delivery Directorate,TELEPERFORMANCE LTD,1041013842,29407.3,Funding to deliver policies (excluding consultancy) paid to third parties via a service delivery contract
Department for Education,NATIONAL COLLEGE FOR TEACHING & LEADERSHIP,24/10/2017,Programme costs,Delivery Directorate,TELEPERFORMANCE LTD,1041013842,37190.7,Funding to deliver policies (excluding consultancy) paid to third parties via a service delivery contract
Department for Education,NATIONAL COLLEGE FOR TEACHING & LEADERSHIP,24/10/2017,Programme costs,Delivery Directorate,TELEPERFORMANCE LTD,1041013842,195496,Funding to deliver policies (excluding consultancy) paid to third parties via a service delivery contract
Department for Education,NATIONAL COLLEGE FOR TEACHING & LEADERSHIP,24/10/2017,Programme costs,Delivery Directorate,TELEPERFORMANCE LTD,1041013842,5881.46,Funding to deliver policies (excluding consultancy) paid to third parties via a service delivery contract
Department for Education,NATIONAL COLLEGE FOR TEACHING & LEADERSHIP,24/10/2017,Programme costs,Delivery Directorate,TELEPERFORMANCE LTD,1041013842,7438.14,Funding to deliver policies (excluding consultancy) paid to third parties via a service delivery contract
Department for Education,NATIONAL COLLEGE FOR TEACHING & LEADERSHIP,24/10/2017,Programme costs,Delivery Directorate,TELEPERFORMANCE LTD,1041013842,39099.2,Funding to deliver policies (excluding consultancy) paid to third parties via a service delivery contract
Department for Education,NATIONAL COLLEGE FOR TEACHING & LEADERSHIP,26/10/2017,Programme costs,Delivery Directorate,TELEPERFORMANCE LTD,1041014086,121913.75,Funding to deliver policies (excluding consultancy) paid to third parties via a service delivery contract
Department for Education,NATIONAL COLLEGE FOR TEACHING & LEADERSHIP,26/10/2017,Programme costs,Delivery Directorate,TELEPERFORMANCE LTD,1041014086,24262.75,Funding to deliver policies (excluding consultancy) paid to third parties via a service delivery contract
Department for Education,NATIONAL COLLEGE FOR TEACHING & LEADERSHIP,03/10/2017,Programme costs,Operations Directorate,TEXUNA TECHNOLOGIES,1041011211,4804.37,Funding to deliver policies (excluding consultancy) paid to third parties via a service delivery contract
Department for Education,NATIONAL COLLEGE FOR TEACHING & LEADERSHIP,03/10/2017,Programme costs,Operations Directorate,TEXUNA TECHNOLOGIES,1041011211,24021.83,Funding to deliver policies (excluding consultancy) paid to third parties via a service delivery contract
Department for Education,NATIONAL COLLEGE FOR TEACHING & LEADERSHIP,10/10/2017,Programme costs,Operations Directorate,TEXUNA TECHNOLOGIES,1041012008,4804.37,Funding to deliver policies (excluding consultancy) paid to third parties via a service delivery contract
Department for Education,NATIONAL COLLEGE FOR TEACHING & LEADERSHIP,10/10/2017,Programme costs,Operations Directorate,TEXUNA TECHNOLOGIES,1041012008,24021.83,Funding to deliver policies (excluding consultancy) paid to third parties via a service delivery contract
Department for Education,NATIONAL COLLEGE FOR TEACHING & LEADERSHIP,03/10/2017,Grants,Delivery Directorate,THE ARTHUR TERRY SCHOOL SCITT,1041011261,45500,Grants to educational establishments or not for profit organisations including other businesses
Department for Education,NATIONAL COLLEGE FOR TEACHING & LEADERSHIP,03/10/2017,Grants,Operations Directorate,THE ARTHUR TERRY SCHOOL SCITT,1041011261,46012.5,Grants to educational establishments or not for profit organisations including other businesses
Department for Education,DEPARTMENT FOR EDUCATION,16/10/2017,Grants,STRATEGIC IMPROVEMENT - PROTECTED,THE ARTHUR TERRY SCHOOL SCITT,1041012710,150000,Grants to educational establishments or not for profit organisations including other businesses
Department for Education,DEPARTMENT FOR EDUCATION,16/10/2017,Grants,Academies Regional Delivery Group,THE BRIDGE SCHOOL LONDON,1041012788,70000,Grants to educational establishments or not for profit organisations including other businesses
Department for Education,NATIONAL COLLEGE FOR TEACHING & LEADERSHIP,24/10/2017,Grants,Delivery Directorate,THE BRIDGE SCHOOL LONDON,1041013779,40000,Grants to educational establishments or not for profit organisations including other businesses
Department for Education,NATIONAL COLLEGE FOR TEACHING & LEADERSHIP,18/10/2017,Programme costs,Delivery Directorate,THE BRILLIANT CLUB,1041013092,61213.62,Funding to deliver policies (excluding consultancy) paid to third parties via a service delivery contract
Department for Education,NATIONAL COLLEGE FOR TEACHING & LEADERSHIP,24/10/2017,Programme costs,Delivery Directorate,THE BRILLIANT CLUB,1041013771,85333.05,Funding to deliver policies (excluding consultancy) paid to third parties via a service delivery contract
Department for Education,NATIONAL COLLEGE FOR TEACHING & LEADERSHIP,03/10/2017,Grants,Operations Directorate,THE CAMBRIDGE PARTNERSHIP,1041011419,30330.09,Grants to educational establishments or not for profit organisations including other businesses
Department for Education,DEPARTMENT FOR EDUCATION,09/10/2017,Grants,Free Schools Group,THE CAMPUS EDUCATIONAL TRUST,1041011938,37700,Grants to educational establishments or not for profit organisations including other businesses
Department for Education,NATIONAL COLLEGE FOR TEACHING & LEADERSHIP,20/10/2017,Grants,Delivery Directorate,THE CARDINAL VAUGHAN MEMORIAL RC SCHOOL,1041013473,54000,Grants to educational establishments or not for profit organisations including other businesses
Department for Education,DEPARTMENT FOR EDUCATION,16/10/2017,Grants,Careers and Further Education Funding Group,THE CAREERS & ENTERPRISE COMPANY,1041012800,1262966,Grants to educational establishments or not for profit organisations including other businesses
Department for Education,NATIONAL COLLEGE FOR TEACHING & LEADERSHIP,05/10/2017,Grants,Delivery Directorate,THE CATERBURY ACADEMY,1041011722,60000,Grants to educational establishments or not for profit organisations including other businesses
Department for Education,DEPARTMENT FOR EDUCATION,09/10/2017,Professional Services Consultancy and Contingent Labour,Professional and Technical Education Group,THE CHALLENGE NETWORK,1041011994,21121,"Fees / expenses of professionals such as auditors, accountants, lawyers, etc. engaged to provide advice or opinion on how to affect something"
Department for Education,DEPARTMENT FOR EDUCATION,09/10/2017,Professional Services Consultancy and Contingent Labour,Professional and Technical Education Group,THE CHALLENGE NETWORK,1041011994,64140,"Fees / expenses of professionals such as auditors, accountants, lawyers, etc. engaged to provide advice or opinion on how to affect something"
Department for Education,DEPARTMENT FOR EDUCATION,24/10/2017,Professional Services Consultancy and Contingent Labour,Professional and Technical Education Group,THE CHALLENGE NETWORK,1041013847,59529,"Fees / expenses of professionals such as auditors, accountants, lawyers, etc. engaged to provide advice or opinion on how to affect something"
Department for Education,DEPARTMENT FOR EDUCATION,02/10/2017,Grants,Academies Regional Delivery Group,THE CHALLENGER MULTI ACADEMY TRUST,1041011101,25000,Grants to educational establishments or not for profit organisations including other businesses
Department for Education,DEPARTMENT FOR EDUCATION,20/10/2017,Grants,FE QUALITY AND GOVERNANCE,THE CHARTERED INSTITUTION FOR FURTHER EDUCATION,1041013437,210067,Grants to educational establishments or not for profit organisations including other businesses
Department for Education,DEPARTMENT FOR EDUCATION,11/10/2017,Grants,Strategy and Social Mobility and Opportunity Areas Group,THE CHILDRENS SOCIETY,1041012349,53988.12,Grants to educational establishments or not for profit organisations including other businesses
Department for Education,NATIONAL COLLEGE FOR TEACHING & LEADERSHIP,03/10/2017,Grants,Operations Directorate,THE COLLEGE OF ST MARK & ST JOHN,1041011216,104815.98,Grants to educational establishments or not for profit organisations including other businesses
Department for Education,NATIONAL COLLEGE FOR TEACHING & LEADERSHIP,17/10/2017,Grants,Delivery Directorate,THE COLLEGIATE ACADEMY TRUST,1041012962,40000,Grants to educational establishments or not for profit organisations including other businesses
Department for Education,NATIONAL COLLEGE FOR TEACHING & LEADERSHIP,20/10/2017,Grants,Delivery Directorate,THE COMMUNITY ACADEMIES TRUST,1041013531,50580,Grants to educational establishments or not for profit organisations including other businesses
Department for Education,NATIONAL COLLEGE FOR TEACHING & LEADERSHIP,27/10/2017,Grants,Delivery Directorate,THE COMPTON ACADEMY TRUST,1041014194,72000,Grants to educational establishments or not for profit organisations including other businesses
Department for Education,NATIONAL COLLEGE FOR TEACHING & LEADERSHIP,24/10/2017,Grants,Delivery Directorate,THE COMPTON SCHOOL TS ACC,1041013881,40000,Grants to educational establishments or not for profit organisations including other businesses
Department for Education,DEPARTMENT FOR EDUCATION,23/10/2017,Grants,Academies Regional Delivery Group,THE CUMBERLAND SCHOOL,1041013608,25000,Grants to educational establishments or not for profit organisations including other businesses
Department for Education,NATIONAL COLLEGE FOR TEACHING & LEADERSHIP,03/10/2017,Grants,Delivery Directorate,THE DALES SCHOOL,1041011480,40000,Grants to educational establishments or not for profit organisations including other businesses
Department for Education,DEPARTMENT FOR EDUCATION,09/10/2017,Grants,STRATEGIC IMPROVEMENT - PROTECTED,THE DALES SCHOOL,1041011995,70000,Grants to educational establishments or not for profit organisations including other businesses
Department for Education,NATIONAL COLLEGE FOR TEACHING & LEADERSHIP,20/10/2017,Grants,Delivery Directorate,THE DELTA EDUCATION TRUST,1041013408,74900,Grants to educational establishments or not for profit organisations including other businesses
Department for Education,DEPARTMENT FOR EDUCATION,23/10/2017,Grants,Academies Regional Delivery Group,THE DIOCESE OF COVENTRY,1041013602,110000,Grants to educational establishments or not for profit organisations including other businesses
Department for Education,DEPARTMENT FOR EDUCATION,16/10/2017,Grants,Academies Regional Delivery Group,THE DIOCESE OF LIVERPOOL ACADEMIES TRUST,1041012689,25000,Grants to educational establishments or not for profit organisations including other businesses
Department for Education,DEPARTMENT FOR EDUCATION,16/10/2017,Grants,Academies Regional Delivery Group,THE DIOCESE OF LIVERPOOL ACADEMIES TRUST,1041012689,25000,Grants to educational establishments or not for profit organisations including other businesses
